Department,Entity,Transaction Date,Expense Type,Expense Area,PES Category,Supplier,Transaction No.,Amount
DEPARTMENT OF ENERGY AND CLIMATE CHANGE,THE COAL AUTHORITY,23/09/2014,FARES - PUBLIC TRANSPORT,BOARD,TRAVEL&EVENTS-TAXI,STAFF EXPENSES CONTROL,0000214254,13.00
DEPARTMENT OF ENERGY AND CLIMATE CHANGE,THE COAL AUTHORITY,25/09/2014,FARES - PUBLIC TRANSPORT,BOARD,TRAVEL&EVENTS-TAXI,STAFF EXPENSES CONTROL,0000214334,8.00
DEPARTMENT OF ENERGY AND CLIMATE CHANGE,THE COAL AUTHORITY,23/09/2014,FARES - RAIL,BOARD,TRAVEL&EVENTS-RAIL,STAFF EXPENSES CONTROL,0000214244,280.90
DEPARTMENT OF ENERGY AND CLIMATE CHANGE,THE COAL AUTHORITY,23/09/2014,FARES - RAIL,BOARD,TRAVEL&EVENTS-RAIL,STAFF EXPENSES CONTROL,0000214254,144.00
DEPARTMENT OF ENERGY AND CLIMATE CHANGE,THE COAL AUTHORITY,23/09/2014,FARES - RAIL,BOARD,TRAVEL&EVENTS-RAIL,STAFF EXPENSES CONTROL,0000214257,49.00
DEPARTMENT OF ENERGY AND CLIMATE CHANGE,THE COAL AUTHORITY,25/09/2014,FARES - RAIL,BOARD,TRAVEL&EVENTS-RAIL,STAFF EXPENSES CONTROL,0000214334,65.30
DEPARTMENT OF ENERGY AND CLIMATE CHANGE,THE COAL AUTHORITY,23/09/2014,HOTEL ACCOMMODATION,BOARD,TRAVEL&EVENTS-HOTELS,STAFF EXPENSES CONTROL,0000214258,62.50
DEPARTMENT OF ENERGY AND CLIMATE CHANGE,THE COAL AUTHORITY,23/09/2014,INCIDENTALS,BOARD,VEHICLES-FLEET MANAGEMENT,STAFF EXPENSES CONTROL,0000214244,14.00
DEPARTMENT OF ENERGY AND CLIMATE CHANGE,THE COAL AUTHORITY,23/09/2014,INCIDENTALS,BOARD,VEHICLES-FLEET MANAGEMENT,STAFF EXPENSES CONTROL,0000214257,4.17
DEPARTMENT OF ENERGY AND CLIMATE CHANGE,THE COAL AUTHORITY,23/09/2014,MILEAGE PAYMENTS,BOARD,FUELS/LUBRCNT/GAS-FUELS,STAFF EXPENSES CONTROL,0000214244,143.55
DEPARTMENT OF ENERGY AND CLIMATE CHANGE,THE COAL AUTHORITY,23/09/2014,MILEAGE PAYMENTS,BOARD,FUELS/LUBRCNT/GAS-FUELS,STAFF EXPENSES CONTROL,0000214257,290.25
DEPARTMENT OF ENERGY AND CLIMATE CHANGE,THE COAL AUTHORITY,23/09/2014,SUBSISTENCE ALLOWANCES,BOARD,FACILITIES - FOOD,STAFF EXPENSES CONTROL,0000214258,7.46
DEPARTMENT OF ENERGY AND CLIMATE CHANGE,THE COAL AUTHORITY,23/09/2014,FARES - PUBLIC TRANSPORT,BUSINESS DEVELOPMENT,TRAVEL&EVENTS-TAXI,STAFF EXPENSES CONTROL,0000214269,15.00
DEPARTMENT OF ENERGY AND CLIMATE CHANGE,THE COAL AUTHORITY,31/08/2014,FARES - RAIL,BUSINESS DEVELOPMENT,TRAVEL&EVENTS-RAIL,REDFERN TRAVEL LTD,0000213892,480.87
DEPARTMENT OF ENERGY AND CLIMATE CHANGE,THE COAL AUTHORITY,23/09/2014,FARES - RAIL,BUSINESS DEVELOPMENT,TRAVEL&EVENTS-RAIL,STAFF EXPENSES CONTROL,0000214269,8.90
DEPARTMENT OF ENERGY AND CLIMATE CHANGE,THE COAL AUTHORITY,31/08/2014,HOTEL ACCOMMODATION,BUSINESS DEVELOPMENT,TRAVEL&EVENTS-HOTELS,REDFERN TRAVEL LTD,0000213896,1.30
DEPARTMENT OF ENERGY AND CLIMATE CHANGE,THE COAL AUTHORITY,23/09/2014,INCIDENTALS,BUSINESS DEVELOPMENT,VEHICLES-FLEET MANAGEMENT,STAFF EXPENSES CONTROL,0000214269,18.34
DEPARTMENT OF ENERGY AND CLIMATE CHANGE,THE COAL AUTHORITY,23/09/2014,SUBSISTENCE ALLOWANCES,BUSINESS DEVELOPMENT,FACILITIES - FOOD,STAFF EXPENSES CONTROL,0000214269,16.66
DEPARTMENT OF ENERGY AND CLIMATE CHANGE,THE COAL AUTHORITY,31/08/2014,FARES - AIR,CHIEF EXECUTIVE,TRAVEL&EVENTS-AIR,REDFERN TRAVEL LTD,0000213892,182.78
DEPARTMENT OF ENERGY AND CLIMATE CHANGE,THE COAL AUTHORITY,31/08/2014,FARES - RAIL,CHIEF EXECUTIVE,TRAVEL&EVENTS-RAIL,REDFERN TRAVEL LTD,0000213892,921.32
DEPARTMENT OF ENERGY AND CLIMATE CHANGE,THE COAL AUTHORITY,31/08/2014,HOTEL ACCOMMODATION,CHIEF EXECUTIVE,TRAVEL&EVENTS-HOTELS,REDFERN TRAVEL LTD,0000213896,78.30
DEPARTMENT OF ENERGY AND CLIMATE CHANGE,THE COAL AUTHORITY,08/09/2014,INCIDENTALS,CHIEF EXECUTIVE,VEHICLES-FLEET MANAGEMENT,COMPANY BARCLAYCARD,0000214136,26.00
DEPARTMENT OF ENERGY AND CLIMATE CHANGE,THE COAL AUTHORITY,29/09/2014,STAFF EVENTS,CHIEF EXECUTIVE,FACILITIES - FOOD,THE HOSTESS,0000214383,"2,812.00"
DEPARTMENT OF ENERGY AND CLIMATE CHANGE,THE COAL AUTHORITY,08/09/2014,SUBSISTENCE ALLOWANCES,CHIEF EXECUTIVE,FACILITIES - FOOD,COMPANY BARCLAYCARD,0000214136,11.41
DEPARTMENT OF ENERGY AND CLIMATE CHANGE,THE COAL AUTHORITY,31/08/2014,HOTEL ACCOMMODATION,CORPORATE AFFAIRS,TRAVEL&EVENTS-HOTELS,REDFERN TRAVEL LTD,0000213896,143.51
DEPARTMENT OF ENERGY AND CLIMATE CHANGE,THE COAL AUTHORITY,31/08/2014,PUBLIC RELATIONS,CORPORATE AFFAIRS,MARKETING & MEDIA-PROMOTION,GORKANA GROUP LTD,0000213718,217.93
DEPARTMENT OF ENERGY AND CLIMATE CHANGE,THE COAL AUTHORITY,31/08/2014,PUBLIC RELATIONS,CORPORATE AFFAIRS,MARKETING & MEDIA-PROMOTION,GORKANA GROUP LTD,0000213719,437.90
DEPARTMENT OF ENERGY AND CLIMATE CHANGE,THE COAL AUTHORITY,31/08/2014,PUBLIC RELATIONS,CORPORATE AFFAIRS,MARKETING & MEDIA-PROMOTION,SHARPE PRITCHARD,0000213965,427.00
DEPARTMENT OF ENERGY AND CLIMATE CHANGE,THE COAL AUTHORITY,08/09/2014,PUBLICATIONS,CORPORATE AFFAIRS,OPRTNL GOODS&SERV-DEVLPNG MTRL,COMPANY BARCLAYCARD,0000214125,13.29
DEPARTMENT OF ENERGY AND CLIMATE CHANGE,THE COAL AUTHORITY,15/08/2014,PAYMENTS TO AGENCIES FOR TEMPS,CORPORATE PROJECT OFFICE,PROF SER TMP STFF-SPCLST CNTRT,KEY PERSONNEL SOLUTIONS L,0000213440,"1,375.45"
DEPARTMENT OF ENERGY AND CLIMATE CHANGE,THE COAL AUTHORITY,22/08/2014,PAYMENTS TO AGENCIES FOR TEMPS,CORPORATE PROJECT OFFICE,PROF SER TMP STFF-SPCLST CNTRT,KEY PERSONNEL SOLUTIONS L,0000213621,"1,375.45"
DEPARTMENT OF ENERGY AND CLIMATE CHANGE,THE COAL AUTHORITY,28/08/2014,PAYMENTS TO AGENCIES FOR TEMPS,CORPORATE PROJECT OFFICE,PROF SER TMP STFF-SPCLST CNTRT,SPRING TECHNOLOGY,0000213623,415.00
DEPARTMENT OF ENERGY AND CLIMATE CHANGE,THE COAL AUTHORITY,05/09/2014,PAYMENTS TO AGENCIES FOR TEMPS,CORPORATE PROJECT OFFICE,PROF SER TMP STFF-SPCLST CNTRT,KEY PERSONNEL SOLUTIONS L,0000213972,"1,375.45"
DEPARTMENT OF ENERGY AND CLIMATE CHANGE,THE COAL AUTHORITY,08/09/2014,PAYMENTS TO AGENCIES FOR TEMPS,CORPORATE PROJECT OFFICE,PROF SER TMP STFF-SPCLST CNTRT,SPRING TECHNOLOGY,0000213987,"1,245.00"
DEPARTMENT OF ENERGY AND CLIMATE CHANGE,THE COAL AUTHORITY,09/09/2014,PAYMENTS TO AGENCIES FOR TEMPS,CORPORATE PROJECT OFFICE,PROF SER TMP STFF-SPCLST CNTRT,SPRING TECHNOLOGY,0000213988,"1,200.00"
DEPARTMENT OF ENERGY AND CLIMATE CHANGE,THE COAL AUTHORITY,09/09/2014,PAYMENTS TO AGENCIES FOR TEMPS,CORPORATE PROJECT OFFICE,PROF SER TMP STFF-SPCLST CNTRT,SPRING TECHNOLOGY,0000213989,"1,600.00"
DEPARTMENT OF ENERGY AND CLIMATE CHANGE,THE COAL AUTHORITY,09/09/2014,PAYMENTS TO AGENCIES FOR TEMPS,CORPORATE PROJECT OFFICE,PROF SER TMP STFF-SPCLST CNTRT,SPRING TECHNOLOGY,0000213990,"2,000.00"
DEPARTMENT OF ENERGY AND CLIMATE CHANGE,THE COAL AUTHORITY,12/09/2014,PAYMENTS TO AGENCIES FOR TEMPS,CORPORATE PROJECT OFFICE,PROF SER TMP STFF-SPCLST CNTRT,KEY PERSONNEL SOLUTIONS L,0000214279,"1,375.45"
DEPARTMENT OF ENERGY AND CLIMATE CHANGE,THE COAL AUTHORITY,19/09/2014,PAYMENTS TO AGENCIES FOR TEMPS,CORPORATE PROJECT OFFICE,PROF SER TMP STFF-SPCLST CNTRT,KEY PERSONNEL SOLUTIONS L,0000214282,"1,375.45"
DEPARTMENT OF ENERGY AND CLIMATE CHANGE,THE COAL AUTHORITY,22/09/2014,PAYMENTS TO AGENCIES FOR TEMPS,CORPORATE PROJECT OFFICE,PROF SER TMP STFF-SPCLST CNTRT,SPRING TECHNOLOGY,0000214283,"1,660.00"
DEPARTMENT OF ENERGY AND CLIMATE CHANGE,THE COAL AUTHORITY,22/09/2014,PAYMENTS TO AGENCIES FOR TEMPS,CORPORATE PROJECT OFFICE,PROF SER TMP STFF-SPCLST CNTRT,SPRING TECHNOLOGY,0000214284,"2,000.00"
DEPARTMENT OF ENERGY AND CLIMATE CHANGE,THE COAL AUTHORITY,16/07/2014,TRAINING AND EDUCATION,CORPORATE PROJECT OFFICE,PROF SER LRNG&DEV-STAFF TRNING,OE CAM LLP,0000213827,575.52
DEPARTMENT OF ENERGY AND CLIMATE CHANGE,THE COAL AUTHORITY,10/09/2014,TRAINING AND EDUCATION,CORPORATE PROJECT OFFICE,PROF SER LRNG&DEV-STAFF TRNING,DATRIX LEARNING SERVICES,0000213909,995.00
DEPARTMENT OF ENERGY AND CLIMATE CHANGE,THE COAL AUTHORITY,01/09/2014,CHILDCARE VOUCHERS,ENVIRONMENT,PERSONNEL RLTD-STAFF CHILDCARE,FIDELITI LIMITED,0000213721,50.00
DEPARTMENT OF ENERGY AND CLIMATE CHANGE,THE COAL AUTHORITY,18/07/2014,CONSULTANCY,ENVIRONMENT,PROF SER CNSLTNCY-PROCUREMENT,UK SHARED BUSINESS SERV L,0000212660,"24,395.00"
DEPARTMENT OF ENERGY AND CLIMATE CHANGE,THE COAL AUTHORITY,29/08/2014,CONSULTANTS OPERATIONS,ENVIRONMENT,CONSTRUCTION-CNSTRN SER PROVDR,J N BENTLEY LIMITED,0000213609,-146.78
DEPARTMENT OF ENERGY AND CLIMATE CHANGE,THE COAL AUTHORITY,19/08/2014,CONSULTANTS OPERATIONS,ENVIRONMENT,PROF SER CNSLTNCY-MRKTNG&CMTN,CRANFIELD UNIVERSITY,0000213823,"3,375.31"
DEPARTMENT OF ENERGY AND CLIMATE CHANGE,THE COAL AUTHORITY,29/08/2014,CONSULTANTS OPERATIONS,ENVIRONMENT,CONSTRUCTION-CNSTRN SER PROVDR,HYDRO LOGIC SERVICES LLP,0000213872,487.23
DEPARTMENT OF ENERGY AND CLIMATE CHANGE,THE COAL AUTHORITY,29/08/2014,CONSULTANTS OPERATIONS,ENVIRONMENT,CONSTRUCTION-CNSTRN SER PROVDR,HYDRO LOGIC SERVICES LLP,0000213873,472.75
DEPARTMENT OF ENERGY AND CLIMATE CHANGE,THE COAL AUTHORITY,31/07/2014,CURR YR ADDNS MINEWATER SCHEME,ENVIRONMENT,PROF SER TECH-ENGINEERING SER,MOTT MACDONALD LTD,0000213134,"1,101.40"
DEPARTMENT OF ENERGY AND CLIMATE CHANGE,THE COAL AUTHORITY,31/07/2014,CURR YR ADDNS MINEWATER SCHEME,ENVIRONMENT,PROF SER TECH-ENGINEERING SER,MOTT MACDONALD LTD,0000213136,635.10
DEPARTMENT OF ENERGY AND CLIMATE CHANGE,THE COAL AUTHORITY,31/07/2014,CURR YR ADDNS MINEWATER SCHEME,ENVIRONMENT,PROF SER TECH-ENGINEERING SER,MOTT MACDONALD LTD,0000213137,"2,902.24"
DEPARTMENT OF ENERGY AND CLIMATE CHANGE,THE COAL AUTHORITY,05/08/2014,CURR YR ADDNS MINEWATER SCHEME,ENVIRONMENT,CONSTRUCTION-MAIN CONTRACTORS,INTEGRATED WATER SERVICES,0000213276,"8,466.87"
DEPARTMENT OF ENERGY AND CLIMATE CHANGE,THE COAL AUTHORITY,23/07/2014,CURR YR ADDNS MINEWATER SCHEME,ENVIRONMENT,CONSTRUCTION-MAIN CONTRACTORS,INTEGRATED WATER SERVICES,0000213286,"10,113.60"
DEPARTMENT OF ENERGY AND CLIMATE CHANGE,THE COAL AUTHORITY,07/08/2014,CURR YR ADDNS MINEWATER SCHEME,ENVIRONMENT,CONSTRUCTION-MAIN CONTRACTORS,INTEGRATED WATER SERVICES,0000213292,"122,295.22"
DEPARTMENT OF ENERGY AND CLIMATE CHANGE,THE COAL AUTHORITY,07/08/2014,CURR YR ADDNS MINEWATER SCHEME,ENVIRONMENT,CONSTRUCTION-MAIN CONTRACTORS,INTEGRATED WATER SERVICES,0000213293,"45,458.00"
DEPARTMENT OF ENERGY AND CLIMATE CHANGE,THE COAL AUTHORITY,18/08/2014,CURR YR ADDNS MINEWATER SCHEME,ENVIRONMENT,PROF SER TECH-ENGINEERING SER,ATKINS LIMITED,0000213304,"9,382.25"
DEPARTMENT OF ENERGY AND CLIMATE CHANGE,THE COAL AUTHORITY,29/06/2014,CURR YR ADDNS MINEWATER SCHEME,ENVIRONMENT,CONSTRUCTION-MAIN CONTRACTORS,J N BENTLEY LIMITED,0000213306,"-2,548.20"
DEPARTMENT OF ENERGY AND CLIMATE CHANGE,THE COAL AUTHORITY,29/08/2014,CURR YR ADDNS MINEWATER SCHEME,ENVIRONMENT,CONSTRUCTION-MAIN CONTRACTORS,J N BENTLEY LIMITED,0000213607,-803.91
DEPARTMENT OF ENERGY AND CLIMATE CHANGE,THE COAL AUTHORITY,29/08/2014,CURR YR ADDNS MINEWATER SCHEME,ENVIRONMENT,CONSTRUCTION-MAIN CONTRACTORS,J N BENTLEY LIMITED,0000213610,45.00
DEPARTMENT OF ENERGY AND CLIMATE CHANGE,THE COAL AUTHORITY,28/08/2014,CURR YR ADDNS MINEWATER SCHEME,ENVIRONMENT,PROF SER TECH-ENGINEERING SER,MOTT MACDONALD LTD,0000213643,"1,349.90"
DEPARTMENT OF ENERGY AND CLIMATE CHANGE,THE COAL AUTHORITY,10/09/2014,CURR YR ADDNS MINEWATER SCHEME,ENVIRONMENT,CONSTRUCTION-MAIN CONTRACTORS,INTEGRATED WATER SERVICES,0000213969,"56,960.58"
DEPARTMENT OF ENERGY AND CLIMATE CHANGE,THE COAL AUTHORITY,04/09/2014,CURR YR ADDNS MINEWATER SCHEME,ENVIRONMENT,CONSTRUCTION-MAIN CONTRACTORS,RMV CRD DC 213306 COPY,35001154,"2,548.20"
DEPARTMENT OF ENERGY AND CLIMATE CHANGE,THE COAL AUTHORITY,31/08/2014,FARES - AIR,ENVIRONMENT,TRAVEL&EVENTS-AIR,REDFERN TRAVEL LTD,0000213892,468.92
DEPARTMENT OF ENERGY AND CLIMATE CHANGE,THE COAL AUTHORITY,31/08/2014,FARES - RAIL,ENVIRONMENT,TRAVEL&EVENTS-RAIL,REDFERN TRAVEL LTD,0000213892,193.27
DEPARTMENT OF ENERGY AND CLIMATE CHANGE,THE COAL AUTHORITY,08/09/2014,FARES - RAIL,ENVIRONMENT,TRAVEL&EVENTS-RAIL,COMPANY BARCLAYCARD,0000214052,3.70
DEPARTMENT OF ENERGY AND CLIMATE CHANGE,THE COAL AUTHORITY,08/09/2014,FARES - RAIL,ENVIRONMENT,TRAVEL&EVENTS-RAIL,COMPANY BARCLAYCARD,0000214139,33.50
DEPARTMENT OF ENERGY AND CLIMATE CHANGE,THE COAL AUTHORITY,31/08/2014,HOTEL ACCOMMODATION,ENVIRONMENT,TRAVEL&EVENTS-HOTELS,REDFERN TRAVEL LTD,0000213896,2.37
DEPARTMENT OF ENERGY AND CLIMATE CHANGE,THE COAL AUTHORITY,08/09/2014,HOTEL ACCOMMODATION,ENVIRONMENT,TRAVEL&EVENTS-HOTELS,COMPANY BARCLAYCARD,0000214048,271.60
DEPARTMENT OF ENERGY AND CLIMATE CHANGE,THE COAL AUTHORITY,08/09/2014,HOTEL ACCOMMODATION,ENVIRONMENT,TRAVEL&EVENTS-HOTELS,COMPANY BARCLAYCARD,0000214116,271.60
DEPARTMENT OF ENERGY AND CLIMATE CHANGE,THE COAL AUTHORITY,23/09/2014,HOTEL ACCOMMODATION,ENVIRONMENT,TRAVEL&EVENTS-HOTELS,STAFF EXPENSES CONTROL,0000214268,54.38
DEPARTMENT OF ENERGY AND CLIMATE CHANGE,THE COAL AUTHORITY,08/09/2014,INCIDENTALS,ENVIRONMENT,VEHICLES-FLEET MANAGEMENT,COMPANY BARCLAYCARD,0000214135,20.00
DEPARTMENT OF ENERGY AND CLIMATE CHANGE,THE COAL AUTHORITY,23/09/2014,INCIDENTALS,ENVIRONMENT,PSPES NOT APPLICABLE,STAFF EXPENSES CONTROL,0000214264,20.53
DEPARTMENT OF ENERGY AND CLIMATE CHANGE,THE COAL AUTHORITY,02/09/2014,LEGAL COSTS,ENVIRONMENT,PROF SER-LEGAL SERVICES,DLA PIPER UK LLP,0000213693,731.00
DEPARTMENT OF ENERGY AND CLIMATE CHANGE,THE COAL AUTHORITY,21/08/2014,LEGAL COSTS,ENVIRONMENT,PROF SER-LEGAL SERVICES,WALKER MORRIS,0000213694,"4,016.00"
DEPARTMENT OF ENERGY AND CLIMATE CHANGE,THE COAL AUTHORITY,19/09/2014,LEGAL COSTS,ENVIRONMENT,PROF SER-LEGAL SERVICES,WALKER MORRIS,0000214381,"1,573.25"
DEPARTMENT OF ENERGY AND CLIMATE CHANGE,THE COAL AUTHORITY,04/09/2014,LEGAL COSTS,ENVIRONMENT,PROF SER-LEGAL SERVICES,ANDERSON STRATHERN,0000214382,"2,458.00"
DEPARTMENT OF ENERGY AND CLIMATE CHANGE,THE COAL AUTHORITY,29/09/2014,LEGAL COSTS,ENVIRONMENT,PROF SER-LEGAL SERVICES,FEES RELATING TO BATES BO,0000214394,"1,020.00"
DEPARTMENT OF ENERGY AND CLIMATE CHANGE,THE COAL AUTHORITY,29/08/2014,LIABILITY SITE MONTHLY MAINT,ENVIRONMENT,PROF SER CNSLTNCY-PPM CNSLTNCY,INTEGRATED WATER SERVICES,0000213670,"5,355.00"
DEPARTMENT OF ENERGY AND CLIMATE CHANGE,THE COAL AUTHORITY,29/08/2014,LIABILITY SITE MONTHLY MAINT,ENVIRONMENT,PROF SER CNSLTNCY-PPM CNSLTNCY,INTEGRATED WATER SERVICES,0000213674,"8,925.64"
DEPARTMENT OF ENERGY AND CLIMATE CHANGE,THE COAL AUTHORITY,29/08/2014,LIABILITY SITE MONTHLY MAINT,ENVIRONMENT,CONSTRUCTION-CNSTRN SER PROVDR,MOUCHEL LTD,0000213881,"1,498.86"
DEPARTMENT OF ENERGY AND CLIMATE CHANGE,THE COAL AUTHORITY,26/08/2014,LIABILITY SITES AD-HOC TASKS,ENVIRONMENT,CONSTRUCTION-MAIN CONTRACTORS,INTEGRATED WATER SERVICES,0000213543,462.73
DEPARTMENT OF ENERGY AND CLIMATE CHANGE,THE COAL AUTHORITY,26/08/2014,LIABILITY SITES AD-HOC TASKS,ENVIRONMENT,CONSTRUCTION-MAIN CONTRACTORS,INTEGRATED WATER SERVICES,0000213543,"6,374.53"
DEPARTMENT OF ENERGY AND CLIMATE CHANGE,THE COAL AUTHORITY,26/08/2014,LIABILITY SITES AD-HOC TASKS,ENVIRONMENT,CONSTRUCTION-MAIN CONTRACTORS,INTEGRATED WATER SERVICES,0000213543,393.57
DEPARTMENT OF ENERGY AND CLIMATE CHANGE,THE COAL AUTHORITY,19/08/2014,M/W CHEMICAL OPERATIONAL,ENVIRONMENT,ENGRNG GOODS-NON-MDICL CHMCLS,BIOCHEMICA UK LIMITED,0000213329,560.00
DEPARTMENT OF ENERGY AND CLIMATE CHANGE,THE COAL AUTHORITY,27/08/2014,M/W CHEMICAL OPERATIONAL,ENVIRONMENT,ENGRNG GOODS-NON-MDICL CHMCLS,BIOCHEMICA UK LIMITED,0000213733,524.00
DEPARTMENT OF ENERGY AND CLIMATE CHANGE,THE COAL AUTHORITY,20/08/2014,M/W CHEMICAL OPERATIONAL,ENVIRONMENT,ENGRNG GOODS-NON-MDICL CHMCLS,BIOCHEMICA UK LIMITED,0000213735,524.00
DEPARTMENT OF ENERGY AND CLIMATE CHANGE,THE COAL AUTHORITY,29/08/2014,M/W CHEMICAL OPERATIONAL,ENVIRONMENT,ENGRNG GOODS-NON-MDICL CHMCLS,BIOCHEMICA UK LIMITED,0000213736,"4,700.00"
DEPARTMENT OF ENERGY AND CLIMATE CHANGE,THE COAL AUTHORITY,03/09/2014,M/W CHEMICAL OPERATIONAL,ENVIRONMENT,ENGRNG GOODS-NON-MDICL CHMCLS,BIOCHEMICA UK LIMITED,0000213861,524.00
DEPARTMENT OF ENERGY AND CLIMATE CHANGE,THE COAL AUTHORITY,09/09/2014,M/W CHEMICAL OPERATIONAL,ENVIRONMENT,ENGRNG GOODS-NON-MDICL CHMCLS,UNIVAR B V,0000213862,"5,133.80"
DEPARTMENT OF ENERGY AND CLIMATE CHANGE,THE COAL AUTHORITY,08/09/2014,M/W CHEMICAL OPERATIONAL,ENVIRONMENT,ENGRNG GOODS-NON-MDICL CHMCLS,BIOCHEMICA UK LIMITED,0000213879,648.00
DEPARTMENT OF ENERGY AND CLIMATE CHANGE,THE COAL AUTHORITY,29/08/2014,M/W CHEMICAL OPERATIONAL,ENVIRONMENT,ENGRNG GOODS-NON-MDICL CHMCLS,GOLDCREST CHEMICALS LIMIT,0000213885,"3,279.98"
DEPARTMENT OF ENERGY AND CLIMATE CHANGE,THE COAL AUTHORITY,12/09/2014,M/W CHEMICAL OPERATIONAL,ENVIRONMENT,ENGRNG GOODS-NON-MDICL CHMCLS,BIOCHEMICA UK LIMITED,0000214019,"2,240.00"
DEPARTMENT OF ENERGY AND CLIMATE CHANGE,THE COAL AUTHORITY,10/09/2014,M/W CHEMICAL OPERATIONAL,ENVIRONMENT,ENGRNG GOODS-NON-MDICL CHMCLS,BIOCHEMICA UK LIMITED,0000214020,524.00
DEPARTMENT OF ENERGY AND CLIMATE CHANGE,THE COAL AUTHORITY,16/09/2014,M/W CHEMICAL OPERATIONAL,ENVIRONMENT,ENGRNG GOODS-NON-MDICL CHMCLS,GOLDCREST CHEMICALS LIMIT,0000214192,"3,265.83"
DEPARTMENT OF ENERGY AND CLIMATE CHANGE,THE COAL AUTHORITY,26/08/2014,M/W CNTRCTR-OPRTNL MNTLY TSKS,ENVIRONMENT,CONSTRUCTION-MAIN CONTRACTORS,INTEGRATED WATER SERVICES,0000213536,506.25
DEPARTMENT OF ENERGY AND CLIMATE CHANGE,THE COAL AUTHORITY,26/08/2014,M/W CNTRCTR-OPRTNL MNTLY TSKS,ENVIRONMENT,CONSTRUCTION-MAIN CONTRACTORS,INTEGRATED WATER SERVICES,0000213538,"6,077.68"
DEPARTMENT OF ENERGY AND CLIMATE CHANGE,THE COAL AUTHORITY,26/08/2014,M/W CNTRCTR-OPRTNL MNTLY TSKS,ENVIRONMENT,CONSTRUCTION-MAIN CONTRACTORS,INTEGRATED WATER SERVICES,0000213539,209.04
DEPARTMENT OF ENERGY AND CLIMATE CHANGE,THE COAL AUTHORITY,26/08/2014,M/W CNTRCTR-OPRTNL MNTLY TSKS,ENVIRONMENT,CONSTRUCTION-MAIN CONTRACTORS,INTEGRATED WATER SERVICES,0000213539,"2,555.77"
DEPARTMENT OF ENERGY AND CLIMATE CHANGE,THE COAL AUTHORITY,26/08/2014,M/W CNTRCTR-OPRTNL MNTLY TSKS,ENVIRONMENT,CONSTRUCTION-MAIN CONTRACTORS,INTEGRATED WATER SERVICES,0000213539,"1,000.66"
DEPARTMENT OF ENERGY AND CLIMATE CHANGE,THE COAL AUTHORITY,26/08/2014,M/W CNTRCTR-OPRTNL MNTLY TSKS,ENVIRONMENT,CONSTRUCTION-MAIN CONTRACTORS,INTEGRATED WATER SERVICES,0000213539,"2,702.27"
DEPARTMENT OF ENERGY AND CLIMATE CHANGE,THE COAL AUTHORITY,26/08/2014,M/W CNTRCTR-OPRTNL MNTLY TSKS,ENVIRONMENT,CONSTRUCTION-MAIN CONTRACTORS,INTEGRATED WATER SERVICES,0000213539,64.48
DEPARTMENT OF ENERGY AND CLIMATE CHANGE,THE COAL AUTHORITY,26/08/2014,M/W CNTRCTR-OPRTNL MNTLY TSKS,ENVIRONMENT,CONSTRUCTION-MAIN CONTRACTORS,INTEGRATED WATER SERVICES,0000213539,33.32
DEPARTMENT OF ENERGY AND CLIMATE CHANGE,THE COAL AUTHORITY,26/08/2014,M/W CNTRCTR-OPRTNL MNTLY TSKS,ENVIRONMENT,CONSTRUCTION-MAIN CONTRACTORS,INTEGRATED WATER SERVICES,0000213539,193.73
DEPARTMENT OF ENERGY AND CLIMATE CHANGE,THE COAL AUTHORITY,26/08/2014,M/W CNTRCTR-OPRTNL MNTLY TSKS,ENVIRONMENT,CONSTRUCTION-MAIN CONTRACTORS,INTEGRATED WATER SERVICES,0000213540,"1,253.20"
DEPARTMENT OF ENERGY AND CLIMATE CHANGE,THE COAL AUTHORITY,26/08/2014,M/W CNTRCTR-OPRTNL MNTLY TSKS,ENVIRONMENT,CONSTRUCTION-MAIN CONTRACTORS,INTEGRATED WATER SERVICES,0000213540,"1,684.00"
DEPARTMENT OF ENERGY AND CLIMATE CHANGE,THE COAL AUTHORITY,26/08/2014,M/W CNTRCTR-OPRTNL MNTLY TSKS,ENVIRONMENT,CONSTRUCTION-MAIN CONTRACTORS,INTEGRATED WATER SERVICES,0000213540,"2,672.17"
DEPARTMENT OF ENERGY AND CLIMATE CHANGE,THE COAL AUTHORITY,26/08/2014,M/W CNTRCTR-OPRTNL MNTLY TSKS,ENVIRONMENT,CONSTRUCTION-MAIN CONTRACTORS,INTEGRATED WATER SERVICES,0000213541,143.40
DEPARTMENT OF ENERGY AND CLIMATE CHANGE,THE COAL AUTHORITY,26/08/2014,M/W CNTRCTR-OPRTNL MNTLY TSKS,ENVIRONMENT,CONSTRUCTION-MAIN CONTRACTORS,INTEGRATED WATER SERVICES,0000213541,179.25
DEPARTMENT OF ENERGY AND CLIMATE CHANGE,THE COAL AUTHORITY,26/08/2014,M/W CNTRCTR-OPRTNL MNTLY TSKS,ENVIRONMENT,CONSTRUCTION-MAIN CONTRACTORS,INTEGRATED WATER SERVICES,0000213541,"1,109.45"
DEPARTMENT OF ENERGY AND CLIMATE CHANGE,THE COAL AUTHORITY,26/08/2014,M/W CNTRCTR-OPRTNL MNTLY TSKS,ENVIRONMENT,CONSTRUCTION-MAIN CONTRACTORS,INTEGRATED WATER SERVICES,0000213541,"1,952.34"
DEPARTMENT OF ENERGY AND CLIMATE CHANGE,THE COAL AUTHORITY,26/08/2014,M/W CNTRCTR-OPRTNL MNTLY TSKS,ENVIRONMENT,CONSTRUCTION-MAIN CONTRACTORS,INTEGRATED WATER SERVICES,0000213541,251.08
DEPARTMENT OF ENERGY AND CLIMATE CHANGE,THE COAL AUTHORITY,26/08/2014,M/W CNTRCTR-OPRTNL MNTLY TSKS,ENVIRONMENT,CONSTRUCTION-MAIN CONTRACTORS,INTEGRATED WATER SERVICES,0000213541,914.46
DEPARTMENT OF ENERGY AND CLIMATE CHANGE,THE COAL AUTHORITY,26/08/2014,M/W CNTRCTR-OPRTNL MNTLY TSKS,ENVIRONMENT,CONSTRUCTION-MAIN CONTRACTORS,INTEGRATED WATER SERVICES,0000213542,628.46
DEPARTMENT OF ENERGY AND CLIMATE CHANGE,THE COAL AUTHORITY,26/08/2014,M/W CNTRCTR-OPRTNL MNTLY TSKS,ENVIRONMENT,CONSTRUCTION-MAIN CONTRACTORS,INTEGRATED WATER SERVICES,0000213542,277.32
DEPARTMENT OF ENERGY AND CLIMATE CHANGE,THE COAL AUTHORITY,26/08/2014,M/W CNTRCTR-OPRTNL MNTLY TSKS,ENVIRONMENT,CONSTRUCTION-MAIN CONTRACTORS,INTEGRATED WATER SERVICES,0000213542,"1,222.22"
DEPARTMENT OF ENERGY AND CLIMATE CHANGE,THE COAL AUTHORITY,26/08/2014,M/W CNTRCTR-OPRTNL MNTLY TSKS,ENVIRONMENT,CONSTRUCTION-MAIN CONTRACTORS,INTEGRATED WATER SERVICES,0000213542,"2,910.63"
DEPARTMENT OF ENERGY AND CLIMATE CHANGE,THE COAL AUTHORITY,26/08/2014,M/W CNTRCTR-OPRTNL MNTLY TSKS,ENVIRONMENT,CONSTRUCTION-MAIN CONTRACTORS,INTEGRATED WATER SERVICES,0000213543,143.40
DEPARTMENT OF ENERGY AND CLIMATE CHANGE,THE COAL AUTHORITY,26/08/2014,M/W CNTRCTR-OPRTNL MNTLY TSKS,ENVIRONMENT,CONSTRUCTION-MAIN CONTRACTORS,INTEGRATED WATER SERVICES,0000213543,891.37
DEPARTMENT OF ENERGY AND CLIMATE CHANGE,THE COAL AUTHORITY,26/08/2014,M/W CNTRCTR-OPRTNL MNTLY TSKS,ENVIRONMENT,CONSTRUCTION-MAIN CONTRACTORS,INTEGRATED WATER SERVICES,0000213543,"1,417.96"
DEPARTMENT OF ENERGY AND CLIMATE CHANGE,THE COAL AUTHORITY,26/08/2014,M/W CNTRCTR-OPRTNL MNTLY TSKS,ENVIRONMENT,CONSTRUCTION-MAIN CONTRACTORS,INTEGRATED WATER SERVICES,0000213543,"1,157.66"
DEPARTMENT OF ENERGY AND CLIMATE CHANGE,THE COAL AUTHORITY,26/08/2014,M/W CNTRCTR-OPRTNL MNTLY TSKS,ENVIRONMENT,CONSTRUCTION-MAIN CONTRACTORS,INTEGRATED WATER SERVICES,0000213543,551.25
DEPARTMENT OF ENERGY AND CLIMATE CHANGE,THE COAL AUTHORITY,26/08/2014,M/W CNTRCTR-OPRTNL MNTLY TSKS,ENVIRONMENT,CONSTRUCTION-MAIN CONTRACTORS,INTEGRATED WATER SERVICES,0000213544,755.53
DEPARTMENT OF ENERGY AND CLIMATE CHANGE,THE COAL AUTHORITY,22/08/2014,M/W CNTRCTR-OPRTNL MNTLY TSKS,ENVIRONMENT,CONSTRUCTION-MAIN CONTRACTORS,INTEGRATED WATER SERVICES,0000213546,430.20
DEPARTMENT OF ENERGY AND CLIMATE CHANGE,THE COAL AUTHORITY,22/08/2014,M/W CNTRCTR-OPRTNL MNTLY TSKS,ENVIRONMENT,CONSTRUCTION-MAIN CONTRACTORS,INTEGRATED WATER SERVICES,0000213547,"4,722.51"
DEPARTMENT OF ENERGY AND CLIMATE CHANGE,THE COAL AUTHORITY,22/08/2014,M/W CNTRCTR-OPRTNL MNTLY TSKS,ENVIRONMENT,CONSTRUCTION-MAIN CONTRACTORS,INTEGRATED WATER SERVICES,0000213547,120.11
DEPARTMENT OF ENERGY AND CLIMATE CHANGE,THE COAL AUTHORITY,22/08/2014,M/W CNTRCTR-OPRTNL MNTLY TSKS,ENVIRONMENT,CONSTRUCTION-MAIN CONTRACTORS,INTEGRATED WATER SERVICES,0000213547,174.19
DEPARTMENT OF ENERGY AND CLIMATE CHANGE,THE COAL AUTHORITY,22/08/2014,M/W CNTRCTR-OPRTNL MNTLY TSKS,ENVIRONMENT,CONSTRUCTION-MAIN CONTRACTORS,INTEGRATED WATER SERVICES,0000213548,"3,334.52"
DEPARTMENT OF ENERGY AND CLIMATE CHANGE,THE COAL AUTHORITY,22/08/2014,M/W CNTRCTR-OPRTNL MNTLY TSKS,ENVIRONMENT,CONSTRUCTION-MAIN CONTRACTORS,INTEGRATED WATER SERVICES,0000213548,303.79
DEPARTMENT OF ENERGY AND CLIMATE CHANGE,THE COAL AUTHORITY,22/08/2014,M/W CNTRCTR-OPRTNL MNTLY TSKS,ENVIRONMENT,CONSTRUCTION-MAIN CONTRACTORS,INTEGRATED WATER SERVICES,0000213548,"1,550.68"
DEPARTMENT OF ENERGY AND CLIMATE CHANGE,THE COAL AUTHORITY,22/08/2014,M/W CNTRCTR-OPRTNL MNTLY TSKS,ENVIRONMENT,CONSTRUCTION-MAIN CONTRACTORS,INTEGRATED WATER SERVICES,0000213549,"2,347.58"
DEPARTMENT OF ENERGY AND CLIMATE CHANGE,THE COAL AUTHORITY,22/08/2014,M/W CNTRCTR-OPRTNL MNTLY TSKS,ENVIRONMENT,CONSTRUCTION-MAIN CONTRACTORS,INTEGRATED WATER SERVICES,0000213549,528.54
DEPARTMENT OF ENERGY AND CLIMATE CHANGE,THE COAL AUTHORITY,08/09/2014,M/W CNTRCTR-OPRTNL MNTLY TSKS,ENVIRONMENT,CONSTRUCTION-MAIN CONTRACTORS,INTEGRATED WATER SERVICES,0000213918,"3,562.41"
DEPARTMENT OF ENERGY AND CLIMATE CHANGE,THE COAL AUTHORITY,08/09/2014,M/W CNTRCTR-OPRTNL MNTLY TSKS,ENVIRONMENT,CONSTRUCTION-MAIN CONTRACTORS,INTEGRATED WATER SERVICES,0000213919,"1,022.86"
DEPARTMENT OF ENERGY AND CLIMATE CHANGE,THE COAL AUTHORITY,08/09/2014,M/W CNTRCTR-OPRTNL MNTLY TSKS,ENVIRONMENT,CONSTRUCTION-MAIN CONTRACTORS,INTEGRATED WATER SERVICES,0000213919,382.50
DEPARTMENT OF ENERGY AND CLIMATE CHANGE,THE COAL AUTHORITY,08/09/2014,M/W CNTRCTR-OPRTNL MNTLY TSKS,ENVIRONMENT,CONSTRUCTION-MAIN CONTRACTORS,INTEGRATED WATER SERVICES,0000213919,"1,656.26"
DEPARTMENT OF ENERGY AND CLIMATE CHANGE,THE COAL AUTHORITY,08/09/2014,M/W CNTRCTR-OPRTNL MNTLY TSKS,ENVIRONMENT,CONSTRUCTION-MAIN CONTRACTORS,INTEGRATED WATER SERVICES,0000213920,"9,534.96"
DEPARTMENT OF ENERGY AND CLIMATE CHANGE,THE COAL AUTHORITY,08/09/2014,M/W CNTRCTR-OPRTNL MNTLY TSKS,ENVIRONMENT,CONSTRUCTION-MAIN CONTRACTORS,INTEGRATED WATER SERVICES,0000213921,470.67
DEPARTMENT OF ENERGY AND CLIMATE CHANGE,THE COAL AUTHORITY,08/09/2014,M/W CNTRCTR-OPRTNL MNTLY TSKS,ENVIRONMENT,CONSTRUCTION-MAIN CONTRACTORS,INTEGRATED WATER SERVICES,0000213923,428.46
DEPARTMENT OF ENERGY AND CLIMATE CHANGE,THE COAL AUTHORITY,08/09/2014,M/W CNTRCTR-OPRTNL MNTLY TSKS,ENVIRONMENT,CONSTRUCTION-MAIN CONTRACTORS,INTEGRATED WATER SERVICES,0000213924,"2,054.22"
DEPARTMENT OF ENERGY AND CLIMATE CHANGE,THE COAL AUTHORITY,11/09/2014,M/W CNTRCTR-OPRTNL MNTLY TSKS,ENVIRONMENT,CONSTRUCTION-MAIN CONTRACTORS,INTEGRATED WATER SERVICES,0000213967,"4,551.92"
DEPARTMENT OF ENERGY AND CLIMATE CHANGE,THE COAL AUTHORITY,12/09/2014,M/W CNTRCTR-OPRTNL MNTLY TSKS,ENVIRONMENT,CONSTRUCTION-MAIN CONTRACTORS,INTEGRATED WATER SERVICES,0000213979,"1,350.00"
DEPARTMENT OF ENERGY AND CLIMATE CHANGE,THE COAL AUTHORITY,12/09/2014,M/W CNTRCTR-OPRTNL MNTLY TSKS,ENVIRONMENT,CONSTRUCTION-MAIN CONTRACTORS,INTEGRATED WATER SERVICES,0000214030,22.50
DEPARTMENT OF ENERGY AND CLIMATE CHANGE,THE COAL AUTHORITY,12/09/2014,M/W CNTRCTR-OPRTNL MNTLY TSKS,ENVIRONMENT,CONSTRUCTION-MAIN CONTRACTORS,INTEGRATED WATER SERVICES,0000214030,362.19
DEPARTMENT OF ENERGY AND CLIMATE CHANGE,THE COAL AUTHORITY,12/09/2014,M/W CNTRCTR-OPRTNL MNTLY TSKS,ENVIRONMENT,CONSTRUCTION-MAIN CONTRACTORS,INTEGRATED WATER SERVICES,0000214030,440.80
DEPARTMENT OF ENERGY AND CLIMATE CHANGE,THE COAL AUTHORITY,12/09/2014,M/W CNTRCTR-OPRTNL MNTLY TSKS,ENVIRONMENT,CONSTRUCTION-MAIN CONTRACTORS,INTEGRATED WATER SERVICES,0000214030,74.80
DEPARTMENT OF ENERGY AND CLIMATE CHANGE,THE COAL AUTHORITY,12/09/2014,M/W CNTRCTR-OPRTNL MNTLY TSKS,ENVIRONMENT,CONSTRUCTION-MAIN CONTRACTORS,INTEGRATED WATER SERVICES,0000214030,58.06
DEPARTMENT OF ENERGY AND CLIMATE CHANGE,THE COAL AUTHORITY,12/09/2014,M/W CNTRCTR-OPRTNL MNTLY TSKS,ENVIRONMENT,CONSTRUCTION-MAIN CONTRACTORS,INTEGRATED WATER SERVICES,0000214030,7.31
DEPARTMENT OF ENERGY AND CLIMATE CHANGE,THE COAL AUTHORITY,12/09/2014,M/W CNTRCTR-OPRTNL MNTLY TSKS,ENVIRONMENT,CONSTRUCTION-MAIN CONTRACTORS,INTEGRATED WATER SERVICES,0000214031,"3,290.96"
DEPARTMENT OF ENERGY AND CLIMATE CHANGE,THE COAL AUTHORITY,12/09/2014,M/W CNTRCTR-OPRTNL MNTLY TSKS,ENVIRONMENT,CONSTRUCTION-MAIN CONTRACTORS,INTEGRATED WATER SERVICES,0000214031,281.25
DEPARTMENT OF ENERGY AND CLIMATE CHANGE,THE COAL AUTHORITY,12/09/2014,M/W CNTRCTR-OPRTNL MNTLY TSKS,ENVIRONMENT,CONSTRUCTION-MAIN CONTRACTORS,INTEGRATED WATER SERVICES,0000214031,304.68
DEPARTMENT OF ENERGY AND CLIMATE CHANGE,THE COAL AUTHORITY,12/09/2014,M/W CNTRCTR-OPRTNL MNTLY TSKS,ENVIRONMENT,CONSTRUCTION-MAIN CONTRACTORS,INTEGRATED WATER SERVICES,0000214032,"6,537.79"
DEPARTMENT OF ENERGY AND CLIMATE CHANGE,THE COAL AUTHORITY,16/09/2014,M/W CNTRCTR-OPRTNL MNTLY TSKS,ENVIRONMENT,CONSTRUCTION-MAIN CONTRACTORS,INTEGRATED WATER SERVICES,0000214071,143.14
DEPARTMENT OF ENERGY AND CLIMATE CHANGE,THE COAL AUTHORITY,16/09/2014,M/W CNTRCTR-OPRTNL MNTLY TSKS,ENVIRONMENT,CONSTRUCTION-MAIN CONTRACTORS,INTEGRATED WATER SERVICES,0000214071,"4,398.36"
DEPARTMENT OF ENERGY AND CLIMATE CHANGE,THE COAL AUTHORITY,16/09/2014,M/W CNTRCTR-OPRTNL MNTLY TSKS,ENVIRONMENT,CONSTRUCTION-MAIN CONTRACTORS,INTEGRATED WATER SERVICES,0000214071,464.48
DEPARTMENT OF ENERGY AND CLIMATE CHANGE,THE COAL AUTHORITY,16/09/2014,M/W CNTRCTR-OPRTNL MNTLY TSKS,ENVIRONMENT,CONSTRUCTION-MAIN CONTRACTORS,INTEGRATED WATER SERVICES,0000214071,618.75
DEPARTMENT OF ENERGY AND CLIMATE CHANGE,THE COAL AUTHORITY,16/09/2014,M/W CNTRCTR-OPRTNL MNTLY TSKS,ENVIRONMENT,CONSTRUCTION-MAIN CONTRACTORS,INTEGRATED WATER SERVICES,0000214071,"1,086.75"
DEPARTMENT OF ENERGY AND CLIMATE CHANGE,THE COAL AUTHORITY,16/09/2014,M/W CNTRCTR-OPRTNL MNTLY TSKS,ENVIRONMENT,CONSTRUCTION-MAIN CONTRACTORS,INTEGRATED WATER SERVICES,0000214071,"2,336.56"
DEPARTMENT OF ENERGY AND CLIMATE CHANGE,THE COAL AUTHORITY,17/09/2014,M/W CNTRCTR-OPRTNL MNTLY TSKS,ENVIRONMENT,CONSTRUCTION-MAIN CONTRACTORS,INTEGRATED WATER SERVICES,0000214196,"2,478.98"
DEPARTMENT OF ENERGY AND CLIMATE CHANGE,THE COAL AUTHORITY,19/09/2014,M/W CNTRCTR-OPRTNL MNTLY TSKS,ENVIRONMENT,CONSTRUCTION-MAIN CONTRACTORS,INTEGRATED WATER SERVICES,0000214214,"1,692.30"
DEPARTMENT OF ENERGY AND CLIMATE CHANGE,THE COAL AUTHORITY,31/07/2014,M/W CONTRCTR OPRNTL MTHLY MAIN,ENVIRONMENT,CONSTRUCTION-MAIN CONTRACTORS,NATIONAL COAL MINING MUSE,0000213635,"3,880.00"
DEPARTMENT OF ENERGY AND CLIMATE CHANGE,THE COAL AUTHORITY,31/07/2014,M/W CONTRCTR OPRNTL MTHLY MAIN,ENVIRONMENT,CONSTRUCTION-MAIN CONTRACTORS,NATIONAL COAL MINING MUSE,0000213636,"1,543.33"
DEPARTMENT OF ENERGY AND CLIMATE CHANGE,THE COAL AUTHORITY,29/08/2014,M/W CONTRCTR OPRNTL MTHLY MAIN,ENVIRONMENT,PROF SER CNSLTNCY-PPM CNSLTNCY,INTEGRATED WATER SERVICES,0000213669,749.26
DEPARTMENT OF ENERGY AND CLIMATE CHANGE,THE COAL AUTHORITY,29/08/2014,M/W CONTRCTR OPRNTL MTHLY MAIN,ENVIRONMENT,PROF SER CNSLTNCY-PPM CNSLTNCY,INTEGRATED WATER SERVICES,0000213669,"1,887.36"
DEPARTMENT OF ENERGY AND CLIMATE CHANGE,THE COAL AUTHORITY,29/08/2014,M/W CONTRCTR OPRNTL MTHLY MAIN,ENVIRONMENT,PROF SER CNSLTNCY-PPM CNSLTNCY,INTEGRATED WATER SERVICES,0000213669,"4,720.04"
DEPARTMENT OF ENERGY AND CLIMATE CHANGE,THE COAL AUTHORITY,29/08/2014,M/W CONTRCTR OPRNTL MTHLY MAIN,ENVIRONMENT,PROF SER CNSLTNCY-PPM CNSLTNCY,INTEGRATED WATER SERVICES,0000213669,104.86
DEPARTMENT OF ENERGY AND CLIMATE CHANGE,THE COAL AUTHORITY,29/08/2014,M/W CONTRCTR OPRNTL MTHLY MAIN,ENVIRONMENT,PROF SER CNSLTNCY-PPM CNSLTNCY,INTEGRATED WATER SERVICES,0000213669,629.12
DEPARTMENT OF ENERGY AND CLIMATE CHANGE,THE COAL AUTHORITY,29/08/2014,M/W CONTRCTR OPRNTL MTHLY MAIN,ENVIRONMENT,PROF SER CNSLTNCY-PPM CNSLTNCY,INTEGRATED WATER SERVICES,0000213669,104.86
DEPARTMENT OF ENERGY AND CLIMATE CHANGE,THE COAL AUTHORITY,29/08/2014,M/W CONTRCTR OPRNTL MTHLY MAIN,ENVIRONMENT,PROF SER CNSLTNCY-PPM CNSLTNCY,INTEGRATED WATER SERVICES,0000213669,104.86
DEPARTMENT OF ENERGY AND CLIMATE CHANGE,THE COAL AUTHORITY,29/08/2014,M/W CONTRCTR OPRNTL MTHLY MAIN,ENVIRONMENT,PROF SER CNSLTNCY-PPM CNSLTNCY,INTEGRATED WATER SERVICES,0000213669,104.86
DEPARTMENT OF ENERGY AND CLIMATE CHANGE,THE COAL AUTHORITY,29/08/2014,M/W CONTRCTR OPRNTL MTHLY MAIN,ENVIRONMENT,PROF SER CNSLTNCY-PPM CNSLTNCY,INTEGRATED WATER SERVICES,0000213669,104.86
DEPARTMENT OF ENERGY AND CLIMATE CHANGE,THE COAL AUTHORITY,29/08/2014,M/W CONTRCTR OPRNTL MTHLY MAIN,ENVIRONMENT,PROF SER CNSLTNCY-PPM CNSLTNCY,INTEGRATED WATER SERVICES,0000213669,104.86
DEPARTMENT OF ENERGY AND CLIMATE CHANGE,THE COAL AUTHORITY,29/08/2014,M/W CONTRCTR OPRNTL MTHLY MAIN,ENVIRONMENT,PROF SER CNSLTNCY-PPM CNSLTNCY,INTEGRATED WATER SERVICES,0000213669,314.56
DEPARTMENT OF ENERGY AND CLIMATE CHANGE,THE COAL AUTHORITY,29/08/2014,M/W CONTRCTR OPRNTL MTHLY MAIN,ENVIRONMENT,PROF SER CNSLTNCY-PPM CNSLTNCY,INTEGRATED WATER SERVICES,0000213669,104.86
DEPARTMENT OF ENERGY AND CLIMATE CHANGE,THE COAL AUTHORITY,29/08/2014,M/W CONTRCTR OPRNTL MTHLY MAIN,ENVIRONMENT,PROF SER CNSLTNCY-PPM CNSLTNCY,INTEGRATED WATER SERVICES,0000213669,314.56
DEPARTMENT OF ENERGY AND CLIMATE CHANGE,THE COAL AUTHORITY,29/08/2014,M/W CONTRCTR OPRNTL MTHLY MAIN,ENVIRONMENT,PROF SER CNSLTNCY-PPM CNSLTNCY,INTEGRATED WATER SERVICES,0000213670,"5,355.00"
DEPARTMENT OF ENERGY AND CLIMATE CHANGE,THE COAL AUTHORITY,29/08/2014,M/W CONTRCTR OPRNTL MTHLY MAIN,ENVIRONMENT,PROF SER CNSLTNCY-PPM CNSLTNCY,INTEGRATED WATER SERVICES,0000213671,629.12
DEPARTMENT OF ENERGY AND CLIMATE CHANGE,THE COAL AUTHORITY,29/08/2014,M/W CONTRCTR OPRNTL MTHLY MAIN,ENVIRONMENT,PROF SER CNSLTNCY-PPM CNSLTNCY,INTEGRATED WATER SERVICES,0000213671,314.56
DEPARTMENT OF ENERGY AND CLIMATE CHANGE,THE COAL AUTHORITY,29/08/2014,M/W CONTRCTR OPRNTL MTHLY MAIN,ENVIRONMENT,PROF SER CNSLTNCY-PPM CNSLTNCY,INTEGRATED WATER SERVICES,0000213671,629.12
DEPARTMENT OF ENERGY AND CLIMATE CHANGE,THE COAL AUTHORITY,29/08/2014,M/W CONTRCTR OPRNTL MTHLY MAIN,ENVIRONMENT,PROF SER CNSLTNCY-PPM CNSLTNCY,INTEGRATED WATER SERVICES,0000213671,314.56
DEPARTMENT OF ENERGY AND CLIMATE CHANGE,THE COAL AUTHORITY,29/08/2014,M/W CONTRCTR OPRNTL MTHLY MAIN,ENVIRONMENT,PROF SER CNSLTNCY-PPM CNSLTNCY,INTEGRATED WATER SERVICES,0000213671,629.12
DEPARTMENT OF ENERGY AND CLIMATE CHANGE,THE COAL AUTHORITY,29/08/2014,M/W CONTRCTR OPRNTL MTHLY MAIN,ENVIRONMENT,PROF SER CNSLTNCY-PPM CNSLTNCY,INTEGRATED WATER SERVICES,0000213671,104.86
DEPARTMENT OF ENERGY AND CLIMATE CHANGE,THE COAL AUTHORITY,29/08/2014,M/W CONTRCTR OPRNTL MTHLY MAIN,ENVIRONMENT,PROF SER CNSLTNCY-PPM CNSLTNCY,INTEGRATED WATER SERVICES,0000213671,52.43
DEPARTMENT OF ENERGY AND CLIMATE CHANGE,THE COAL AUTHORITY,29/08/2014,M/W CONTRCTR OPRNTL MTHLY MAIN,ENVIRONMENT,PROF SER CNSLTNCY-PPM CNSLTNCY,INTEGRATED WATER SERVICES,0000213671,39.32
DEPARTMENT OF ENERGY AND CLIMATE CHANGE,THE COAL AUTHORITY,29/08/2014,M/W CONTRCTR OPRNTL MTHLY MAIN,ENVIRONMENT,PROF SER CNSLTNCY-PPM CNSLTNCY,INTEGRATED WATER SERVICES,0000213671,52.43
DEPARTMENT OF ENERGY AND CLIMATE CHANGE,THE COAL AUTHORITY,29/08/2014,M/W CONTRCTR OPRNTL MTHLY MAIN,ENVIRONMENT,PROF SER CNSLTNCY-PPM CNSLTNCY,INTEGRATED WATER SERVICES,0000213671,52.43
DEPARTMENT OF ENERGY AND CLIMATE CHANGE,THE COAL AUTHORITY,29/08/2014,M/W CONTRCTR OPRNTL MTHLY MAIN,ENVIRONMENT,PROF SER CNSLTNCY-PPM CNSLTNCY,INTEGRATED WATER SERVICES,0000213671,39.32
DEPARTMENT OF ENERGY AND CLIMATE CHANGE,THE COAL AUTHORITY,29/08/2014,M/W CONTRCTR OPRNTL MTHLY MAIN,ENVIRONMENT,PROF SER CNSLTNCY-PPM CNSLTNCY,INTEGRATED WATER SERVICES,0000213671,104.86
DEPARTMENT OF ENERGY AND CLIMATE CHANGE,THE COAL AUTHORITY,29/08/2014,M/W CONTRCTR OPRNTL MTHLY MAIN,ENVIRONMENT,PROF SER CNSLTNCY-PPM CNSLTNCY,INTEGRATED WATER SERVICES,0000213671,209.72
DEPARTMENT OF ENERGY AND CLIMATE CHANGE,THE COAL AUTHORITY,29/08/2014,M/W CONTRCTR OPRNTL MTHLY MAIN,ENVIRONMENT,PROF SER CNSLTNCY-PPM CNSLTNCY,INTEGRATED WATER SERVICES,0000213671,629.12
DEPARTMENT OF ENERGY AND CLIMATE CHANGE,THE COAL AUTHORITY,29/08/2014,M/W CONTRCTR OPRNTL MTHLY MAIN,ENVIRONMENT,PROF SER CNSLTNCY-PPM CNSLTNCY,INTEGRATED WATER SERVICES,0000213671,104.86
DEPARTMENT OF ENERGY AND CLIMATE CHANGE,THE COAL AUTHORITY,29/08/2014,M/W CONTRCTR OPRNTL MTHLY MAIN,ENVIRONMENT,PROF SER CNSLTNCY-PPM CNSLTNCY,INTEGRATED WATER SERVICES,0000213671,209.72
DEPARTMENT OF ENERGY AND CLIMATE CHANGE,THE COAL AUTHORITY,29/08/2014,M/W CONTRCTR OPRNTL MTHLY MAIN,ENVIRONMENT,PROF SER CNSLTNCY-PPM CNSLTNCY,INTEGRATED WATER SERVICES,0000213671,419.44
DEPARTMENT OF ENERGY AND CLIMATE CHANGE,THE COAL AUTHORITY,29/08/2014,M/W CONTRCTR OPRNTL MTHLY MAIN,ENVIRONMENT,PROF SER CNSLTNCY-PPM CNSLTNCY,INTEGRATED WATER SERVICES,0000213671,104.86
DEPARTMENT OF ENERGY AND CLIMATE CHANGE,THE COAL AUTHORITY,29/08/2014,M/W CONTRCTR OPRNTL MTHLY MAIN,ENVIRONMENT,PROF SER CNSLTNCY-PPM CNSLTNCY,INTEGRATED WATER SERVICES,0000213671,"3,355.36"
DEPARTMENT OF ENERGY AND CLIMATE CHANGE,THE COAL AUTHORITY,29/08/2014,M/W CONTRCTR OPRNTL MTHLY MAIN,ENVIRONMENT,PROF SER CNSLTNCY-PPM CNSLTNCY,INTEGRATED WATER SERVICES,0000213671,209.72
DEPARTMENT OF ENERGY AND CLIMATE CHANGE,THE COAL AUTHORITY,29/08/2014,M/W CONTRCTR OPRNTL MTHLY MAIN,ENVIRONMENT,PROF SER CNSLTNCY-PPM CNSLTNCY,INTEGRATED WATER SERVICES,0000213671,314.56
DEPARTMENT OF ENERGY AND CLIMATE CHANGE,THE COAL AUTHORITY,29/08/2014,M/W CONTRCTR OPRNTL MTHLY MAIN,ENVIRONMENT,PROF SER CNSLTNCY-PPM CNSLTNCY,INTEGRATED WATER SERVICES,0000213671,419.44
DEPARTMENT OF ENERGY AND CLIMATE CHANGE,THE COAL AUTHORITY,29/08/2014,M/W CONTRCTR OPRNTL MTHLY MAIN,ENVIRONMENT,PROF SER CNSLTNCY-PPM CNSLTNCY,INTEGRATED WATER SERVICES,0000213671,157.28
DEPARTMENT OF ENERGY AND CLIMATE CHANGE,THE COAL AUTHORITY,29/08/2014,M/W CONTRCTR OPRNTL MTHLY MAIN,ENVIRONMENT,PROF SER CNSLTNCY-PPM CNSLTNCY,INTEGRATED WATER SERVICES,0000213671,209.72
DEPARTMENT OF ENERGY AND CLIMATE CHANGE,THE COAL AUTHORITY,29/08/2014,M/W CONTRCTR OPRNTL MTHLY MAIN,ENVIRONMENT,PROF SER CNSLTNCY-PPM CNSLTNCY,INTEGRATED WATER SERVICES,0000213671,419.44
DEPARTMENT OF ENERGY AND CLIMATE CHANGE,THE COAL AUTHORITY,29/08/2014,M/W CONTRCTR OPRNTL MTHLY MAIN,ENVIRONMENT,PROF SER CNSLTNCY-PPM CNSLTNCY,INTEGRATED WATER SERVICES,0000213676,314.56
DEPARTMENT OF ENERGY AND CLIMATE CHANGE,THE COAL AUTHORITY,29/08/2014,M/W CONTRCTR OPRNTL MTHLY MAIN,ENVIRONMENT,PROF SER CNSLTNCY-PPM CNSLTNCY,INTEGRATED WATER SERVICES,0000213676,209.72
DEPARTMENT OF ENERGY AND CLIMATE CHANGE,THE COAL AUTHORITY,29/08/2014,M/W CONTRCTR OPRNTL MTHLY MAIN,ENVIRONMENT,PROF SER CNSLTNCY-PPM CNSLTNCY,INTEGRATED WATER SERVICES,0000213676,324.76
DEPARTMENT OF ENERGY AND CLIMATE CHANGE,THE COAL AUTHORITY,29/08/2014,M/W CONTRCTR OPRNTL MTHLY MAIN,ENVIRONMENT,PROF SER CNSLTNCY-PPM CNSLTNCY,INTEGRATED WATER SERVICES,0000213676,629.12
DEPARTMENT OF ENERGY AND CLIMATE CHANGE,THE COAL AUTHORITY,29/08/2014,M/W CONTRCTR OPRNTL MTHLY MAIN,ENVIRONMENT,PROF SER CNSLTNCY-PPM CNSLTNCY,INTEGRATED WATER SERVICES,0000213676,701.51
DEPARTMENT OF ENERGY AND CLIMATE CHANGE,THE COAL AUTHORITY,29/08/2014,M/W CONTRCTR OPRNTL MTHLY MAIN,ENVIRONMENT,PROF SER CNSLTNCY-PPM CNSLTNCY,INTEGRATED WATER SERVICES,0000213676,629.12
DEPARTMENT OF ENERGY AND CLIMATE CHANGE,THE COAL AUTHORITY,29/08/2014,M/W CONTRCTR OPRNTL MTHLY MAIN,ENVIRONMENT,PROF SER CNSLTNCY-PPM CNSLTNCY,INTEGRATED WATER SERVICES,0000213676,209.72
DEPARTMENT OF ENERGY AND CLIMATE CHANGE,THE COAL AUTHORITY,29/08/2014,M/W CONTRCTR OPRNTL MTHLY MAIN,ENVIRONMENT,PROF SER CNSLTNCY-PPM CNSLTNCY,INTEGRATED WATER SERVICES,0000213676,314.56
DEPARTMENT OF ENERGY AND CLIMATE CHANGE,THE COAL AUTHORITY,29/08/2014,M/W CONTRCTR OPRNTL MTHLY MAIN,ENVIRONMENT,PROF SER CNSLTNCY-PPM CNSLTNCY,INTEGRATED WATER SERVICES,0000213676,809.23
DEPARTMENT OF ENERGY AND CLIMATE CHANGE,THE COAL AUTHORITY,29/08/2014,M/W CONTRCTR OPRNTL MTHLY MAIN,ENVIRONMENT,PROF SER CNSLTNCY-PPM CNSLTNCY,INTEGRATED WATER SERVICES,0000213676,314.56
DEPARTMENT OF ENERGY AND CLIMATE CHANGE,THE COAL AUTHORITY,29/08/2014,M/W CONTRCTR OPRNTL MTHLY MAIN,ENVIRONMENT,PROF SER CNSLTNCY-PPM CNSLTNCY,INTEGRATED WATER SERVICES,0000213676,209.72
DEPARTMENT OF ENERGY AND CLIMATE CHANGE,THE COAL AUTHORITY,29/08/2014,M/W CONTRCTR OPRNTL MTHLY MAIN,ENVIRONMENT,PROF SER CNSLTNCY-PPM CNSLTNCY,INTEGRATED WATER SERVICES,0000213676,209.72
DEPARTMENT OF ENERGY AND CLIMATE CHANGE,THE COAL AUTHORITY,29/08/2014,M/W CONTRCTR OPRNTL MTHLY MAIN,ENVIRONMENT,PROF SER CNSLTNCY-PPM CNSLTNCY,INTEGRATED WATER SERVICES,0000213676,419.44
DEPARTMENT OF ENERGY AND CLIMATE CHANGE,THE COAL AUTHORITY,29/08/2014,M/W CONTRCTR OPRNTL MTHLY MAIN,ENVIRONMENT,PROF SER CNSLTNCY-PPM CNSLTNCY,INTEGRATED WATER SERVICES,0000213676,629.12
DEPARTMENT OF ENERGY AND CLIMATE CHANGE,THE COAL AUTHORITY,29/08/2014,M/W CONTRCTR OPRNTL MTHLY MAIN,ENVIRONMENT,PROF SER CNSLTNCY-PPM CNSLTNCY,INTEGRATED WATER SERVICES,0000213676,324.76
DEPARTMENT OF ENERGY AND CLIMATE CHANGE,THE COAL AUTHORITY,29/08/2014,M/W CONTRCTR OPRNTL MTHLY MAIN,ENVIRONMENT,PROF SER CNSLTNCY-PPM CNSLTNCY,INTEGRATED WATER SERVICES,0000213676,"1,183.24"
DEPARTMENT OF ENERGY AND CLIMATE CHANGE,THE COAL AUTHORITY,29/08/2014,M/W CONTRCTR OPRNTL MTHLY MAIN,ENVIRONMENT,PROF SER CNSLTNCY-PPM CNSLTNCY,INTEGRATED WATER SERVICES,0000213676,314.56
DEPARTMENT OF ENERGY AND CLIMATE CHANGE,THE COAL AUTHORITY,29/08/2014,M/W CONTRCTR OPRNTL MTHLY MAIN,ENVIRONMENT,PROF SER CNSLTNCY-PPM CNSLTNCY,INTEGRATED WATER SERVICES,0000213676,629.12
DEPARTMENT OF ENERGY AND CLIMATE CHANGE,THE COAL AUTHORITY,29/08/2014,M/W CONTRCTR OPRNTL MTHLY MAIN,ENVIRONMENT,PROF SER CNSLTNCY-PPM CNSLTNCY,INTEGRATED WATER SERVICES,0000213676,209.72
DEPARTMENT OF ENERGY AND CLIMATE CHANGE,THE COAL AUTHORITY,29/08/2014,M/W CONTRCTR OPRNTL MTHLY MAIN,ENVIRONMENT,PROF SER CNSLTNCY-PPM CNSLTNCY,INTEGRATED WATER SERVICES,0000213676,629.12
DEPARTMENT OF ENERGY AND CLIMATE CHANGE,THE COAL AUTHORITY,29/08/2014,M/W CONTRCTR OPRNTL MTHLY MAIN,ENVIRONMENT,PROF SER CNSLTNCY-PPM CNSLTNCY,INTEGRATED WATER SERVICES,0000213676,209.72
DEPARTMENT OF ENERGY AND CLIMATE CHANGE,THE COAL AUTHORITY,29/08/2014,M/W CONTRCTR OPRNTL MTHLY MAIN,ENVIRONMENT,PROF SER CNSLTNCY-PPM CNSLTNCY,INTEGRATED WATER SERVICES,0000213677,209.72
DEPARTMENT OF ENERGY AND CLIMATE CHANGE,THE COAL AUTHORITY,29/08/2014,M/W CONTRCTR OPRNTL MTHLY MAIN,ENVIRONMENT,PROF SER CNSLTNCY-PPM CNSLTNCY,INTEGRATED WATER SERVICES,0000213677,104.86
DEPARTMENT OF ENERGY AND CLIMATE CHANGE,THE COAL AUTHORITY,29/08/2014,M/W CONTRCTR OPRNTL MTHLY MAIN,ENVIRONMENT,PROF SER CNSLTNCY-PPM CNSLTNCY,INTEGRATED WATER SERVICES,0000213677,104.86
DEPARTMENT OF ENERGY AND CLIMATE CHANGE,THE COAL AUTHORITY,29/08/2014,M/W CONTRCTR OPRNTL MTHLY MAIN,ENVIRONMENT,PROF SER CNSLTNCY-PPM CNSLTNCY,INTEGRATED WATER SERVICES,0000213677,104.86
DEPARTMENT OF ENERGY AND CLIMATE CHANGE,THE COAL AUTHORITY,29/08/2014,M/W CONTRCTR OPRNTL MTHLY MAIN,ENVIRONMENT,PROF SER CNSLTNCY-PPM CNSLTNCY,INTEGRATED WATER SERVICES,0000213677,104.86
DEPARTMENT OF ENERGY AND CLIMATE CHANGE,THE COAL AUTHORITY,29/08/2014,M/W CONTRCTR OPRNTL MTHLY MAIN,ENVIRONMENT,PROF SER CNSLTNCY-PPM CNSLTNCY,INTEGRATED WATER SERVICES,0000213677,209.72
DEPARTMENT OF ENERGY AND CLIMATE CHANGE,THE COAL AUTHORITY,29/08/2014,M/W CONTRCTR OPRNTL MTHLY MAIN,ENVIRONMENT,PROF SER CNSLTNCY-PPM CNSLTNCY,INTEGRATED WATER SERVICES,0000213677,209.72
DEPARTMENT OF ENERGY AND CLIMATE CHANGE,THE COAL AUTHORITY,29/08/2014,M/W CONTRCTR OPRNTL MTHLY MAIN,ENVIRONMENT,PROF SER CNSLTNCY-PPM CNSLTNCY,INTEGRATED WATER SERVICES,0000213677,"3,058.20"
DEPARTMENT OF ENERGY AND CLIMATE CHANGE,THE COAL AUTHORITY,29/08/2014,M/W CONTRCTR OPRNTL MTHLY MAIN,ENVIRONMENT,PROF SER CNSLTNCY-PPM CNSLTNCY,INTEGRATED WATER SERVICES,0000213677,104.86
DEPARTMENT OF ENERGY AND CLIMATE CHANGE,THE COAL AUTHORITY,29/08/2014,M/W CONTRCTR OPRNTL MTHLY MAIN,ENVIRONMENT,PROF SER CNSLTNCY-PPM CNSLTNCY,INTEGRATED WATER SERVICES,0000213677,104.86
DEPARTMENT OF ENERGY AND CLIMATE CHANGE,THE COAL AUTHORITY,29/08/2014,M/W CONTRCTR OPRNTL MTHLY MAIN,ENVIRONMENT,PROF SER CNSLTNCY-PPM CNSLTNCY,INTEGRATED WATER SERVICES,0000213677,104.86
DEPARTMENT OF ENERGY AND CLIMATE CHANGE,THE COAL AUTHORITY,29/08/2014,M/W CONTRCTR OPRNTL MTHLY MAIN,ENVIRONMENT,PROF SER CNSLTNCY-PPM CNSLTNCY,INTEGRATED WATER SERVICES,0000213677,104.86
DEPARTMENT OF ENERGY AND CLIMATE CHANGE,THE COAL AUTHORITY,29/08/2014,M/W CONTRCTR OPRNTL MTHLY MAIN,ENVIRONMENT,PROF SER CNSLTNCY-PPM CNSLTNCY,INTEGRATED WATER SERVICES,0000213677,838.88
DEPARTMENT OF ENERGY AND CLIMATE CHANGE,THE COAL AUTHORITY,29/08/2014,M/W CONTRCTR OPRNTL MTHLY MAIN,ENVIRONMENT,PROF SER CNSLTNCY-PPM CNSLTNCY,INTEGRATED WATER SERVICES,0000213677,419.44
DEPARTMENT OF ENERGY AND CLIMATE CHANGE,THE COAL AUTHORITY,31/08/2014,M/W CONTRCTR OPRNTL MTHLY MAIN,ENVIRONMENT,CONSTRUCTION-MAIN CONTRACTORS,NATIONAL COAL MINING MUSE,0000213863,"3,224.00"
DEPARTMENT OF ENERGY AND CLIMATE CHANGE,THE COAL AUTHORITY,31/08/2014,M/W CONTRCTR OPRNTL MTHLY MAIN,ENVIRONMENT,CONSTRUCTION-MAIN CONTRACTORS,NATIONAL COAL MINING MUSE,0000213864,"4,403.00"
DEPARTMENT OF ENERGY AND CLIMATE CHANGE,THE COAL AUTHORITY,13/08/2014,M/W CONTRCTR OPRNTL MTHLY MAIN,ENVIRONMENT,WASTE MANAGEMENT-WSTE MNGT SER,NORTHUMBERLAND COUNTY COU,0000213874,133.92
DEPARTMENT OF ENERGY AND CLIMATE CHANGE,THE COAL AUTHORITY,31/08/2014,M/W CONTRCTR OPRNTL MTHLY MAIN,ENVIRONMENT,WASTE MANAGEMENT-WSTE MNGT SER,PREMIER WASTE RECYCLING L,0000213888,32.24
DEPARTMENT OF ENERGY AND CLIMATE CHANGE,THE COAL AUTHORITY,10/09/2014,M/W CONTRCTR OPRNTL MTHLY MAIN,ENVIRONMENT,WASTE MANAGEMENT-WSTE MNGT SER,NORTHUMBERLAND COUNTY COU,0000214017,133.92
DEPARTMENT OF ENERGY AND CLIMATE CHANGE,THE COAL AUTHORITY,18/08/2014,M/W DISCHARGE CONSENTS,ENVIRONMENT,ENERGY&UTILITIES-WATER,NATURAL RESOURCES WALES,0000213650,713.98
DEPARTMENT OF ENERGY AND CLIMATE CHANGE,THE COAL AUTHORITY,08/09/2014,M/W DISCHARGE CONSENTS,ENVIRONMENT,ENERGY&UTILITIES-WATER,COMPANY BARCLAYCARD,0000214119,135.00
DEPARTMENT OF ENERGY AND CLIMATE CHANGE,THE COAL AUTHORITY,08/09/2014,M/W DISCHARGE CONSENTS,ENVIRONMENT,ENERGY&UTILITIES-WATER,COMPANY BARCLAYCARD,0000214119,135.00
DEPARTMENT OF ENERGY AND CLIMATE CHANGE,THE COAL AUTHORITY,08/09/2014,M/W DISCHARGE CONSENTS,ENVIRONMENT,ENERGY&UTILITIES-WATER,COMPANY BARCLAYCARD,0000214119,885.00
DEPARTMENT OF ENERGY AND CLIMATE CHANGE,THE COAL AUTHORITY,31/07/2014,M/W LAND AGENTS (AQUISITIONS),ENVIRONMENT,PROF SER TECH-ENGINEERING SER,JMC ENGINEERING (UK) LTD,0000213050,784.40
DEPARTMENT OF ENERGY AND CLIMATE CHANGE,THE COAL AUTHORITY,31/07/2014,M/W LAND AGENTS (AQUISITIONS),ENVIRONMENT,PROF SER TECH-ENGINEERING SER,JMC ENGINEERING (UK) LTD,0000213051,288.60
DEPARTMENT OF ENERGY AND CLIMATE CHANGE,THE COAL AUTHORITY,31/08/2014,M/W LAND AGENTS (AQUISITIONS),ENVIRONMENT,PROF SER TECH-ENGINEERING SER,JMC ENGINEERING (UK) LTD,0000213798,148.00
DEPARTMENT OF ENERGY AND CLIMATE CHANGE,THE COAL AUTHORITY,31/08/2014,M/W LAND AGENTS (AQUISITIONS),ENVIRONMENT,PROF SER TECH-ENGINEERING SER,JMC ENGINEERING (UK) LTD,0000213799,44.40
DEPARTMENT OF ENERGY AND CLIMATE CHANGE,THE COAL AUTHORITY,31/08/2014,M/W LAND AGENTS (AQUISITIONS),ENVIRONMENT,PROF SER TECH-ENGINEERING SER,JMC ENGINEERING (UK) LTD,0000213800,932.40
DEPARTMENT OF ENERGY AND CLIMATE CHANGE,THE COAL AUTHORITY,19/09/2014,M/W LANDSCAPING,ENVIRONMENT,PROF SER-ENVIRONMENTAL SRVICES,INTEGRATED WATER SERVICES,0000214213,644.06
DEPARTMENT OF ENERGY AND CLIMATE CHANGE,THE COAL AUTHORITY,19/09/2014,M/W LANDSCAPING,ENVIRONMENT,PROF SER-ENVIRONMENTAL SRVICES,INTEGRATED WATER SERVICES,0000214213,"1,414.69"
DEPARTMENT OF ENERGY AND CLIMATE CHANGE,THE COAL AUTHORITY,19/09/2014,M/W LANDSCAPING,ENVIRONMENT,PROF SER-ENVIRONMENTAL SRVICES,INTEGRATED WATER SERVICES,0000214214,"1,144.13"
DEPARTMENT OF ENERGY AND CLIMATE CHANGE,THE COAL AUTHORITY,19/09/2014,M/W LANDSCAPING,ENVIRONMENT,PROF SER-ENVIRONMENTAL SRVICES,INTEGRATED WATER SERVICES,0000214215,"1,477.13"
DEPARTMENT OF ENERGY AND CLIMATE CHANGE,THE COAL AUTHORITY,19/09/2014,M/W LANDSCAPING,ENVIRONMENT,PROF SER-ENVIRONMENTAL SRVICES,INTEGRATED WATER SERVICES,0000214216,226.69
DEPARTMENT OF ENERGY AND CLIMATE CHANGE,THE COAL AUTHORITY,19/09/2014,M/W LANDSCAPING,ENVIRONMENT,PROF SER-ENVIRONMENTAL SRVICES,INTEGRATED WATER SERVICES,0000214216,493.59
DEPARTMENT OF ENERGY AND CLIMATE CHANGE,THE COAL AUTHORITY,19/09/2014,M/W LANDSCAPING,ENVIRONMENT,PROF SER-ENVIRONMENTAL SRVICES,INTEGRATED WATER SERVICES,0000214216,"1,893.94"
DEPARTMENT OF ENERGY AND CLIMATE CHANGE,THE COAL AUTHORITY,19/09/2014,M/W LANDSCAPING,ENVIRONMENT,PROF SER-ENVIRONMENTAL SRVICES,INTEGRATED WATER SERVICES,0000214216,"1,444.95"
DEPARTMENT OF ENERGY AND CLIMATE CHANGE,THE COAL AUTHORITY,19/09/2014,M/W LANDSCAPING,ENVIRONMENT,PROF SER-ENVIRONMENTAL SRVICES,INTEGRATED WATER SERVICES,0000214216,336.38
DEPARTMENT OF ENERGY AND CLIMATE CHANGE,THE COAL AUTHORITY,19/09/2014,M/W LANDSCAPING,ENVIRONMENT,PROF SER-ENVIRONMENTAL SRVICES,INTEGRATED WATER SERVICES,0000214216,219.38
DEPARTMENT OF ENERGY AND CLIMATE CHANGE,THE COAL AUTHORITY,19/09/2014,M/W LANDSCAPING,ENVIRONMENT,PROF SER-ENVIRONMENTAL SRVICES,INTEGRATED WATER SERVICES,0000214216,431.44
DEPARTMENT OF ENERGY AND CLIMATE CHANGE,THE COAL AUTHORITY,19/09/2014,M/W LANDSCAPING,ENVIRONMENT,PROF SER-ENVIRONMENTAL SRVICES,INTEGRATED WATER SERVICES,0000214216,"1,209.49"
DEPARTMENT OF ENERGY AND CLIMATE CHANGE,THE COAL AUTHORITY,19/09/2014,M/W LANDSCAPING,ENVIRONMENT,PROF SER-ENVIRONMENTAL SRVICES,INTEGRATED WATER SERVICES,0000214217,"1,335.38"
DEPARTMENT OF ENERGY AND CLIMATE CHANGE,THE COAL AUTHORITY,19/09/2014,M/W LANDSCAPING,ENVIRONMENT,PROF SER-ENVIRONMENTAL SRVICES,INTEGRATED WATER SERVICES,0000214217,854.44
DEPARTMENT OF ENERGY AND CLIMATE CHANGE,THE COAL AUTHORITY,19/09/2014,M/W LANDSCAPING,ENVIRONMENT,PROF SER-ENVIRONMENTAL SRVICES,INTEGRATED WATER SERVICES,0000214217,"1,037.25"
DEPARTMENT OF ENERGY AND CLIMATE CHANGE,THE COAL AUTHORITY,19/09/2014,M/W LANDSCAPING,ENVIRONMENT,PROF SER-ENVIRONMENTAL SRVICES,INTEGRATED WATER SERVICES,0000214217,64.69
DEPARTMENT OF ENERGY AND CLIMATE CHANGE,THE COAL AUTHORITY,19/09/2014,M/W LANDSCAPING,ENVIRONMENT,PROF SER-ENVIRONMENTAL SRVICES,INTEGRATED WATER SERVICES,0000214217,644.06
DEPARTMENT OF ENERGY AND CLIMATE CHANGE,THE COAL AUTHORITY,19/09/2014,M/W LANDSCAPING,ENVIRONMENT,PROF SER-ENVIRONMENTAL SRVICES,INTEGRATED WATER SERVICES,0000214217,601.31
DEPARTMENT OF ENERGY AND CLIMATE CHANGE,THE COAL AUTHORITY,19/09/2014,M/W LANDSCAPING,ENVIRONMENT,PROF SER-ENVIRONMENTAL SRVICES,INTEGRATED WATER SERVICES,0000214217,"1,434.38"
DEPARTMENT OF ENERGY AND CLIMATE CHANGE,THE COAL AUTHORITY,19/09/2014,M/W LANDSCAPING,ENVIRONMENT,PROF SER-ENVIRONMENTAL SRVICES,INTEGRATED WATER SERVICES,0000214217,"1,251.00"
DEPARTMENT OF ENERGY AND CLIMATE CHANGE,THE COAL AUTHORITY,19/09/2014,M/W LANDSCAPING,ENVIRONMENT,PROF SER-ENVIRONMENTAL SRVICES,INTEGRATED WATER SERVICES,0000214217,"1,414.69"
DEPARTMENT OF ENERGY AND CLIMATE CHANGE,THE COAL AUTHORITY,19/09/2014,M/W LANDSCAPING,ENVIRONMENT,PROF SER-ENVIRONMENTAL SRVICES,INTEGRATED WATER SERVICES,0000214217,"1,051.31"
DEPARTMENT OF ENERGY AND CLIMATE CHANGE,THE COAL AUTHORITY,19/09/2014,M/W LANDSCAPING,ENVIRONMENT,PROF SER-ENVIRONMENTAL SRVICES,INTEGRATED WATER SERVICES,0000214217,"1,113.75"
DEPARTMENT OF ENERGY AND CLIMATE CHANGE,THE COAL AUTHORITY,19/09/2014,M/W LANDSCAPING,ENVIRONMENT,PROF SER-ENVIRONMENTAL SRVICES,INTEGRATED WATER SERVICES,0000214217,874.13
DEPARTMENT OF ENERGY AND CLIMATE CHANGE,THE COAL AUTHORITY,19/09/2014,M/W LANDSCAPING,ENVIRONMENT,PROF SER-ENVIRONMENTAL SRVICES,INTEGRATED WATER SERVICES,0000214219,"2,134.01"
DEPARTMENT OF ENERGY AND CLIMATE CHANGE,THE COAL AUTHORITY,19/09/2014,M/W LANDSCAPING,ENVIRONMENT,PROF SER-ENVIRONMENTAL SRVICES,INTEGRATED WATER SERVICES,0000214219,"1,169.72"
DEPARTMENT OF ENERGY AND CLIMATE CHANGE,THE COAL AUTHORITY,19/09/2014,M/W LANDSCAPING,ENVIRONMENT,PROF SER-ENVIRONMENTAL SRVICES,INTEGRATED WATER SERVICES,0000214219,"2,317.50"
DEPARTMENT OF ENERGY AND CLIMATE CHANGE,THE COAL AUTHORITY,19/09/2014,M/W LANDSCAPING,ENVIRONMENT,PROF SER-ENVIRONMENTAL SRVICES,INTEGRATED WATER SERVICES,0000214219,"1,733.06"
DEPARTMENT OF ENERGY AND CLIMATE CHANGE,THE COAL AUTHORITY,19/09/2014,M/W LANDSCAPING,ENVIRONMENT,PROF SER-ENVIRONMENTAL SRVICES,INTEGRATED WATER SERVICES,0000214219,"1,065.66"
DEPARTMENT OF ENERGY AND CLIMATE CHANGE,THE COAL AUTHORITY,19/09/2014,M/W LANDSCAPING,ENVIRONMENT,PROF SER-ENVIRONMENTAL SRVICES,INTEGRATED WATER SERVICES,0000214219,"1,239.47"
DEPARTMENT OF ENERGY AND CLIMATE CHANGE,THE COAL AUTHORITY,19/09/2014,M/W LANDSCAPING,ENVIRONMENT,PROF SER-ENVIRONMENTAL SRVICES,INTEGRATED WATER SERVICES,0000214219,991.13
DEPARTMENT OF ENERGY AND CLIMATE CHANGE,THE COAL AUTHORITY,08/09/2014,M/W LANDSCAPING SUPERVISION,ENVIRONMENT,PROF SER TECH-ENGINEERING SER,JMC ENGINEERING (UK) LTD,0000213796,821.40
DEPARTMENT OF ENERGY AND CLIMATE CHANGE,THE COAL AUTHORITY,31/08/2014,M/W LANDSCAPING SUPERVISION,ENVIRONMENT,PROF SER TECH-ENGINEERING SER,JMC ENGINEERING (UK) LTD,0000213803,74.00
DEPARTMENT OF ENERGY AND CLIMATE CHANGE,THE COAL AUTHORITY,31/08/2014,M/W LANDSCAPING SUPERVISION,ENVIRONMENT,PROF SER TECH-ENGINEERING SER,JMC ENGINEERING (UK) LTD,0000213805,503.20
DEPARTMENT OF ENERGY AND CLIMATE CHANGE,THE COAL AUTHORITY,31/08/2014,M/W LANDSCAPING SUPERVISION,ENVIRONMENT,PROF SER TECH-ENGINEERING SER,JMC ENGINEERING (UK) LTD,0000213813,340.40
DEPARTMENT OF ENERGY AND CLIMATE CHANGE,THE COAL AUTHORITY,29/08/2014,M/W NEW SCHEME - CONSULTANCY,ENVIRONMENT,CONSTRUCTION-MAIN CONTRACTORS,J N BENTLEY LIMITED,0000213612,"9,953.42"
DEPARTMENT OF ENERGY AND CLIMATE CHANGE,THE COAL AUTHORITY,04/08/2014,M/W POWER COSTS,ENVIRONMENT,ENERGY&UTILITIES-ELECTRICITY,STARK SOFTWARE INT LIMITE,0000213310,127.18
DEPARTMENT OF ENERGY AND CLIMATE CHANGE,THE COAL AUTHORITY,04/08/2014,M/W POWER COSTS,ENVIRONMENT,ENERGY&UTILITIES-ELECTRICITY,STARK SOFTWARE INT LIMITE,0000213310,127.18
DEPARTMENT OF ENERGY AND CLIMATE CHANGE,THE COAL AUTHORITY,04/08/2014,M/W POWER COSTS,ENVIRONMENT,ENERGY&UTILITIES-ELECTRICITY,STARK SOFTWARE INT LIMITE,0000213310,127.18
DEPARTMENT OF ENERGY AND CLIMATE CHANGE,THE COAL AUTHORITY,04/08/2014,M/W POWER COSTS,ENVIRONMENT,ENERGY&UTILITIES-ELECTRICITY,STARK SOFTWARE INT LIMITE,0000213310,127.18
DEPARTMENT OF ENERGY AND CLIMATE CHANGE,THE COAL AUTHORITY,04/08/2014,M/W POWER COSTS,ENVIRONMENT,ENERGY&UTILITIES-ELECTRICITY,STARK SOFTWARE INT LIMITE,0000213310,117.18
DEPARTMENT OF ENERGY AND CLIMATE CHANGE,THE COAL AUTHORITY,04/08/2014,M/W POWER COSTS,ENVIRONMENT,ENERGY&UTILITIES-ELECTRICITY,STARK SOFTWARE INT LIMITE,0000213310,127.18
DEPARTMENT OF ENERGY AND CLIMATE CHANGE,THE COAL AUTHORITY,04/08/2014,M/W POWER COSTS,ENVIRONMENT,ENERGY&UTILITIES-ELECTRICITY,STARK SOFTWARE INT LIMITE,0000213310,127.18
DEPARTMENT OF ENERGY AND CLIMATE CHANGE,THE COAL AUTHORITY,04/08/2014,M/W POWER COSTS,ENVIRONMENT,ENERGY&UTILITIES-ELECTRICITY,STARK SOFTWARE INT LIMITE,0000213310,117.18
DEPARTMENT OF ENERGY AND CLIMATE CHANGE,THE COAL AUTHORITY,04/08/2014,M/W POWER COSTS,ENVIRONMENT,ENERGY&UTILITIES-ELECTRICITY,STARK SOFTWARE INT LIMITE,0000213310,127.18
DEPARTMENT OF ENERGY AND CLIMATE CHANGE,THE COAL AUTHORITY,04/08/2014,M/W POWER COSTS,ENVIRONMENT,ENERGY&UTILITIES-ELECTRICITY,STARK SOFTWARE INT LIMITE,0000213310,127.18
DEPARTMENT OF ENERGY AND CLIMATE CHANGE,THE COAL AUTHORITY,04/08/2014,M/W POWER COSTS,ENVIRONMENT,ENERGY&UTILITIES-ELECTRICITY,STARK SOFTWARE INT LIMITE,0000213310,254.36
DEPARTMENT OF ENERGY AND CLIMATE CHANGE,THE COAL AUTHORITY,04/08/2014,M/W POWER COSTS,ENVIRONMENT,ENERGY&UTILITIES-ELECTRICITY,STARK SOFTWARE INT LIMITE,0000213310,127.18
DEPARTMENT OF ENERGY AND CLIMATE CHANGE,THE COAL AUTHORITY,04/08/2014,M/W POWER COSTS,ENVIRONMENT,ENERGY&UTILITIES-ELECTRICITY,STARK SOFTWARE INT LIMITE,0000213310,127.18
DEPARTMENT OF ENERGY AND CLIMATE CHANGE,THE COAL AUTHORITY,04/08/2014,M/W POWER COSTS,ENVIRONMENT,ENERGY&UTILITIES-ELECTRICITY,STARK SOFTWARE INT LIMITE,0000213310,127.18
DEPARTMENT OF ENERGY AND CLIMATE CHANGE,THE COAL AUTHORITY,04/08/2014,M/W POWER COSTS,ENVIRONMENT,ENERGY&UTILITIES-ELECTRICITY,STARK SOFTWARE INT LIMITE,0000213310,127.18
DEPARTMENT OF ENERGY AND CLIMATE CHANGE,THE COAL AUTHORITY,04/08/2014,M/W POWER COSTS,ENVIRONMENT,ENERGY&UTILITIES-ELECTRICITY,STARK SOFTWARE INT LIMITE,0000213310,127.18
DEPARTMENT OF ENERGY AND CLIMATE CHANGE,THE COAL AUTHORITY,04/08/2014,M/W POWER COSTS,ENVIRONMENT,ENERGY&UTILITIES-ELECTRICITY,STARK SOFTWARE INT LIMITE,0000213310,117.18
DEPARTMENT OF ENERGY AND CLIMATE CHANGE,THE COAL AUTHORITY,04/08/2014,M/W POWER COSTS,ENVIRONMENT,ENERGY&UTILITIES-ELECTRICITY,STARK SOFTWARE INT LIMITE,0000213310,127.18
DEPARTMENT OF ENERGY AND CLIMATE CHANGE,THE COAL AUTHORITY,04/08/2014,M/W POWER COSTS,ENVIRONMENT,ENERGY&UTILITIES-ELECTRICITY,STARK SOFTWARE INT LIMITE,0000213310,127.18
DEPARTMENT OF ENERGY AND CLIMATE CHANGE,THE COAL AUTHORITY,04/08/2014,M/W POWER COSTS,ENVIRONMENT,ENERGY&UTILITIES-ELECTRICITY,STARK SOFTWARE INT LIMITE,0000213310,127.18
DEPARTMENT OF ENERGY AND CLIMATE CHANGE,THE COAL AUTHORITY,04/08/2014,M/W POWER COSTS,ENVIRONMENT,ENERGY&UTILITIES-ELECTRICITY,STARK SOFTWARE INT LIMITE,0000213310,254.36
DEPARTMENT OF ENERGY AND CLIMATE CHANGE,THE COAL AUTHORITY,03/09/2014,M/W POWER COSTS,ENVIRONMENT,ENERGY&UTILITIES-ELECTRICITY,BRITISH GAS BUSINESS,0000213820,28.59
DEPARTMENT OF ENERGY AND CLIMATE CHANGE,THE COAL AUTHORITY,27/08/2014,M/W POWER COSTS,ENVIRONMENT,ENERGY&UTILITIES-ELECTRICITY,NPOWER YORKSHIRE LIMITED,0000213882,315.00
DEPARTMENT OF ENERGY AND CLIMATE CHANGE,THE COAL AUTHORITY,27/08/2014,M/W POWER COSTS,ENVIRONMENT,ENERGY&UTILITIES-ELECTRICITY,NPOWER YORKSHIRE LIMITED,0000213882,315.00
DEPARTMENT OF ENERGY AND CLIMATE CHANGE,THE COAL AUTHORITY,27/08/2014,M/W POWER COSTS,ENVIRONMENT,ENERGY&UTILITIES-ELECTRICITY,NPOWER YORKSHIRE LIMITED,0000213883,315.00
DEPARTMENT OF ENERGY AND CLIMATE CHANGE,THE COAL AUTHORITY,27/08/2014,M/W POWER COSTS,ENVIRONMENT,ENERGY&UTILITIES-ELECTRICITY,NPOWER YORKSHIRE LIMITED,0000213883,315.00
DEPARTMENT OF ENERGY AND CLIMATE CHANGE,THE COAL AUTHORITY,05/09/2014,M/W POWER COSTS,ENVIRONMENT,ENERGY&UTILITIES-ELECTRICITY,BRITISH GAS BUSINESS,0000213930,526.53
DEPARTMENT OF ENERGY AND CLIMATE CHANGE,THE COAL AUTHORITY,05/09/2014,M/W POWER COSTS,ENVIRONMENT,ENERGY&UTILITIES-ELECTRICITY,BRITISH GAS BUSINESS,0000213931,320.71
DEPARTMENT OF ENERGY AND CLIMATE CHANGE,THE COAL AUTHORITY,05/09/2014,M/W POWER COSTS,ENVIRONMENT,ENERGY&UTILITIES-ELECTRICITY,BRITISH GAS BUSINESS,0000213932,696.92
DEPARTMENT OF ENERGY AND CLIMATE CHANGE,THE COAL AUTHORITY,05/09/2014,M/W POWER COSTS,ENVIRONMENT,ENERGY&UTILITIES-ELECTRICITY,BRITISH GAS BUSINESS,0000213940,61.46
DEPARTMENT OF ENERGY AND CLIMATE CHANGE,THE COAL AUTHORITY,10/09/2014,M/W POWER COSTS,ENVIRONMENT,ENERGY&UTILITIES-ELECTRICITY,EDF ENERGY,0000213983,"4,431.05"
DEPARTMENT OF ENERGY AND CLIMATE CHANGE,THE COAL AUTHORITY,10/09/2014,M/W POWER COSTS,ENVIRONMENT,ENERGY&UTILITIES-ELECTRICITY,EDF ENERGY,0000213983,"15,974.52"
DEPARTMENT OF ENERGY AND CLIMATE CHANGE,THE COAL AUTHORITY,10/09/2014,M/W POWER COSTS,ENVIRONMENT,ENERGY&UTILITIES-ELECTRICITY,EDF ENERGY,0000213983,"1,981.60"
DEPARTMENT OF ENERGY AND CLIMATE CHANGE,THE COAL AUTHORITY,10/09/2014,M/W POWER COSTS,ENVIRONMENT,ENERGY&UTILITIES-ELECTRICITY,EDF ENERGY,0000213983,"11,041.09"
DEPARTMENT OF ENERGY AND CLIMATE CHANGE,THE COAL AUTHORITY,10/09/2014,M/W POWER COSTS,ENVIRONMENT,ENERGY&UTILITIES-ELECTRICITY,EDF ENERGY,0000213983,"7,901.72"
DEPARTMENT OF ENERGY AND CLIMATE CHANGE,THE COAL AUTHORITY,10/09/2014,M/W POWER COSTS,ENVIRONMENT,ENERGY&UTILITIES-ELECTRICITY,EDF ENERGY,0000213983,"5,251.67"
DEPARTMENT OF ENERGY AND CLIMATE CHANGE,THE COAL AUTHORITY,10/09/2014,M/W POWER COSTS,ENVIRONMENT,ENERGY&UTILITIES-ELECTRICITY,EDF ENERGY,0000213983,"46,948.19"
DEPARTMENT OF ENERGY AND CLIMATE CHANGE,THE COAL AUTHORITY,10/09/2014,M/W POWER COSTS,ENVIRONMENT,ENERGY&UTILITIES-ELECTRICITY,EDF ENERGY,0000213983,"22,722.34"
DEPARTMENT OF ENERGY AND CLIMATE CHANGE,THE COAL AUTHORITY,10/09/2014,M/W POWER COSTS,ENVIRONMENT,ENERGY&UTILITIES-ELECTRICITY,EDF ENERGY,0000213983,"4,387.69"
DEPARTMENT OF ENERGY AND CLIMATE CHANGE,THE COAL AUTHORITY,10/09/2014,M/W POWER COSTS,ENVIRONMENT,ENERGY&UTILITIES-ELECTRICITY,EDF ENERGY,0000213983,"4,218.10"
DEPARTMENT OF ENERGY AND CLIMATE CHANGE,THE COAL AUTHORITY,10/09/2014,M/W POWER COSTS,ENVIRONMENT,ENERGY&UTILITIES-ELECTRICITY,EDF ENERGY,0000213983,"13,265.42"
DEPARTMENT OF ENERGY AND CLIMATE CHANGE,THE COAL AUTHORITY,10/09/2014,M/W POWER COSTS,ENVIRONMENT,ENERGY&UTILITIES-ELECTRICITY,EDF ENERGY,0000213983,"9,993.56"
DEPARTMENT OF ENERGY AND CLIMATE CHANGE,THE COAL AUTHORITY,10/09/2014,M/W POWER COSTS,ENVIRONMENT,ENERGY&UTILITIES-ELECTRICITY,EDF ENERGY,0000213983,"1,139.84"
DEPARTMENT OF ENERGY AND CLIMATE CHANGE,THE COAL AUTHORITY,10/09/2014,M/W POWER COSTS,ENVIRONMENT,ENERGY&UTILITIES-ELECTRICITY,EDF ENERGY,0000213983,"6,482.98"
DEPARTMENT OF ENERGY AND CLIMATE CHANGE,THE COAL AUTHORITY,10/09/2014,M/W POWER COSTS,ENVIRONMENT,ENERGY&UTILITIES-ELECTRICITY,EDF ENERGY,0000213983,"2,563.81"
DEPARTMENT OF ENERGY AND CLIMATE CHANGE,THE COAL AUTHORITY,05/09/2014,M/W POWER COSTS,ENVIRONMENT,ENERGY&UTILITIES-ELECTRICITY,BRITISH GAS BUSINESS,0000214072,"2,899.61"
DEPARTMENT OF ENERGY AND CLIMATE CHANGE,THE COAL AUTHORITY,05/09/2014,M/W POWER COSTS,ENVIRONMENT,ENERGY&UTILITIES-ELECTRICITY,BRITISH GAS BUSINESS,0000214073,351.88
DEPARTMENT OF ENERGY AND CLIMATE CHANGE,THE COAL AUTHORITY,05/09/2014,M/W POWER COSTS,ENVIRONMENT,ENERGY&UTILITIES-ELECTRICITY,BRITISH GAS BUSINESS,0000214074,"1,029.53"
DEPARTMENT OF ENERGY AND CLIMATE CHANGE,THE COAL AUTHORITY,05/09/2014,M/W POWER COSTS,ENVIRONMENT,ENERGY&UTILITIES-ELECTRICITY,BRITISH GAS BUSINESS,0000214075,283.87
DEPARTMENT OF ENERGY AND CLIMATE CHANGE,THE COAL AUTHORITY,05/09/2014,M/W POWER COSTS,ENVIRONMENT,ENERGY&UTILITIES-ELECTRICITY,BRITISH GAS BUSINESS,0000214076,13.20
DEPARTMENT OF ENERGY AND CLIMATE CHANGE,THE COAL AUTHORITY,05/09/2014,M/W POWER COSTS,ENVIRONMENT,ENERGY&UTILITIES-ELECTRICITY,BRITISH GAS BUSINESS,0000214077,"6,703.70"
DEPARTMENT OF ENERGY AND CLIMATE CHANGE,THE COAL AUTHORITY,05/09/2014,M/W POWER COSTS,ENVIRONMENT,ENERGY&UTILITIES-ELECTRICITY,BRITISH GAS BUSINESS,0000214078,452.78
DEPARTMENT OF ENERGY AND CLIMATE CHANGE,THE COAL AUTHORITY,05/09/2014,M/W POWER COSTS,ENVIRONMENT,ENERGY&UTILITIES-ELECTRICITY,BRITISH GAS BUSINESS,0000214079,743.82
DEPARTMENT OF ENERGY AND CLIMATE CHANGE,THE COAL AUTHORITY,05/09/2014,M/W POWER COSTS,ENVIRONMENT,ENERGY&UTILITIES-ELECTRICITY,BRITISH GAS BUSINESS,0000214080,"1,723.01"
DEPARTMENT OF ENERGY AND CLIMATE CHANGE,THE COAL AUTHORITY,05/09/2014,M/W POWER COSTS,ENVIRONMENT,ENERGY&UTILITIES-ELECTRICITY,BRITISH GAS BUSINESS,0000214081,642.11
DEPARTMENT OF ENERGY AND CLIMATE CHANGE,THE COAL AUTHORITY,05/09/2014,M/W POWER COSTS,ENVIRONMENT,ENERGY&UTILITIES-ELECTRICITY,BRITISH GAS BUSINESS,0000214082,"1,287.65"
DEPARTMENT OF ENERGY AND CLIMATE CHANGE,THE COAL AUTHORITY,05/09/2014,M/W POWER COSTS,ENVIRONMENT,ENERGY&UTILITIES-ELECTRICITY,BRITISH GAS BUSINESS,0000214083,88.27
DEPARTMENT OF ENERGY AND CLIMATE CHANGE,THE COAL AUTHORITY,05/09/2014,M/W POWER COSTS,ENVIRONMENT,ENERGY&UTILITIES-ELECTRICITY,BRITISH GAS BUSINESS,0000214084,545.84
DEPARTMENT OF ENERGY AND CLIMATE CHANGE,THE COAL AUTHORITY,05/09/2014,M/W POWER COSTS,ENVIRONMENT,ENERGY&UTILITIES-ELECTRICITY,BRITISH GAS BUSINESS,0000214085,377.42
DEPARTMENT OF ENERGY AND CLIMATE CHANGE,THE COAL AUTHORITY,05/09/2014,M/W POWER COSTS,ENVIRONMENT,ENERGY&UTILITIES-ELECTRICITY,BRITISH GAS BUSINESS,0000214086,75.26
DEPARTMENT OF ENERGY AND CLIMATE CHANGE,THE COAL AUTHORITY,05/09/2014,M/W POWER COSTS,ENVIRONMENT,ENERGY&UTILITIES-ELECTRICITY,BRITISH GAS BUSINESS,0000214087,"2,361.60"
DEPARTMENT OF ENERGY AND CLIMATE CHANGE,THE COAL AUTHORITY,05/09/2014,M/W POWER COSTS,ENVIRONMENT,ENERGY&UTILITIES-ELECTRICITY,BRITISH GAS BUSINESS,0000214088,"2,765.95"
DEPARTMENT OF ENERGY AND CLIMATE CHANGE,THE COAL AUTHORITY,05/09/2014,M/W POWER COSTS,ENVIRONMENT,ENERGY&UTILITIES-ELECTRICITY,BRITISH GAS BUSINESS,0000214089,850.19
DEPARTMENT OF ENERGY AND CLIMATE CHANGE,THE COAL AUTHORITY,05/09/2014,M/W POWER COSTS,ENVIRONMENT,ENERGY&UTILITIES-ELECTRICITY,BRITISH GAS BUSINESS,0000214090,"1,405.27"
DEPARTMENT OF ENERGY AND CLIMATE CHANGE,THE COAL AUTHORITY,05/09/2014,M/W POWER COSTS,ENVIRONMENT,ENERGY&UTILITIES-ELECTRICITY,BRITISH GAS BUSINESS,0000214091,448.31
DEPARTMENT OF ENERGY AND CLIMATE CHANGE,THE COAL AUTHORITY,05/09/2014,M/W POWER COSTS,ENVIRONMENT,ENERGY&UTILITIES-ELECTRICITY,BRITISH GAS BUSINESS,0000214092,670.29
DEPARTMENT OF ENERGY AND CLIMATE CHANGE,THE COAL AUTHORITY,05/09/2014,M/W POWER COSTS,ENVIRONMENT,ENERGY&UTILITIES-ELECTRICITY,BRITISH GAS BUSINESS,0000214093,"1,693.16"
DEPARTMENT OF ENERGY AND CLIMATE CHANGE,THE COAL AUTHORITY,05/09/2014,M/W POWER COSTS,ENVIRONMENT,ENERGY&UTILITIES-ELECTRICITY,BRITISH GAS BUSINESS,0000214094,"1,239.83"
DEPARTMENT OF ENERGY AND CLIMATE CHANGE,THE COAL AUTHORITY,01/09/2014,M/W POWER COSTS,ENVIRONMENT,ENERGY&UTILITIES-ELECTRICITY,NATIONAL COAL MINING MUSE,0000214201,"14,575.92"
DEPARTMENT OF ENERGY AND CLIMATE CHANGE,THE COAL AUTHORITY,24/09/2014,M/W POWER COSTS,ENVIRONMENT,ENERGY&UTILITIES-ELECTRICITY,BRITISH GAS BUSINESS,0000214278,302.54
DEPARTMENT OF ENERGY AND CLIMATE CHANGE,THE COAL AUTHORITY,29/07/2014,M/W PUMPING TESTS,ENVIRONMENT,ENERGY&UTILITIES-WATER,BUSINESS STREAM,0000212963,75.00
DEPARTMENT OF ENERGY AND CLIMATE CHANGE,THE COAL AUTHORITY,04/09/2014,M/W PUMPING TESTS,ENVIRONMENT,ENERGY&UTILITIES-WATER,BUSINESS STREAM,0000213859,-75.00
DEPARTMENT OF ENERGY AND CLIMATE CHANGE,THE COAL AUTHORITY,12/09/2014,M/W RATES PAYABLE,ENVIRONMENT,ENERGY&UTILITIES-ELECTRICITY,METHLEY ESTATES (HOLDINGS,0000214227,471.42
DEPARTMENT OF ENERGY AND CLIMATE CHANGE,THE COAL AUTHORITY,20/08/2014,M/W RENTS PAYABLE,ENVIRONMENT,FACILITIES-BUILDING MANAGEMENT,NETWORK RAIL,0000213645,42.00
DEPARTMENT OF ENERGY AND CLIMATE CHANGE,THE COAL AUTHORITY,04/09/2014,M/W RENTS PAYABLE,ENVIRONMENT,FACILITIES-BUILDING MANAGEMENT,ANNUAL RENT  FOR CLIFTON,0000213695,100.00
DEPARTMENT OF ENERGY AND CLIMATE CHANGE,THE COAL AUTHORITY,04/09/2014,M/W RENTS PAYABLE,ENVIRONMENT,FACILITIES-BUILDING MANAGEMENT,ANNUAL RENT SILKSTONE MWT,0000213697,"1,057.56"
DEPARTMENT OF ENERGY AND CLIMATE CHANGE,THE COAL AUTHORITY,04/09/2014,M/W RENTS PAYABLE,ENVIRONMENT,FACILITIES-BUILDING MANAGEMENT,ANNUAL RENT FOR MILLWOOD,0000213698,"3,000.00"
DEPARTMENT OF ENERGY AND CLIMATE CHANGE,THE COAL AUTHORITY,04/09/2014,M/W RENTS PAYABLE,ENVIRONMENT,FACILITIES-BUILDING MANAGEMENT,ANNUAL RENT FOR NAILSTONE,0000213699,100.00
DEPARTMENT OF ENERGY AND CLIMATE CHANGE,THE COAL AUTHORITY,01/09/2014,M/W RENTS PAYABLE,ENVIRONMENT,FACILITIES-BUILDING MANAGEMENT,SITWELL ESTATE,0000213865,700.00
DEPARTMENT OF ENERGY AND CLIMATE CHANGE,THE COAL AUTHORITY,01/09/2014,M/W RENTS PAYABLE,ENVIRONMENT,FACILITIES-BUILDING MANAGEMENT,SITWELL ESTATE,0000213866,700.00
DEPARTMENT OF ENERGY AND CLIMATE CHANGE,THE COAL AUTHORITY,01/09/2014,M/W RENTS PAYABLE,ENVIRONMENT,FACILITIES-BUILDING MANAGEMENT,SITWELL ESTATE,0000213867,700.00
DEPARTMENT OF ENERGY AND CLIMATE CHANGE,THE COAL AUTHORITY,02/09/2014,M/W RENTS PAYABLE,ENVIRONMENT,FACILITIES-BUILDING MANAGEMENT,CROWN ESTATE,0000213886,"3,500.00"
DEPARTMENT OF ENERGY AND CLIMATE CHANGE,THE COAL AUTHORITY,11/09/2014,M/W RENTS PAYABLE,ENVIRONMENT,FACILITIES-BUILDING MANAGEMENT,ANNUAL RENT STAUNTON HARO,0000213928,654.15
DEPARTMENT OF ENERGY AND CLIMATE CHANGE,THE COAL AUTHORITY,05/09/2014,M/W RENTS PAYABLE,ENVIRONMENT,FACILITIES-BUILDING MANAGEMENT,HOME GROUP LIMITED,0000213964,"1,000.00"
DEPARTMENT OF ENERGY AND CLIMATE CHANGE,THE COAL AUTHORITY,24/09/2014,M/W RENTS PAYABLE,ENVIRONMENT,FACILITIES-BUILDING MANAGEMENT,ANNUAL RENT FOR NEWTON CA,0000214270,400.00
DEPARTMENT OF ENERGY AND CLIMATE CHANGE,THE COAL AUTHORITY,24/09/2014,M/W RENTS PAYABLE,ENVIRONMENT,FACILITIES-BUILDING MANAGEMENT,ANNUAL RENT DUNVANT BOREH,0000214271,200.00
DEPARTMENT OF ENERGY AND CLIMATE CHANGE,THE COAL AUTHORITY,24/09/2014,M/W RENTS PAYABLE,ENVIRONMENT,FACILITIES-BUILDING MANAGEMENT,ANNUAL RENT FOR STANLEY P,0000214272,100.00
DEPARTMENT OF ENERGY AND CLIMATE CHANGE,THE COAL AUTHORITY,24/09/2014,M/W RENTS PAYABLE,ENVIRONMENT,FACILITIES-BUILDING MANAGEMENT,ANNUAL RENT FOR OAKWOOD G,0000214273,100.00
DEPARTMENT OF ENERGY AND CLIMATE CHANGE,THE COAL AUTHORITY,24/09/2014,M/W RENTS PAYABLE,ENVIRONMENT,FACILITIES-BUILDING MANAGEMENT,ANNUAL RENT FOR WARREN HO,0000214274,200.00
DEPARTMENT OF ENERGY AND CLIMATE CHANGE,THE COAL AUTHORITY,24/09/2014,M/W RENTS PAYABLE,ENVIRONMENT,FACILITIES-BUILDING MANAGEMENT,ANNUAL RENT HANDBANK COLL,0000214275,"15,000.00"
DEPARTMENT OF ENERGY AND CLIMATE CHANGE,THE COAL AUTHORITY,31/07/2014,M/W SCOPING/FEASIBILITY/CONCEP,ENVIRONMENT,PROF SER TECH-ENGINEERING SER,MOTT MACDONALD LTD,0000212942,"5,722.20"
DEPARTMENT OF ENERGY AND CLIMATE CHANGE,THE COAL AUTHORITY,15/08/2014,M/W SCOPING/FEASIBILITY/CONCEP,ENVIRONMENT,PROF SER TECH-ENGINEERING SER,MOTT MACDONALD LTD,0000213255,668.00
DEPARTMENT OF ENERGY AND CLIMATE CHANGE,THE COAL AUTHORITY,18/08/2014,M/W SCOPING/FEASIBILITY/CONCEP,ENVIRONMENT,PROF SER TECH-ENGINEERING SER,ATKINS LIMITED,0000213305,"1,092.50"
DEPARTMENT OF ENERGY AND CLIMATE CHANGE,THE COAL AUTHORITY,19/08/2014,M/W SCOPING/FEASIBILITY/CONCEP,ENVIRONMENT,PROF SER TECH-ENGINEERING SER,ATKINS LIMITED,0000213326,60.00
DEPARTMENT OF ENERGY AND CLIMATE CHANGE,THE COAL AUTHORITY,18/08/2014,M/W SCOPING/FEASIBILITY/CONCEP,ENVIRONMENT,PROF SER TECH-ENGINEERING SER,ATKINS LIMITED,0000213327,"1,005.00"
DEPARTMENT OF ENERGY AND CLIMATE CHANGE,THE COAL AUTHORITY,27/08/2014,M/W SCOPING/FEASIBILITY/CONCEP,ENVIRONMENT,PROF SER TECH-ENGINEERING SER,MOTT MACDONALD LTD,0000213640,"1,635.50"
DEPARTMENT OF ENERGY AND CLIMATE CHANGE,THE COAL AUTHORITY,26/08/2014,M/W SLUDGE DISPOSAL,ENVIRONMENT,CONSTRUCTION-MAIN CONTRACTORS,INTEGRATED WATER SERVICES,0000213538,"9,202.80"
DEPARTMENT OF ENERGY AND CLIMATE CHANGE,THE COAL AUTHORITY,22/08/2014,M/W SLUDGE DISPOSAL,ENVIRONMENT,CONSTRUCTION-MAIN CONTRACTORS,INTEGRATED WATER SERVICES,0000213547,"1,017.47"
DEPARTMENT OF ENERGY AND CLIMATE CHANGE,THE COAL AUTHORITY,08/09/2014,M/W SLUDGE DISPOSAL,ENVIRONMENT,CONSTRUCTION-MAIN CONTRACTORS,INTEGRATED WATER SERVICES,0000213919,877.50
DEPARTMENT OF ENERGY AND CLIMATE CHANGE,THE COAL AUTHORITY,31/08/2014,M/W SLUDGE DISPOSAL,ENVIRONMENT,WASTE MANAGEMENT-WSTE MNGT SER,HARGREAVES (UK) SERVICES,0000213963,"7,388.91"
DEPARTMENT OF ENERGY AND CLIMATE CHANGE,THE COAL AUTHORITY,12/09/2014,M/W SLUDGE DISPOSAL,ENVIRONMENT,CONSTRUCTION-MAIN CONTRACTORS,INTEGRATED WATER SERVICES,0000214031,"1,464.89"
DEPARTMENT OF ENERGY AND CLIMATE CHANGE,THE COAL AUTHORITY,17/08/2014,M/W TELECOMS & TELEMETRY,ENVIRONMENT,ICT-TELECOMS,WYLESS PLC,0000213653,50.00
DEPARTMENT OF ENERGY AND CLIMATE CHANGE,THE COAL AUTHORITY,16/08/2014,M/W TELECOMS & TELEMETRY,ENVIRONMENT,ICT-TELECOMS,VODAFONE LIMITED (CORPORA,0000213655,363.65
DEPARTMENT OF ENERGY AND CLIMATE CHANGE,THE COAL AUTHORITY,02/09/2014,M/W TELECOMS & TELEMETRY,ENVIRONMENT,ICT-TELECOMS,O2 (UK) LIMITED,0000213792,12.50
DEPARTMENT OF ENERGY AND CLIMATE CHANGE,THE COAL AUTHORITY,02/09/2014,M/W TELECOMS & TELEMETRY,ENVIRONMENT,ICT-TELECOMS,O2 (UK) LIMITED,0000213793,12.50
DEPARTMENT OF ENERGY AND CLIMATE CHANGE,THE COAL AUTHORITY,02/09/2014,M/W TELECOMS & TELEMETRY,ENVIRONMENT,ICT-TELECOMS,O2 (UK) LIMITED,0000213794,12.50
DEPARTMENT OF ENERGY AND CLIMATE CHANGE,THE COAL AUTHORITY,17/09/2014,M/W TELECOMS & TELEMETRY,ENVIRONMENT,ICT-TELECOMS,WYLESS PLC,0000214194,50.00
DEPARTMENT OF ENERGY AND CLIMATE CHANGE,THE COAL AUTHORITY,15/09/2014,M/W TELECOMS & TELEMETRY,ENVIRONMENT,ICT-TELECOMS,VODAFONE LIMITED (CORPORA,0000214200,383.32
DEPARTMENT OF ENERGY AND CLIMATE CHANGE,THE COAL AUTHORITY,03/09/2014,M/W WATER CHARGES,ENVIRONMENT,ENERGY&UTILITIES-WATER,NORTHUMBRIAN WATER LIMITE,0000213860,51.85
DEPARTMENT OF ENERGY AND CLIMATE CHANGE,THE COAL AUTHORITY,29/08/2014,M/W WATER CHARGES,ENVIRONMENT,ENERGY&UTILITIES-WATER,NORTHUMBRIAN WATER LIMITE,0000213877,25.26
DEPARTMENT OF ENERGY AND CLIMATE CHANGE,THE COAL AUTHORITY,10/09/2014,MONITORING & FLOW MEASUREMENT,ENVIRONMENT,PROF SER CNSLTNCY-PPM CNSLTNCY,INTEGRATED WATER SERVICES,0000213913,"1,218.92"
DEPARTMENT OF ENERGY AND CLIMATE CHANGE,THE COAL AUTHORITY,31/07/2014,PAYMENTS TO AGENCIES FOR TEMPS,ENVIRONMENT,PROF SER TMP STFF-SPCLST CNTRT,AQUA CONSULTANTS,0000212969,"6,459.54"
DEPARTMENT OF ENERGY AND CLIMATE CHANGE,THE COAL AUTHORITY,15/08/2014,PAYMENTS TO AGENCIES FOR TEMPS,ENVIRONMENT,PROF SER TMP STFF-TEMP WRKERS,KEY PERSONNEL SOLUTIONS L,0000213440,431.42
DEPARTMENT OF ENERGY AND CLIMATE CHANGE,THE COAL AUTHORITY,22/08/2014,PAYMENTS TO AGENCIES FOR TEMPS,ENVIRONMENT,PROF SER TMP STFF-TEMP WRKERS,KEY PERSONNEL SOLUTIONS L,0000213621,384.78
DEPARTMENT OF ENERGY AND CLIMATE CHANGE,THE COAL AUTHORITY,28/08/2014,PAYMENTS TO AGENCIES FOR TEMPS,ENVIRONMENT,PROF SER TMP STFF-SPCLST CNTRT,MOTT MACDONALD LTD,0000213642,"4,955.58"
DEPARTMENT OF ENERGY AND CLIMATE CHANGE,THE COAL AUTHORITY,14/08/2014,PAYMENTS TO AGENCIES FOR TEMPS,ENVIRONMENT,PROF SER TMP STFF-SPCLST CNTRT,HUXLEY ASSOCIATES,0000213667,"1,845.00"
DEPARTMENT OF ENERGY AND CLIMATE CHANGE,THE COAL AUTHORITY,19/08/2014,PAYMENTS TO AGENCIES FOR TEMPS,ENVIRONMENT,PROF SER TMP STFF-SPCLST CNTRT,HUXLEY ASSOCIATES,0000213668,"1,878.35"
DEPARTMENT OF ENERGY AND CLIMATE CHANGE,THE COAL AUTHORITY,31/08/2014,PAYMENTS TO AGENCIES FOR TEMPS,ENVIRONMENT,PROF SER TMP STFF-SPCLST CNTRT,AQUA CONSULTANTS,0000213701,"10,715.07"
DEPARTMENT OF ENERGY AND CLIMATE CHANGE,THE COAL AUTHORITY,31/08/2014,PAYMENTS TO AGENCIES FOR TEMPS,ENVIRONMENT,PROF SER TMP STFF-SPCLST CNTRT,AQUA CONSULTANTS,0000213702,"7,989.20"
DEPARTMENT OF ENERGY AND CLIMATE CHANGE,THE COAL AUTHORITY,31/08/2014,PAYMENTS TO AGENCIES FOR TEMPS,ENVIRONMENT,PROF SER TMP STFF-SPCLST CNTRT,AQUA CONSULTANTS,0000213703,411.66
DEPARTMENT OF ENERGY AND CLIMATE CHANGE,THE COAL AUTHORITY,31/08/2014,PAYMENTS TO AGENCIES FOR TEMPS,ENVIRONMENT,PROF SER TMP STFF-SPCLST CNTRT,AQUA CONSULTANTS,0000213704,731.20
DEPARTMENT OF ENERGY AND CLIMATE CHANGE,THE COAL AUTHORITY,29/08/2014,PAYMENTS TO AGENCIES FOR TEMPS,ENVIRONMENT,PROF SER TMP STFF-TEMP WRKERS,KEY PERSONNEL SOLUTIONS L,0000213731,343.97
DEPARTMENT OF ENERGY AND CLIMATE CHANGE,THE COAL AUTHORITY,05/09/2014,PAYMENTS TO AGENCIES FOR TEMPS,ENVIRONMENT,PROF SER TMP STFF-SPCLST CNTRT,HUXLEY ASSOCIATES,0000213901,"1,783.50"
DEPARTMENT OF ENERGY AND CLIMATE CHANGE,THE COAL AUTHORITY,29/08/2014,PAYMENTS TO AGENCIES FOR TEMPS,ENVIRONMENT,PROF SER TMP STFF-SPCLST CNTRT,HUXLEY ASSOCIATES,0000213902,"1,394.00"
DEPARTMENT OF ENERGY AND CLIMATE CHANGE,THE COAL AUTHORITY,05/09/2014,PAYMENTS TO AGENCIES FOR TEMPS,ENVIRONMENT,PROF SER TMP STFF-TEMP WRKERS,KEY PERSONNEL SOLUTIONS L,0000213972,431.42
DEPARTMENT OF ENERGY AND CLIMATE CHANGE,THE COAL AUTHORITY,12/09/2014,PAYMENTS TO AGENCIES FOR TEMPS,ENVIRONMENT,PROF SER TMP STFF-TEMP WRKERS,KEY PERSONNEL SOLUTIONS L,0000214279,437.25
DEPARTMENT OF ENERGY AND CLIMATE CHANGE,THE COAL AUTHORITY,19/09/2014,PAYMENTS TO AGENCIES FOR TEMPS,ENVIRONMENT,PROF SER TMP STFF-TEMP WRKERS,KEY PERSONNEL SOLUTIONS L,0000214282,431.42
DEPARTMENT OF ENERGY AND CLIMATE CHANGE,THE COAL AUTHORITY,26/08/2014,PROJECT MANAGEMENT-BOREHOLES,ENVIRONMENT,PROF SER TECH-ENGINEERING SER,MOTT MACDONALD LTD,0000213638,271.90
DEPARTMENT OF ENERGY AND CLIMATE CHANGE,THE COAL AUTHORITY,26/08/2014,PROJECT MANAGEMENT-BOREHOLES,ENVIRONMENT,PROF SER TECH-ENGINEERING SER,MOTT MACDONALD LTD,0000213639,167.42
DEPARTMENT OF ENERGY AND CLIMATE CHANGE,THE COAL AUTHORITY,31/08/2014,PROJECT MANAGEMENT-BOREHOLES,ENVIRONMENT,PROF SER TECH-ENGINEERING SER,JMC ENGINEERING (UK) LTD,0000213797,74.00
DEPARTMENT OF ENERGY AND CLIMATE CHANGE,THE COAL AUTHORITY,31/08/2014,PROJECT MANAGEMENT-BOREHOLES,ENVIRONMENT,PROF SER CNSLTNCY-TCHNL CNSLTY,JMC ENGINEERING (UK) LTD,0000213812,"2,194.00"
DEPARTMENT OF ENERGY AND CLIMATE CHANGE,THE COAL AUTHORITY,31/08/2014,PROJECT MANAGEMENT-BOREHOLES,ENVIRONMENT,PROF SER TECH-ENGINEERING SER,JMC ENGINEERING (UK) LTD,0000213889,"2,031.10"
DEPARTMENT OF ENERGY AND CLIMATE CHANGE,THE COAL AUTHORITY,17/09/2014,PROJECT MANAGEMENT-BOREHOLES,ENVIRONMENT,PROF SER TECH-ENGINEERING SER,JMC ENGINEERING (UK) LTD,0000214197,-7.55
DEPARTMENT OF ENERGY AND CLIMATE CHANGE,THE COAL AUTHORITY,21/08/2014,PUMP OVERHAULS,ENVIRONMENT,LOGISTICS-WAREHOUSE&STORAGE,THE DERITEND GROUP LIMITE,0000213651,"3,240.00"
DEPARTMENT OF ENERGY AND CLIMATE CHANGE,THE COAL AUTHORITY,31/08/2014,PUMP OVERHAULS,ENVIRONMENT,LOGISTICS-WAREHOUSE&STORAGE,THE DERITEND GROUP LIMITE,0000213868,"4,217.57"
DEPARTMENT OF ENERGY AND CLIMATE CHANGE,THE COAL AUTHORITY,31/08/2014,PUMP OVERHAULS,ENVIRONMENT,LOGISTICS-WAREHOUSE&STORAGE,THE DERITEND GROUP LIMITE,0000213869,"7,170.55"
DEPARTMENT OF ENERGY AND CLIMATE CHANGE,THE COAL AUTHORITY,31/08/2014,PUMP OVERHAULS,ENVIRONMENT,LOGISTICS-WAREHOUSE&STORAGE,THE DERITEND GROUP LIMITE,0000213870,"3,336.00"
DEPARTMENT OF ENERGY AND CLIMATE CHANGE,THE COAL AUTHORITY,31/08/2014,PUMP OVERHAULS,ENVIRONMENT,LOGISTICS-WAREHOUSE&STORAGE,THE DERITEND GROUP LIMITE,0000213871,"2,206.00"
DEPARTMENT OF ENERGY AND CLIMATE CHANGE,THE COAL AUTHORITY,31/08/2014,R&D-EXTERNAL COSTS,ENVIRONMENT,PROF SER TECH-ENGINEERING SER,BAM NUTTALL LTD,0000213663,"4,934.56"
DEPARTMENT OF ENERGY AND CLIMATE CHANGE,THE COAL AUTHORITY,08/09/2014,SUBSISTENCE ALLOWANCES,ENVIRONMENT,FACILITIES - FOOD,COMPANY BARCLAYCARD,0000214048,44.36
DEPARTMENT OF ENERGY AND CLIMATE CHANGE,THE COAL AUTHORITY,08/09/2014,SUBSISTENCE ALLOWANCES,ENVIRONMENT,FACILITIES - FOOD,COMPANY BARCLAYCARD,0000214119,6.16
DEPARTMENT OF ENERGY AND CLIMATE CHANGE,THE COAL AUTHORITY,08/09/2014,SUBSISTENCE ALLOWANCES,ENVIRONMENT,FACILITIES - FOOD,COMPANY BARCLAYCARD,0000214120,23.96
DEPARTMENT OF ENERGY AND CLIMATE CHANGE,THE COAL AUTHORITY,08/09/2014,SUBSISTENCE ALLOWANCES,ENVIRONMENT,FACILITIES - FOOD,COMPANY BARCLAYCARD,0000214121,6.53
DEPARTMENT OF ENERGY AND CLIMATE CHANGE,THE COAL AUTHORITY,08/09/2014,SUBSISTENCE ALLOWANCES,ENVIRONMENT,FACILITIES - FOOD,COMPANY BARCLAYCARD,0000214129,25.00
DEPARTMENT OF ENERGY AND CLIMATE CHANGE,THE COAL AUTHORITY,08/09/2014,SUBSISTENCE ALLOWANCES,ENVIRONMENT,FACILITIES - FOOD,COMPANY BARCLAYCARD,0000214135,24.51
DEPARTMENT OF ENERGY AND CLIMATE CHANGE,THE COAL AUTHORITY,08/09/2014,SUBSISTENCE ALLOWANCES,ENVIRONMENT,FACILITIES - FOOD,COMPANY BARCLAYCARD,0000214139,6.17
DEPARTMENT OF ENERGY AND CLIMATE CHANGE,THE COAL AUTHORITY,08/09/2014,SUBSISTENCE ALLOWANCES,ENVIRONMENT,FACILITIES - FOOD,COMPANY BARCLAYCARD,0000214143,26.25
DEPARTMENT OF ENERGY AND CLIMATE CHANGE,THE COAL AUTHORITY,08/09/2014,SUBSISTENCE ALLOWANCES,ENVIRONMENT,FACILITIES - FOOD,COMPANY BARCLAYCARD,0000214155,3.88
DEPARTMENT OF ENERGY AND CLIMATE CHANGE,THE COAL AUTHORITY,23/09/2014,SUBSISTENCE ALLOWANCES,ENVIRONMENT,FACILITIES - FOOD,STAFF EXPENSES CONTROL,0000214245,6.17
DEPARTMENT OF ENERGY AND CLIMATE CHANGE,THE COAL AUTHORITY,23/09/2014,SUBSISTENCE ALLOWANCES,ENVIRONMENT,FACILITIES - FOOD,STAFF EXPENSES CONTROL,0000214264,21.13
DEPARTMENT OF ENERGY AND CLIMATE CHANGE,THE COAL AUTHORITY,23/09/2014,SUBSISTENCE ALLOWANCES,ENVIRONMENT,FACILITIES - FOOD,STAFF EXPENSES CONTROL,0000214268,78.18
DEPARTMENT OF ENERGY AND CLIMATE CHANGE,THE COAL AUTHORITY,14/08/2014,TRAINING AND EDUCATION,ENVIRONMENT,PROF SER LRNG&DEV-STAFF TRNING,PCS LTD,0000213315,105.00
DEPARTMENT OF ENERGY AND CLIMATE CHANGE,THE COAL AUTHORITY,15/08/2014,TRAINING AND EDUCATION,ENVIRONMENT,PROF SER LRNG&DEV-STAFF TRNING,AQUA ENVIRO LTD,0000213513,320.00
DEPARTMENT OF ENERGY AND CLIMATE CHANGE,THE COAL AUTHORITY,11/09/2014,TRAINING AND EDUCATION,ENVIRONMENT,PROF SER LRNG&DEV-STAFF TRNING,PCS LTD,0000213976,540.00
DEPARTMENT OF ENERGY AND CLIMATE CHANGE,THE COAL AUTHORITY,29/08/2014,TRAINING AND EDUCATION,ENVIRONMENT,PROF SER LRNG&DEV-STAFF TRNING,PCS LTD,0000213982,105.00
DEPARTMENT OF ENERGY AND CLIMATE CHANGE,THE COAL AUTHORITY,08/09/2014,TRAINING AND EDUCATION,ENVIRONMENT,PROF SER LRNG&DEV-STAFF TRNING,COMPANY BARCLAYCARD,0000214119,295.00
DEPARTMENT OF ENERGY AND CLIMATE CHANGE,THE COAL AUTHORITY,31/07/2014,WATER SAMPLING - DEVELOPMENT,ENVIRONMENT,PROF SER TECH-FORENSIC/LAB SER,ENVIRONMENTAL SCIENTIFICS,0000213303,42.20
DEPARTMENT OF ENERGY AND CLIMATE CHANGE,THE COAL AUTHORITY,28/08/2014,WATER SAMPLING - DEVELOPMENT,ENVIRONMENT,PROF SER TECH-FORENSIC/LAB SER,ENVIRONMENTAL SCIENTIFICS,0000213633,"4,928.20"
DEPARTMENT OF ENERGY AND CLIMATE CHANGE,THE COAL AUTHORITY,26/08/2014,WATER SAMPLING - OPERATIONAL,ENVIRONMENT,PROF SER TECH-FORENSIC/LAB SER,ENVIRONMENTAL SCIENTIFICS,0000213631,35.00
DEPARTMENT OF ENERGY AND CLIMATE CHANGE,THE COAL AUTHORITY,28/08/2014,WATER SAMPLING - OPERATIONAL,ENVIRONMENT,PROF SER TECH-FORENSIC/LAB SER,ENVIRONMENTAL SCIENTIFICS,0000213632,110.00
DEPARTMENT OF ENERGY AND CLIMATE CHANGE,THE COAL AUTHORITY,28/08/2014,WATER SAMPLING - OPERATIONAL,ENVIRONMENT,PROF SER TECH-FORENSIC/LAB SER,ENVIRONMENTAL SCIENTIFICS,0000213634,"6,008.58"
DEPARTMENT OF ENERGY AND CLIMATE CHANGE,THE COAL AUTHORITY,21/08/2014,BUILDING SECURITY - STAFF,FACILITIES MANAGEMENT,FACILITIES - SECURITY,NORLAND MANAGED SERVICES,0000213714,"5,374.00"
DEPARTMENT OF ENERGY AND CLIMATE CHANGE,THE COAL AUTHORITY,22/08/2014,CONTRACT HIRE VEHICLES,FACILITIES MANAGEMENT,VEHICLES-VEHICLE MAINTENANCE,PENTAGON,0000213458,21.15
DEPARTMENT OF ENERGY AND CLIMATE CHANGE,THE COAL AUTHORITY,22/08/2014,CONTRACT HIRE VEHICLES,FACILITIES MANAGEMENT,VEHICLES-VEHICLE MAINTENANCE,PENTAGON,0000213459,21.15
DEPARTMENT OF ENERGY AND CLIMATE CHANGE,THE COAL AUTHORITY,22/08/2014,CONTRACT HIRE VEHICLES,FACILITIES MANAGEMENT,VEHICLES-VEHICLE MAINTENANCE,PENTAGON,0000213460,21.15
DEPARTMENT OF ENERGY AND CLIMATE CHANGE,THE COAL AUTHORITY,22/08/2014,CONTRACT HIRE VEHICLES,FACILITIES MANAGEMENT,VEHICLES-VEHICLE MAINTENANCE,PENTAGON,0000213461,21.15
DEPARTMENT OF ENERGY AND CLIMATE CHANGE,THE COAL AUTHORITY,26/08/2014,CONTRACT HIRE VEHICLES,FACILITIES MANAGEMENT,VEHICLES-VEHICLE MAINTENANCE,PENTAGON,0000213514,21.15
DEPARTMENT OF ENERGY AND CLIMATE CHANGE,THE COAL AUTHORITY,26/08/2014,CONTRACT HIRE VEHICLES,FACILITIES MANAGEMENT,VEHICLES-VEHICLE MAINTENANCE,PENTAGON,0000213515,21.15
DEPARTMENT OF ENERGY AND CLIMATE CHANGE,THE COAL AUTHORITY,26/08/2014,CONTRACT HIRE VEHICLES,FACILITIES MANAGEMENT,VEHICLES-VEHICLE MAINTENANCE,PENTAGON,0000213516,22.89
DEPARTMENT OF ENERGY AND CLIMATE CHANGE,THE COAL AUTHORITY,26/08/2014,CONTRACT HIRE VEHICLES,FACILITIES MANAGEMENT,VEHICLES-VEHICLE MAINTENANCE,PENTAGON,0000213517,21.15
DEPARTMENT OF ENERGY AND CLIMATE CHANGE,THE COAL AUTHORITY,31/08/2014,CONTRACT HIRE VEHICLES,FACILITIES MANAGEMENT,VEHICLES-VEHICLE MAINTENANCE,AUTO SMART VALETING LTD,0000213900,432.00
DEPARTMENT OF ENERGY AND CLIMATE CHANGE,THE COAL AUTHORITY,08/09/2014,CONTRACT HIRE VEHICLES,FACILITIES MANAGEMENT,VEHICLES-VEHICLE MAINTENANCE,COMPANY BARCLAYCARD,0000214042,11.64
DEPARTMENT OF ENERGY AND CLIMATE CHANGE,THE COAL AUTHORITY,29/07/2014,CONTRACT HIRE VEHICLES,FACILITIES MANAGEMENT,VEHICLES-VEHICLE MAINTENANCE,PENTAGON,0000214147,21.15
DEPARTMENT OF ENERGY AND CLIMATE CHANGE,THE COAL AUTHORITY,29/07/2014,CONTRACT HIRE VEHICLES,FACILITIES MANAGEMENT,VEHICLES-VEHICLE MAINTENANCE,PENTAGON,0000214148,21.15
DEPARTMENT OF ENERGY AND CLIMATE CHANGE,THE COAL AUTHORITY,29/07/2014,CONTRACT HIRE VEHICLES,FACILITIES MANAGEMENT,VEHICLES-VEHICLE MAINTENANCE,PENTAGON,0000214149,21.15
DEPARTMENT OF ENERGY AND CLIMATE CHANGE,THE COAL AUTHORITY,29/07/2014,CONTRACT HIRE VEHICLES,FACILITIES MANAGEMENT,VEHICLES-VEHICLE MAINTENANCE,PENTAGON,0000214150,21.15
DEPARTMENT OF ENERGY AND CLIMATE CHANGE,THE COAL AUTHORITY,29/07/2014,CONTRACT HIRE VEHICLES,FACILITIES MANAGEMENT,VEHICLES-VEHICLE MAINTENANCE,PENTAGON,0000214151,21.15
DEPARTMENT OF ENERGY AND CLIMATE CHANGE,THE COAL AUTHORITY,01/09/2014,COURIER SERVICES,FACILITIES MANAGEMENT,FACILITIES - SECURITY,SECURITY PLUS LIMITED,0000213662,46.00
DEPARTMENT OF ENERGY AND CLIMATE CHANGE,THE COAL AUTHORITY,29/08/2014,COURIER SERVICES,FACILITIES MANAGEMENT,OFFICE SOLUTIONS-POST&COURIER,TNT UK LIMITED,0000213722,104.25
DEPARTMENT OF ENERGY AND CLIMATE CHANGE,THE COAL AUTHORITY,12/09/2014,COURIER SERVICES,FACILITIES MANAGEMENT,OFFICE SOLUTIONS-POST&COURIER,TNT UK LIMITED,0000214178,107.16
DEPARTMENT OF ENERGY AND CLIMATE CHANGE,THE COAL AUTHORITY,01/08/2014,COURIER SERVICES,FACILITIES MANAGEMENT,FACILITIES - SECURITY,SECURITY PLUS LIMITED,0000214235,51.75
DEPARTMENT OF ENERGY AND CLIMATE CHANGE,THE COAL AUTHORITY,10/09/2014,ELECTRICITY,FACILITIES MANAGEMENT,ENERGY&UTILITIES-ELECTRICITY,EDF ENERGY,0000213983,"10,795.23"
DEPARTMENT OF ENERGY AND CLIMATE CHANGE,THE COAL AUTHORITY,31/08/2014,FARES - PUBLIC TRANSPORT,FACILITIES MANAGEMENT,TRAVEL&EVENTS-TAXI,ACE OF MANSFIELD LTD,0000213729,25.00
DEPARTMENT OF ENERGY AND CLIMATE CHANGE,THE COAL AUTHORITY,03/09/2014,FUEL (VEHICLE),FACILITIES MANAGEMENT,FUELS/LUBRCNT/GAS-FUELS,ALLSTAR BUSINESS SOLUTION,0000213739,43.63
DEPARTMENT OF ENERGY AND CLIMATE CHANGE,THE COAL AUTHORITY,03/09/2014,FUEL (VEHICLE),FACILITIES MANAGEMENT,FUELS/LUBRCNT/GAS-FUELS,ALLSTAR BUSINESS SOLUTION,0000213740,93.79
DEPARTMENT OF ENERGY AND CLIMATE CHANGE,THE COAL AUTHORITY,03/09/2014,FUEL (VEHICLE),FACILITIES MANAGEMENT,FUELS/LUBRCNT/GAS-FUELS,ALLSTAR BUSINESS SOLUTION,0000213741,43.43
DEPARTMENT OF ENERGY AND CLIMATE CHANGE,THE COAL AUTHORITY,03/09/2014,FUEL (VEHICLE),FACILITIES MANAGEMENT,FUELS/LUBRCNT/GAS-FUELS,ALLSTAR BUSINESS SOLUTION,0000213742,48.09
DEPARTMENT OF ENERGY AND CLIMATE CHANGE,THE COAL AUTHORITY,03/09/2014,FUEL (VEHICLE),FACILITIES MANAGEMENT,FUELS/LUBRCNT/GAS-FUELS,ALLSTAR BUSINESS SOLUTION,0000213743,31.88
DEPARTMENT OF ENERGY AND CLIMATE CHANGE,THE COAL AUTHORITY,03/09/2014,FUEL (VEHICLE),FACILITIES MANAGEMENT,FUELS/LUBRCNT/GAS-FUELS,ALLSTAR BUSINESS SOLUTION,0000213744,61.50
DEPARTMENT OF ENERGY AND CLIMATE CHANGE,THE COAL AUTHORITY,03/09/2014,FUEL (VEHICLE),FACILITIES MANAGEMENT,FUELS/LUBRCNT/GAS-FUELS,ALLSTAR BUSINESS SOLUTION,0000213745,120.40
DEPARTMENT OF ENERGY AND CLIMATE CHANGE,THE COAL AUTHORITY,03/09/2014,FUEL (VEHICLE),FACILITIES MANAGEMENT,FUELS/LUBRCNT/GAS-FUELS,ALLSTAR BUSINESS SOLUTION,0000213746,45.85
DEPARTMENT OF ENERGY AND CLIMATE CHANGE,THE COAL AUTHORITY,10/09/2014,FUEL (VEHICLE),FACILITIES MANAGEMENT,FUELS/LUBRCNT/GAS-FUELS,ALLSTAR BUSINESS SOLUTION,0000213947,91.77
DEPARTMENT OF ENERGY AND CLIMATE CHANGE,THE COAL AUTHORITY,10/09/2014,FUEL (VEHICLE),FACILITIES MANAGEMENT,FUELS/LUBRCNT/GAS-FUELS,ALLSTAR BUSINESS SOLUTION,0000213948,93.61
DEPARTMENT OF ENERGY AND CLIMATE CHANGE,THE COAL AUTHORITY,10/09/2014,FUEL (VEHICLE),FACILITIES MANAGEMENT,FUELS/LUBRCNT/GAS-FUELS,ALLSTAR BUSINESS SOLUTION,0000213949,70.01
DEPARTMENT OF ENERGY AND CLIMATE CHANGE,THE COAL AUTHORITY,10/09/2014,FUEL (VEHICLE),FACILITIES MANAGEMENT,FUELS/LUBRCNT/GAS-FUELS,ALLSTAR BUSINESS SOLUTION,0000213950,54.64
DEPARTMENT OF ENERGY AND CLIMATE CHANGE,THE COAL AUTHORITY,10/09/2014,FUEL (VEHICLE),FACILITIES MANAGEMENT,FUELS/LUBRCNT/GAS-FUELS,ALLSTAR BUSINESS SOLUTION,0000213951,37.73
DEPARTMENT OF ENERGY AND CLIMATE CHANGE,THE COAL AUTHORITY,10/09/2014,FUEL (VEHICLE),FACILITIES MANAGEMENT,FUELS/LUBRCNT/GAS-FUELS,ALLSTAR BUSINESS SOLUTION,0000213952,33.20
DEPARTMENT OF ENERGY AND CLIMATE CHANGE,THE COAL AUTHORITY,10/09/2014,FUEL (VEHICLE),FACILITIES MANAGEMENT,FUELS/LUBRCNT/GAS-FUELS,ALLSTAR BUSINESS SOLUTION,0000213953,82.74
DEPARTMENT OF ENERGY AND CLIMATE CHANGE,THE COAL AUTHORITY,17/09/2014,FUEL (VEHICLE),FACILITIES MANAGEMENT,FUELS/LUBRCNT/GAS-FUELS,ALLSTAR BUSINESS SOLUTION,0000214156,38.29
DEPARTMENT OF ENERGY AND CLIMATE CHANGE,THE COAL AUTHORITY,17/09/2014,FUEL (VEHICLE),FACILITIES MANAGEMENT,FUELS/LUBRCNT/GAS-FUELS,ALLSTAR BUSINESS SOLUTION,0000214157,55.59
DEPARTMENT OF ENERGY AND CLIMATE CHANGE,THE COAL AUTHORITY,17/09/2014,FUEL (VEHICLE),FACILITIES MANAGEMENT,FUELS/LUBRCNT/GAS-FUELS,ALLSTAR BUSINESS SOLUTION,0000214158,33.33
DEPARTMENT OF ENERGY AND CLIMATE CHANGE,THE COAL AUTHORITY,17/09/2014,FUEL (VEHICLE),FACILITIES MANAGEMENT,FUELS/LUBRCNT/GAS-FUELS,ALLSTAR BUSINESS SOLUTION,0000214159,13.33
DEPARTMENT OF ENERGY AND CLIMATE CHANGE,THE COAL AUTHORITY,17/09/2014,FUEL (VEHICLE),FACILITIES MANAGEMENT,FUELS/LUBRCNT/GAS-FUELS,COMPANY BARCLAYCARD,0000214160,124.51
DEPARTMENT OF ENERGY AND CLIMATE CHANGE,THE COAL AUTHORITY,17/09/2014,FUEL (VEHICLE),FACILITIES MANAGEMENT,FUELS/LUBRCNT/GAS-FUELS,ALLSTAR BUSINESS SOLUTION,0000214161,59.20
DEPARTMENT OF ENERGY AND CLIMATE CHANGE,THE COAL AUTHORITY,17/09/2014,FUEL (VEHICLE),FACILITIES MANAGEMENT,FUELS/LUBRCNT/GAS-FUELS,ALLSTAR BUSINESS SOLUTION,0000214162,73.07
DEPARTMENT OF ENERGY AND CLIMATE CHANGE,THE COAL AUTHORITY,24/09/2014,FUEL (VEHICLE),FACILITIES MANAGEMENT,FUELS/LUBRCNT/GAS-FUELS,ALLSTAR BUSINESS SOLUTION,0000214349,59.01
DEPARTMENT OF ENERGY AND CLIMATE CHANGE,THE COAL AUTHORITY,24/09/2014,FUEL (VEHICLE),FACILITIES MANAGEMENT,FUELS/LUBRCNT/GAS-FUELS,ALLSTAR BUSINESS SOLUTION,0000214350,106.35
DEPARTMENT OF ENERGY AND CLIMATE CHANGE,THE COAL AUTHORITY,24/09/2014,FUEL (VEHICLE),FACILITIES MANAGEMENT,FUELS/LUBRCNT/GAS-FUELS,ALLSTAR BUSINESS SOLUTION,0000214351,60.00
DEPARTMENT OF ENERGY AND CLIMATE CHANGE,THE COAL AUTHORITY,24/09/2014,FUEL (VEHICLE),FACILITIES MANAGEMENT,FUELS/LUBRCNT/GAS-FUELS,ALLSTAR BUSINESS SOLUTION,0000214352,49.31
DEPARTMENT OF ENERGY AND CLIMATE CHANGE,THE COAL AUTHORITY,24/09/2014,FUEL (VEHICLE),FACILITIES MANAGEMENT,FUELS/LUBRCNT/GAS-FUELS,ALLSTAR BUSINESS SOLUTION,0000214353,81.00
DEPARTMENT OF ENERGY AND CLIMATE CHANGE,THE COAL AUTHORITY,24/09/2014,FUEL (VEHICLE),FACILITIES MANAGEMENT,FUELS/LUBRCNT/GAS-FUELS,ALLSTAR BUSINESS SOLUTION,0000214354,26.11
DEPARTMENT OF ENERGY AND CLIMATE CHANGE,THE COAL AUTHORITY,24/09/2014,FUEL (VEHICLE),FACILITIES MANAGEMENT,FUELS/LUBRCNT/GAS-FUELS,ALLSTAR BUSINESS SOLUTION,0000214355,73.16
DEPARTMENT OF ENERGY AND CLIMATE CHANGE,THE COAL AUTHORITY,27/08/2014,INSURANCE PREMIUMS,FACILITIES MANAGEMENT,VEHICLES-FLEET MANAGEMENT,WILLIS LIMITED,0000213911,"1,875.00"
DEPARTMENT OF ENERGY AND CLIMATE CHANGE,THE COAL AUTHORITY,08/03/2014,MEETINGS,FACILITIES MANAGEMENT,FACILITIES - CATERING,NORLAND MANAGED SERVICES,0000209031,"1,122.37"
DEPARTMENT OF ENERGY AND CLIMATE CHANGE,THE COAL AUTHORITY,29/08/2014,PAYMENTS TO AGENCIES FOR TEMPS,FACILITIES MANAGEMENT,PROF SER TMP STFF-TEMP WRKERS,KEY PERSONNEL SOLUTIONS L,0000213731,72.88
DEPARTMENT OF ENERGY AND CLIMATE CHANGE,THE COAL AUTHORITY,19/09/2014,COURIER SERVICES,FACILITIES MANAGEMENT,OFFICE SOLUTIONS-POST&COURIER,TNT UK LIMITED,0000214285,101.78
DEPARTMENT OF ENERGY AND CLIMATE CHANGE,THE COAL AUTHORITY,22/08/2014,PLANT MAINTENANCE,FACILITIES MANAGEMENT,FACILITIES-BUILDING MANAGEMENT,NORLAND MANAGED SERVICES,0000213526,69.30
DEPARTMENT OF ENERGY AND CLIMATE CHANGE,THE COAL AUTHORITY,22/08/2014,PLANT MAINTENANCE,FACILITIES MANAGEMENT,FACILITIES-BUILDING MANAGEMENT,NORLAND MANAGED SERVICES,0000213527,164.01
DEPARTMENT OF ENERGY AND CLIMATE CHANGE,THE COAL AUTHORITY,22/08/2014,PLANT MAINTENANCE,FACILITIES MANAGEMENT,FACILITIES-BUILDING MANAGEMENT,NORLAND MANAGED SERVICES,0000213533,306.57
DEPARTMENT OF ENERGY AND CLIMATE CHANGE,THE COAL AUTHORITY,21/08/2014,PLANT MAINTENANCE,FACILITIES MANAGEMENT,FACILITIES-BUILDING MANAGEMENT,NORLAND MANAGED SERVICES,0000213714,"1,000.00"
DEPARTMENT OF ENERGY AND CLIMATE CHANGE,THE COAL AUTHORITY,27/08/2014,PRINTING,FACILITIES MANAGEMENT,OFFICE SOLUTIONS-PRINT,WILLIAMS LEA,0000213825,80.64
DEPARTMENT OF ENERGY AND CLIMATE CHANGE,THE COAL AUTHORITY,27/08/2014,PRINTING,FACILITIES MANAGEMENT,OFFICE SOLUTIONS-PRINT,WILLIAMS LEA,0000213833,26.88
DEPARTMENT OF ENERGY AND CLIMATE CHANGE,THE COAL AUTHORITY,22/08/2014,SITE MAINTENANCE,FACILITIES MANAGEMENT,FACILITIES-BUILDING MANAGEMENT,NORLAND MANAGED SERVICES,0000213528,550.00
DEPARTMENT OF ENERGY AND CLIMATE CHANGE,THE COAL AUTHORITY,22/08/2014,SITE MAINTENANCE,FACILITIES MANAGEMENT,FACILITIES-BUILDING MANAGEMENT,NORLAND MANAGED SERVICES,0000213530,193.67
DEPARTMENT OF ENERGY AND CLIMATE CHANGE,THE COAL AUTHORITY,22/08/2014,SITE MAINTENANCE,FACILITIES MANAGEMENT,FACILITIES-BUILDING MANAGEMENT,NORLAND MANAGED SERVICES,0000213531,660.00
DEPARTMENT OF ENERGY AND CLIMATE CHANGE,THE COAL AUTHORITY,22/08/2014,SITE MAINTENANCE,FACILITIES MANAGEMENT,FACILITIES-BUILDING MANAGEMENT,NORLAND MANAGED SERVICES,0000213534,123.75
DEPARTMENT OF ENERGY AND CLIMATE CHANGE,THE COAL AUTHORITY,22/08/2014,SITE MAINTENANCE,FACILITIES MANAGEMENT,FACILITIES-BUILDING MANAGEMENT,NORLAND MANAGED SERVICES,0000213535,82.50
DEPARTMENT OF ENERGY AND CLIMATE CHANGE,THE COAL AUTHORITY,21/08/2014,SITE MAINTENANCE,FACILITIES MANAGEMENT,FACILITIES-BUILDING MANAGEMENT,NORLAND MANAGED SERVICES,0000213714,"2,489.18"
DEPARTMENT OF ENERGY AND CLIMATE CHANGE,THE COAL AUTHORITY,29/08/2014,SITE MAINTENANCE,FACILITIES MANAGEMENT,FACILITIES-BUILDING MANAGEMENT,SHIRE SYSTEMS LIMITED,0000214002,99.00
DEPARTMENT OF ENERGY AND CLIMATE CHANGE,THE COAL AUTHORITY,08/09/2014,SITE MAINTENANCE,FACILITIES MANAGEMENT,FACILITIES - CLEANING,COMPANY BARCLAYCARD,0000214042,172.46
DEPARTMENT OF ENERGY AND CLIMATE CHANGE,THE COAL AUTHORITY,08/09/2014,SITE MAINTENANCE,FACILITIES MANAGEMENT,FACILITIES - SECURITY,COMPANY BARCLAYCARD,0000214054,32.03
DEPARTMENT OF ENERGY AND CLIMATE CHANGE,THE COAL AUTHORITY,21/08/2014,SITE SERVICES,FACILITIES MANAGEMENT,FACILITIES-BUILDING MANAGEMENT,NORLAND MANAGED SERVICES,0000213714,"2,071.53"
DEPARTMENT OF ENERGY AND CLIMATE CHANGE,THE COAL AUTHORITY,28/08/2014,SITE SERVICES,FACILITIES MANAGEMENT,WASTE MANAGEMENT-WSTE MNGT SER,BANNER BUSINESS SOLUTIONS,0000213815,21.60
DEPARTMENT OF ENERGY AND CLIMATE CHANGE,THE COAL AUTHORITY,28/08/2014,SITE SERVICES,FACILITIES MANAGEMENT,WASTE MANAGEMENT-WSTE MNGT SER,BANNER BUSINESS SOLUTIONS,0000213816,11.70
DEPARTMENT OF ENERGY AND CLIMATE CHANGE,THE COAL AUTHORITY,11/09/2014,SITE SERVICES,FACILITIES MANAGEMENT,WASTE MANAGEMENT-WSTE MNGT SER,BANNER BUSINESS SOLUTIONS,0000214153,19.80
DEPARTMENT OF ENERGY AND CLIMATE CHANGE,THE COAL AUTHORITY,11/09/2014,SITE SERVICES,FACILITIES MANAGEMENT,WASTE MANAGEMENT-WSTE MNGT SER,BANNER BUSINESS SOLUTIONS,0000214154,12.60
DEPARTMENT OF ENERGY AND CLIMATE CHANGE,THE COAL AUTHORITY,28/08/2014,STATIONERY,FACILITIES MANAGEMENT,OFFICE SOLUTIONS-OFFCE SPPLIES,BANNER BUSINESS SOLUTIONS,0000213817,358.52
DEPARTMENT OF ENERGY AND CLIMATE CHANGE,THE COAL AUTHORITY,04/09/2014,STATIONERY,FACILITIES MANAGEMENT,OFFICE SOLUTIONS-OFFCE SPPLIES,BANNER BUSINESS SOLUTIONS,0000213977,32.28
DEPARTMENT OF ENERGY AND CLIMATE CHANGE,THE COAL AUTHORITY,08/09/2014,STATIONERY,FACILITIES MANAGEMENT,OFFICE SOLUTIONS-OFFCE SPPLIES,COMPANY BARCLAYCARD,0000214042,174.58
DEPARTMENT OF ENERGY AND CLIMATE CHANGE,THE COAL AUTHORITY,08/09/2014,SUNDRY OFFICE EXPENSES,FACILITIES MANAGEMENT,MARKETING & MEDIA-PROMOTION,COMPANY BARCLAYCARD,0000214042,145.50
DEPARTMENT OF ENERGY AND CLIMATE CHANGE,THE COAL AUTHORITY,21/08/2014,TEMP STAFF - CANTEEN,FACILITIES MANAGEMENT,FACILITIES - CATERING,NORLAND MANAGED SERVICES,0000213714,"2,971.00"
DEPARTMENT OF ENERGY AND CLIMATE CHANGE,THE COAL AUTHORITY,22/08/2014,TEMP STAFF - CLEANERS,FACILITIES MANAGEMENT,FACILITIES - CLEANING,NORLAND MANAGED SERVICES,0000213505,711.41
DEPARTMENT OF ENERGY AND CLIMATE CHANGE,THE COAL AUTHORITY,22/08/2014,TEMP STAFF - CLEANERS,FACILITIES MANAGEMENT,FACILITIES - CLEANING,NORLAND MANAGED SERVICES,0000213506,711.41
DEPARTMENT OF ENERGY AND CLIMATE CHANGE,THE COAL AUTHORITY,21/08/2014,TEMP STAFF - CLEANERS,FACILITIES MANAGEMENT,FACILITIES - CLEANING,NORLAND MANAGED SERVICES,0000213714,"3,366.00"
DEPARTMENT OF ENERGY AND CLIMATE CHANGE,THE COAL AUTHORITY,01/09/2014,CHILDCARE VOUCHERS,FINANCE,PERSONNEL RLTD-STAFF CHILDCARE,FIDELITI LIMITED,0000213721,124.00
DEPARTMENT OF ENERGY AND CLIMATE CHANGE,THE COAL AUTHORITY,31/08/2014,HOTEL ACCOMMODATION,FINANCE,TRAVEL&EVENTS-HOTELS,REDFERN TRAVEL LTD,0000213896,1.30
DEPARTMENT OF ENERGY AND CLIMATE CHANGE,THE COAL AUTHORITY,20/08/2014,IT-APPLICATIONS MANAGEMENT,FINANCE,ICT-MAINTENANCE & SUPPORT,SAPPHIRE SYSTEMS PLC,0000213518,"15,345.70"
DEPARTMENT OF ENERGY AND CLIMATE CHANGE,THE COAL AUTHORITY,29/08/2014,OTHER BANK CHARGES,FINANCE,PROF SER FNCL-BANKING&INVSTMNT,NATIONAL WESTMINSTER BANK,0000213720,70.72
DEPARTMENT OF ENERGY AND CLIMATE CHANGE,THE COAL AUTHORITY,23/09/2014,OTHER BANK CHARGES,FINANCE,PROF SER FNCL-CORPTE FINANCE,CITIBANK,0000214344,120.49
DEPARTMENT OF ENERGY AND CLIMATE CHANGE,THE COAL AUTHORITY,23/09/2014,OTHER BANK CHARGES,FINANCE,PROF SER FNCL-CORPTE FINANCE,CITIBANK,0000214345,25.00
DEPARTMENT OF ENERGY AND CLIMATE CHANGE,THE COAL AUTHORITY,31/08/2014,SALARY PROCESSING FEES,FINANCE,PROF SER FNCL-BUS PROC O/SRCE,CGI IT UK LTD,0000213665,699.50
DEPARTMENT OF ENERGY AND CLIMATE CHANGE,THE COAL AUTHORITY,08/09/2014,TRAINING AND EDUCATION,FINANCE,PROF SER LRNG&DEV-STAFF TRNING,COMPANY BARCLAYCARD,0000214039,91.00
DEPARTMENT OF ENERGY AND CLIMATE CHANGE,THE COAL AUTHORITY,31/08/2014,FARES - RAIL,HISTORIC LIABILITIES,TRAVEL&EVENTS-RAIL,REDFERN TRAVEL LTD,0000213892,197.05
DEPARTMENT OF ENERGY AND CLIMATE CHANGE,THE COAL AUTHORITY,31/08/2014,HOTEL ACCOMMODATION,HISTORIC LIABILITIES,TRAVEL&EVENTS-HOTELS,REDFERN TRAVEL LTD,0000213896,92.50
DEPARTMENT OF ENERGY AND CLIMATE CHANGE,THE COAL AUTHORITY,08/09/2014,INCIDENTALS,HISTORIC LIABILITIES,VEHICLES-FLEET MANAGEMENT,COMPANY BARCLAYCARD,0000214121,10.83
DEPARTMENT OF ENERGY AND CLIMATE CHANGE,THE COAL AUTHORITY,23/08/2014,IT-APPLICATIONS MANAGEMENT,HISTORIC LIABILITIES,ICT-SYSTEMS DELIVERY,SCISYS UK LTD,0000213710,"1,572.46"
DEPARTMENT OF ENERGY AND CLIMATE CHANGE,THE COAL AUTHORITY,29/08/2014,LEGAL COSTS,HISTORIC LIABILITIES,PROF SER-OPERATIONAL SERVICES,LAND REGISTRY,0000213666,3.00
DEPARTMENT OF ENERGY AND CLIMATE CHANGE,THE COAL AUTHORITY,22/08/2014,LEGAL COSTS,HISTORIC LIABILITIES,PROF SER-OPERATIONAL SERVICES,LAND REGISTRY,0000213760,24.00
DEPARTMENT OF ENERGY AND CLIMATE CHANGE,THE COAL AUTHORITY,05/09/2014,LEGAL COSTS,HISTORIC LIABILITIES,PROF SER-OPERATIONAL SERVICES,LAND REGISTRY,0000213761,12.00
DEPARTMENT OF ENERGY AND CLIMATE CHANGE,THE COAL AUTHORITY,08/09/2014,LEGAL COSTS,HISTORIC LIABILITIES,PROF SER-LEGAL SERVICES,LEGAL FEES INCURRED BY NE,0000213772,"1,500.00"
DEPARTMENT OF ENERGY AND CLIMATE CHANGE,THE COAL AUTHORITY,25/09/2014,LEGAL COSTS,HISTORIC LIABILITIES,PROF SER-OPERATIONAL SERVICES,LAND REGISTRY,0000214342,12.00
DEPARTMENT OF ENERGY AND CLIMATE CHANGE,THE COAL AUTHORITY,19/09/2014,LEGAL COSTS,HISTORIC LIABILITIES,PROF SER-LEGAL SERVICES,WALKER MORRIS,0000214381,"4,020.30"
DEPARTMENT OF ENERGY AND CLIMATE CHANGE,THE COAL AUTHORITY,26/09/2014,LEGAL COSTS,HISTORIC LIABILITIES,PROF SER-OPERATIONAL SERVICES,LAND REGISTRY,0000214387,3.00
DEPARTMENT OF ENERGY AND CLIMATE CHANGE,THE COAL AUTHORITY,04/08/2014,PROPERTY RATES PAYABLE,HISTORIC LIABILITIES,ENERGY&UTILITIES-ELECTRICITY,STARK SOFTWARE INT LIMITE,0000213310,127.18
DEPARTMENT OF ENERGY AND CLIMATE CHANGE,THE COAL AUTHORITY,05/09/2014,PROPERTY RATES PAYABLE,HISTORIC LIABILITIES,ENERGY&UTILITIES-ELECTRICITY,BRITISH GAS BUSINESS,0000214111,129.50
DEPARTMENT OF ENERGY AND CLIMATE CHANGE,THE COAL AUTHORITY,05/09/2014,PROPERTY RATES PAYABLE,HISTORIC LIABILITIES,ENERGY&UTILITIES-ELECTRICITY,BRITISH GAS BUSINESS,0000214112,12.23
DEPARTMENT OF ENERGY AND CLIMATE CHANGE,THE COAL AUTHORITY,01/09/2014,PROPERTY RENTS PAYABLE,HISTORIC LIABILITIES,FACILITIES-BUILDING MANAGEMENT,LAMBERT SMITH HAMPTON,0000213660,"2,180.42"
DEPARTMENT OF ENERGY AND CLIMATE CHANGE,THE COAL AUTHORITY,01/09/2014,PROPERTY RENTS PAYABLE,HISTORIC LIABILITIES,FACILITIES-BUILDING MANAGEMENT,LAMBERT SMITH HAMPTON,0000213661,"2,382.08"
DEPARTMENT OF ENERGY AND CLIMATE CHANGE,THE COAL AUTHORITY,11/09/2014,PROPERTY RENTS PAYABLE,HISTORIC LIABILITIES,FACILITIES-BUILDING MANAGEMENT,SECUREITIES LTD,0000214016,"11,815.00"
DEPARTMENT OF ENERGY AND CLIMATE CHANGE,THE COAL AUTHORITY,08/09/2014,SUBSISTENCE ALLOWANCES,HISTORIC LIABILITIES,FACILITIES - FOOD,COMPANY BARCLAYCARD,0000214119,3.06
DEPARTMENT OF ENERGY AND CLIMATE CHANGE,THE COAL AUTHORITY,08/09/2014,SUBSISTENCE ALLOWANCES,HISTORIC LIABILITIES,FACILITIES - FOOD,COMPANY BARCLAYCARD,0000214121,9.00
DEPARTMENT OF ENERGY AND CLIMATE CHANGE,THE COAL AUTHORITY,08/09/2014,ADVERTISING EXP - RECRUITMENT,HUMAN RESRCES&ORGNSTL DEVLPMNT,PROF SER-OPERATIONAL SERVICES,COMPANY BARCLAYCARD,0000214123,"3,380.75"
DEPARTMENT OF ENERGY AND CLIMATE CHANGE,THE COAL AUTHORITY,25/08/2014,CENTRAL TRAINING BUDGET,HUMAN RESRCES&ORGNSTL DEVLPMNT,PROF SER LRNG&DEV-STAFF TRNING,OE CAM LLP,0000213620,"1,752.40"
DEPARTMENT OF ENERGY AND CLIMATE CHANGE,THE COAL AUTHORITY,16/07/2014,CENTRAL TRAINING BUDGET,HUMAN RESRCES&ORGNSTL DEVLPMNT,PROF SER LRNG&DEV-STAFF TRNING,OE CAM LLP,0000213828,"4,494.42"
DEPARTMENT OF ENERGY AND CLIMATE CHANGE,THE COAL AUTHORITY,21/07/2014,CENTRAL TRAINING BUDGET,HUMAN RESRCES&ORGNSTL DEVLPMNT,PROF SER LRNG&DEV-STAFF TRNING,OE CAM LLP,0000213829,"2,518.97"
DEPARTMENT OF ENERGY AND CLIMATE CHANGE,THE COAL AUTHORITY,08/09/2014,CENTRAL TRAINING BUDGET,HUMAN RESRCES&ORGNSTL DEVLPMNT,PROF SER LRNG&DEV-STAFF TRNING,OE CAM LLP,0000214175,145.00
DEPARTMENT OF ENERGY AND CLIMATE CHANGE,THE COAL AUTHORITY,01/09/2014,CHILDCARE VCHRS-SERVICE CHARGE,HUMAN RESRCES&ORGNSTL DEVLPMNT,PERSONNEL RLTD-STAFF CHILDCARE,FIDELITI LIMITED,0000213721,5.02
DEPARTMENT OF ENERGY AND CLIMATE CHANGE,THE COAL AUTHORITY,08/09/2014,CONSULTANCY,HUMAN RESRCES&ORGNSTL DEVLPMNT,PROF SER CNSLTNCY-HUMAN RESRCE,COMPANY BARCLAYCARD,0000214124,90.00
DEPARTMENT OF ENERGY AND CLIMATE CHANGE,THE COAL AUTHORITY,22/09/2014,FARES - PUBLIC TRANSPORT,HUMAN RESRCES&ORGNSTL DEVLPMNT,TRAVEL&EVENTS-TAXI,INTERVIEW EXPENSES,0000214234,30.00
DEPARTMENT OF ENERGY AND CLIMATE CHANGE,THE COAL AUTHORITY,29/08/2014,FARES - RAIL,HUMAN RESRCES&ORGNSTL DEVLPMNT,TRAVEL&EVENTS-RAIL,INTERVIEW EXPENSES,0000213613,25.50
DEPARTMENT OF ENERGY AND CLIMATE CHANGE,THE COAL AUTHORITY,31/08/2014,FARES - RAIL,HUMAN RESRCES&ORGNSTL DEVLPMNT,TRAVEL&EVENTS-RAIL,REDFERN TRAVEL LTD,0000213892,153.50
DEPARTMENT OF ENERGY AND CLIMATE CHANGE,THE COAL AUTHORITY,22/09/2014,FARES - RAIL,HUMAN RESRCES&ORGNSTL DEVLPMNT,TRAVEL&EVENTS-RAIL,INTERVIEW EXPENSES,0000214234,27.00
DEPARTMENT OF ENERGY AND CLIMATE CHANGE,THE COAL AUTHORITY,08/09/2014,INCIDENTALS,HUMAN RESRCES&ORGNSTL DEVLPMNT,VEHICLES-FLEET MANAGEMENT,COMPANY BARCLAYCARD,0000214128,8.33
DEPARTMENT OF ENERGY AND CLIMATE CHANGE,THE COAL AUTHORITY,02/09/2014,LEGAL COSTS,HUMAN RESRCES&ORGNSTL DEVLPMNT,PROF SER-LEGAL SERVICES,DLA PIPER UK LLP,0000213693,90.00
DEPARTMENT OF ENERGY AND CLIMATE CHANGE,THE COAL AUTHORITY,29/08/2014,MILEAGE PAYMENTS,HUMAN RESRCES&ORGNSTL DEVLPMNT,FUELS/LUBRCNT/GAS-FUELS,INTERVIEW EXPENSES,0000213614,110.50
DEPARTMENT OF ENERGY AND CLIMATE CHANGE,THE COAL AUTHORITY,29/08/2014,MILEAGE PAYMENTS,HUMAN RESRCES&ORGNSTL DEVLPMNT,FUELS/LUBRCNT/GAS-FUELS,INTERVIEW EXPENSES,0000213615,11.50
DEPARTMENT OF ENERGY AND CLIMATE CHANGE,THE COAL AUTHORITY,29/08/2014,MILEAGE PAYMENTS,HUMAN RESRCES&ORGNSTL DEVLPMNT,FUELS/LUBRCNT/GAS-FUELS,INTERVIEW EXPENSES,0000213616,17.00
DEPARTMENT OF ENERGY AND CLIMATE CHANGE,THE COAL AUTHORITY,29/08/2014,MILEAGE PAYMENTS,HUMAN RESRCES&ORGNSTL DEVLPMNT,FUELS/LUBRCNT/GAS-FUELS,INTERVIEW EXPENSES,0000213617,57.00
DEPARTMENT OF ENERGY AND CLIMATE CHANGE,THE COAL AUTHORITY,04/09/2014,MILEAGE PAYMENTS,HUMAN RESRCES&ORGNSTL DEVLPMNT,FUELS/LUBRCNT/GAS-FUELS,INTERVIEW EXPENSES,0000213715,161.13
DEPARTMENT OF ENERGY AND CLIMATE CHANGE,THE COAL AUTHORITY,09/09/2014,MILEAGE PAYMENTS,HUMAN RESRCES&ORGNSTL DEVLPMNT,FUELS/LUBRCNT/GAS-FUELS,INTERVIEW EXPENSES,0000213831,51.75
DEPARTMENT OF ENERGY AND CLIMATE CHANGE,THE COAL AUTHORITY,24/09/2014,MILEAGE PAYMENTS,HUMAN RESRCES&ORGNSTL DEVLPMNT,FUELS/LUBRCNT/GAS-FUELS,INTERVIEW EXPENSES,0000214277,33.15
DEPARTMENT OF ENERGY AND CLIMATE CHANGE,THE COAL AUTHORITY,25/09/2014,MILEAGE PAYMENTS,HUMAN RESRCES&ORGNSTL DEVLPMNT,FUELS/LUBRCNT/GAS-FUELS,STAFF EXPENSES CONTROL,0000214335,96.30
DEPARTMENT OF ENERGY AND CLIMATE CHANGE,THE COAL AUTHORITY,08/09/2014,OTHER RECRUITMENT EXPENSES,HUMAN RESRCES&ORGNSTL DEVLPMNT,PROF SER TMP STFF-TEMP WRKERS,REFUND DBS CHECK,0000213773,25.00
DEPARTMENT OF ENERGY AND CLIMATE CHANGE,THE COAL AUTHORITY,09/09/2014,OTHER RECRUITMENT EXPENSES,HUMAN RESRCES&ORGNSTL DEVLPMNT,ENGINEERING GOODS-INDUSTRIAL,RE-IMBURSE DBS CHARGE,0000213830,25.00
DEPARTMENT OF ENERGY AND CLIMATE CHANGE,THE COAL AUTHORITY,25/08/2014,OTHER RECRUITMENT EXPENSES,HUMAN RESRCES&ORGNSTL DEVLPMNT,PROF SER-OPERATIONAL SERVICES,OE CAM LLP,0000213996,"2,262.50"
DEPARTMENT OF ENERGY AND CLIMATE CHANGE,THE COAL AUTHORITY,29/08/2014,PAYMENTS TO AGENCIES FOR TEMPS,HUMAN RESRCES&ORGNSTL DEVLPMNT,PROF SER TMP STFF-TEMP WRKERS,KEY PERSONNEL SOLUTIONS L,0000213731,396.44
DEPARTMENT OF ENERGY AND CLIMATE CHANGE,THE COAL AUTHORITY,05/09/2014,PAYMENTS TO AGENCIES FOR TEMPS,HUMAN RESRCES&ORGNSTL DEVLPMNT,PROF SER TMP STFF-TEMP WRKERS,KEY PERSONNEL SOLUTIONS L,0000213972,364.38
DEPARTMENT OF ENERGY AND CLIMATE CHANGE,THE COAL AUTHORITY,12/09/2014,PAYMENTS TO AGENCIES FOR TEMPS,HUMAN RESRCES&ORGNSTL DEVLPMNT,PROF SER TMP STFF-TEMP WRKERS,KEY PERSONNEL SOLUTIONS L,0000214279,460.57
DEPARTMENT OF ENERGY AND CLIMATE CHANGE,THE COAL AUTHORITY,19/09/2014,PAYMENTS TO AGENCIES FOR TEMPS,HUMAN RESRCES&ORGNSTL DEVLPMNT,PROF SER TMP STFF-TEMP WRKERS,KEY PERSONNEL SOLUTIONS L,0000214282,288.59
DEPARTMENT OF ENERGY AND CLIMATE CHANGE,THE COAL AUTHORITY,10/09/2014,PENSION PROCESSING FEES,HUMAN RESRCES&ORGNSTL DEVLPMNT,PERSONNEL RLTD-HR BUS PRCS O/S,CAPITA CONCESSIONARY FUEL,0000213832,"1,106.80"
DEPARTMENT OF ENERGY AND CLIMATE CHANGE,THE COAL AUTHORITY,20/08/2014,PRINTING,HUMAN RESRCES&ORGNSTL DEVLPMNT,OFFICE SOLUTIONS-PRINT,PROLOG PRINT MEDIA,0000213439,"5,750.00"
DEPARTMENT OF ENERGY AND CLIMATE CHANGE,THE COAL AUTHORITY,08/09/2014,PROFESSIONAL SUBSCRIPTIONS,HUMAN RESRCES&ORGNSTL DEVLPMNT,PERSONNEL RLTD-STAFF SUBSCRPTN,COMPANY BARCLAYCARD,0000214124,108.75
DEPARTMENT OF ENERGY AND CLIMATE CHANGE,THE COAL AUTHORITY,29/04/2014,STAFF MEDICALS,HUMAN RESRCES&ORGNSTL DEVLPMNT,PERSONNEL RLTD-STAFF MEDICAL,RPS BUSINESS HEALTHCARE,0000213929,"1,530.00"
DEPARTMENT OF ENERGY AND CLIMATE CHANGE,THE COAL AUTHORITY,11/09/2014,STAFF MEDICALS,HUMAN RESRCES&ORGNSTL DEVLPMNT,PERSONNEL RLTD-STAFF MEDICAL,BUPA WELLNESS FINANCE,0000214280,531.00
DEPARTMENT OF ENERGY AND CLIMATE CHANGE,THE COAL AUTHORITY,08/09/2014,SUBSISTENCE ALLOWANCES,HUMAN RESRCES&ORGNSTL DEVLPMNT,FACILITIES - FOOD,COMPANY BARCLAYCARD,0000214126,5.03
DEPARTMENT OF ENERGY AND CLIMATE CHANGE,THE COAL AUTHORITY,25/09/2014,SUBSISTENCE ALLOWANCES,HUMAN RESRCES&ORGNSTL DEVLPMNT,FACILITIES - FOOD,STAFF EXPENSES CONTROL,0000214335,17.02
DEPARTMENT OF ENERGY AND CLIMATE CHANGE,THE COAL AUTHORITY,27/08/2014,TRAINING AND EDUCATION,HUMAN RESRCES&ORGNSTL DEVLPMNT,PROF SER LRNG&DEV-STAFF TRNING,WEST NOTTINGHAMSHIRE COLL,0000213712,"1,470.00"
DEPARTMENT OF ENERGY AND CLIMATE CHANGE,THE COAL AUTHORITY,08/09/2014,TRAINING AND EDUCATION,HUMAN RESRCES&ORGNSTL DEVLPMNT,PROF SER LRNG&DEV-STAFF TRNING,COMPANY BARCLAYCARD,0000214123,525.00
DEPARTMENT OF ENERGY AND CLIMATE CHANGE,THE COAL AUTHORITY,31/08/2014,CALL CHARGES,ICT -  SERVICE MANAGEMENT,ICT-TELECOMS,BRITISH TELECOMMUNICATION,0000214174,172.34
DEPARTMENT OF ENERGY AND CLIMATE CHANGE,THE COAL AUTHORITY,31/08/2014,FARES - RAIL,ICT -  SERVICE MANAGEMENT,TRAVEL&EVENTS-RAIL,REDFERN TRAVEL LTD,0000213892,9.75
DEPARTMENT OF ENERGY AND CLIMATE CHANGE,THE COAL AUTHORITY,31/08/2014,FARES - RAIL,ICT -  SERVICE MANAGEMENT,TRAVEL&EVENTS-RAIL,REDFERN TRAVEL LTD,0000213893,-156.50
DEPARTMENT OF ENERGY AND CLIMATE CHANGE,THE COAL AUTHORITY,31/08/2014,HOTEL ACCOMMODATION,ICT -  SERVICE MANAGEMENT,TRAVEL&EVENTS-HOTELS,REDFERN TRAVEL LTD,0000213896,220.30
DEPARTMENT OF ENERGY AND CLIMATE CHANGE,THE COAL AUTHORITY,23/09/2014,INCIDENTALS,ICT -  SERVICE MANAGEMENT,VEHICLES-FLEET MANAGEMENT,STAFF EXPENSES CONTROL,0000214260,22.50
DEPARTMENT OF ENERGY AND CLIMATE CHANGE,THE COAL AUTHORITY,04/09/2014,IT-APPLICATIONS MANAGEMENT,ICT -  SERVICE MANAGEMENT,ICT-SOFTWARE,SOFTWARE BOX LIMITED,0000213824,"2,817.44"
DEPARTMENT OF ENERGY AND CLIMATE CHANGE,THE COAL AUTHORITY,08/09/2014,IT-APPLICATIONS MANAGEMENT,ICT -  SERVICE MANAGEMENT,ICT-HARDWARE,COMPANY BARCLAYCARD,0000214142,467.60
DEPARTMENT OF ENERGY AND CLIMATE CHANGE,THE COAL AUTHORITY,08/09/2014,IT-APPLICATIONS MANAGEMENT,ICT -  SERVICE MANAGEMENT,ICT-HARDWARE,COMPANY BARCLAYCARD,0000214144,108.34
DEPARTMENT OF ENERGY AND CLIMATE CHANGE,THE COAL AUTHORITY,11/04/2014,IT-INFRASTRUCTURE MANAGEMENT,ICT -  SERVICE MANAGEMENT,ICT-TELECOMS,VODAFONE LIMITED (CORPORA,0000213728,"3,150.00"
DEPARTMENT OF ENERGY AND CLIMATE CHANGE,THE COAL AUTHORITY,02/09/2014,LINE RENTAL,ICT -  SERVICE MANAGEMENT,ICT-TELECOMS,VODAFONE LIMITED (CORPORA,0000213998,-500.00
DEPARTMENT OF ENERGY AND CLIMATE CHANGE,THE COAL AUTHORITY,02/09/2014,LINE RENTAL,ICT -  SERVICE MANAGEMENT,ICT-TELECOMS,VODAFONE LIMITED (CORPORA,0000213999,-500.00
DEPARTMENT OF ENERGY AND CLIMATE CHANGE,THE COAL AUTHORITY,08/09/2014,LINE RENTAL,ICT -  SERVICE MANAGEMENT,ICT-TELECOMS,COMPANY BARCLAYCARD,0000214044,21.49
DEPARTMENT OF ENERGY AND CLIMATE CHANGE,THE COAL AUTHORITY,08/09/2014,LINE RENTAL,ICT -  SERVICE MANAGEMENT,ICT-TELECOMS,COMPANY BARCLAYCARD,0000214134,100.36
DEPARTMENT OF ENERGY AND CLIMATE CHANGE,THE COAL AUTHORITY,23/09/2014,MILEAGE PAYMENTS,ICT -  SERVICE MANAGEMENT,FUELS/LUBRCNT/GAS-FUELS,STAFF EXPENSES CONTROL,0000214267,12.83
DEPARTMENT OF ENERGY AND CLIMATE CHANGE,THE COAL AUTHORITY,23/09/2014,SUBSISTENCE ALLOWANCES,ICT -  SERVICE MANAGEMENT,FACILITIES - FOOD,STAFF EXPENSES CONTROL,0000214260,16.82
DEPARTMENT OF ENERGY AND CLIMATE CHANGE,THE COAL AUTHORITY,01/09/2014,CHILDCARE VOUCHERS,ICT-BUSINESS ANALYSIS&DESIGN,PERSONNEL RLTD-STAFF CHILDCARE,FIDELITI LIMITED,0000213721,50.00
DEPARTMENT OF ENERGY AND CLIMATE CHANGE,THE COAL AUTHORITY,09/09/2014,IT-APPLICATIONS MANAGEMENT,ICT-BUSINESS ANALYSIS&DESIGN,ICT-SYSTEMS DELIVERY,SCISYS UK LTD,0000214066,"1,559.40"
DEPARTMENT OF ENERGY AND CLIMATE CHANGE,THE COAL AUTHORITY,12/09/2014,IT-APPLICATIONS MANAGEMENT,ICT-BUSINESS ANALYSIS&DESIGN,ICT-SYSTEMS DELIVERY,SCISYS UK LTD,0000214067,644.10
DEPARTMENT OF ENERGY AND CLIMATE CHANGE,THE COAL AUTHORITY,08/09/2014,IT-APPLICATIONS MANAGEMENT,ICT-BUSINESS ANALYSIS&DESIGN,ICT-SOFTWARE,COMPANY BARCLAYCARD,0000214142,1.24
DEPARTMENT OF ENERGY AND CLIMATE CHANGE,THE COAL AUTHORITY,10/09/2014,PAYMENTS TO AGENCIES FOR TEMPS,ICT-BUSINESS ANALYSIS&DESIGN,ICT-SYSTEMS DELIVERY,SCISYS UK LTD,0000214065,"5,508.80"
DEPARTMENT OF ENERGY AND CLIMATE CHANGE,THE COAL AUTHORITY,15/09/2014,PAYMENTS TO AGENCIES FOR TEMPS,ICT-BUSINESS ANALYSIS&DESIGN,PROF SER TMP STFF-SPCLST CNTRT,SPRING TECHNOLOGY,0000214145,"1,452.50"
DEPARTMENT OF ENERGY AND CLIMATE CHANGE,THE COAL AUTHORITY,12/09/2014,PAYMENTS TO AGENCIES FOR TEMPS,ICT-BUSINESS ANALYSIS&DESIGN,PROF SER TMP STFF-SPCLST CNTRT,SPRING TECHNOLOGY,0000214146,"2,000.00"
DEPARTMENT OF ENERGY AND CLIMATE CHANGE,THE COAL AUTHORITY,29/08/2014,APPRENTICE COSTS,ICT-TECH SUPPORT&SYSTM DVLPMNT,PROF SER TMP STFF-TEMP WRKERS,FUTURES ADVICE SKILLS & E,0000213664,"1,137.19"
DEPARTMENT OF ENERGY AND CLIMATE CHANGE,THE COAL AUTHORITY,01/09/2014,CHILDCARE VOUCHERS,ICT-TECH SUPPORT&SYSTM DVLPMNT,PERSONNEL RLTD-STAFF CHILDCARE,FIDELITI LIMITED,0000213721,124.00
DEPARTMENT OF ENERGY AND CLIMATE CHANGE,THE COAL AUTHORITY,31/08/2014,FARES - RAIL,ICT-TECH SUPPORT&SYSTM DVLPMNT,TRAVEL&EVENTS-RAIL,REDFERN TRAVEL LTD,0000213894,-306.02
DEPARTMENT OF ENERGY AND CLIMATE CHANGE,THE COAL AUTHORITY,08/09/2014,IT-APPLICATIONS MANAGEMENT,ICT-TECH SUPPORT&SYSTM DVLPMNT,ICT-HARDWARE,COMPANY BARCLAYCARD,0000214142,671.61
DEPARTMENT OF ENERGY AND CLIMATE CHANGE,THE COAL AUTHORITY,05/09/2014,IT-INFRASTRUCTURE MANAGEMENT,ICT-TECH SUPPORT&SYSTM DVLPMNT,ICT-MAINTENANCE & SUPPORT,NOWCOMM,0000213822,"2,126.00"
DEPARTMENT OF ENERGY AND CLIMATE CHANGE,THE COAL AUTHORITY,23/09/2014,MILEAGE PAYMENTS,ICT-TECH SUPPORT&SYSTM DVLPMNT,FUELS/LUBRCNT/GAS-FUELS,STAFF EXPENSES CONTROL,0000214241,280.35
DEPARTMENT OF ENERGY AND CLIMATE CHANGE,THE COAL AUTHORITY,23/09/2014,MILEAGE PAYMENTS,ICT-TECH SUPPORT&SYSTM DVLPMNT,FUELS/LUBRCNT/GAS-FUELS,STAFF EXPENSES CONTROL,0000214246,297.00
DEPARTMENT OF ENERGY AND CLIMATE CHANGE,THE COAL AUTHORITY,01/09/2014,PAYMENTS TO AGENCIES FOR TEMPS,ICT-TECH SUPPORT&SYSTM DVLPMNT,PROF SER TMP STFF-SPCLST CNTRT,PLAYCOOL LIMITED,0000213724,"5,000.00"
DEPARTMENT OF ENERGY AND CLIMATE CHANGE,THE COAL AUTHORITY,01/09/2014,PAYMENTS TO AGENCIES FOR TEMPS,ICT-TECH SUPPORT&SYSTM DVLPMNT,PROF SER TMP STFF-SPCLST CNTRT,PLAYCOOL LIMITED,0000213725,"1,441.66"
DEPARTMENT OF ENERGY AND CLIMATE CHANGE,THE COAL AUTHORITY,25/09/2014,SUBSISTENCE ALLOWANCES,ICT-TECH SUPPORT&SYSTM DVLPMNT,FACILITIES - FOOD,STAFF EXPENSES CONTROL,0000214335,4.85
DEPARTMENT OF ENERGY AND CLIMATE CHANGE,THE COAL AUTHORITY,01/09/2014,CHILDCARE VOUCHERS,LEGAL & COMMERCIAL,PERSONNEL RLTD-STAFF CHILDCARE,FIDELITI LIMITED,0000213721,100.00
DEPARTMENT OF ENERGY AND CLIMATE CHANGE,THE COAL AUTHORITY,31/08/2014,FARES - RAIL,LEGAL & COMMERCIAL,TRAVEL&EVENTS-RAIL,REDFERN TRAVEL LTD,0000213892,199.09
DEPARTMENT OF ENERGY AND CLIMATE CHANGE,THE COAL AUTHORITY,29/08/2014,LEGAL COSTS,LEGAL & COMMERCIAL,PROF SER-OPERATIONAL SERVICES,LAND REGISTRY,0000213666,15.00
DEPARTMENT OF ENERGY AND CLIMATE CHANGE,THE COAL AUTHORITY,05/09/2014,LEGAL COSTS,LEGAL & COMMERCIAL,PROF SER-OPERATIONAL SERVICES,LAND REGISTRY,0000213761,6.00
DEPARTMENT OF ENERGY AND CLIMATE CHANGE,THE COAL AUTHORITY,12/09/2014,LEGAL COSTS,LEGAL & COMMERCIAL,PROF SER-OPERATIONAL SERVICES,LAND REGISTRY,0000213966,6.00
DEPARTMENT OF ENERGY AND CLIMATE CHANGE,THE COAL AUTHORITY,19/09/2014,LEGAL COSTS,LEGAL & COMMERCIAL,PROF SER-OPERATIONAL SERVICES,LAND REGISTRY,0000214171,27.00
DEPARTMENT OF ENERGY AND CLIMATE CHANGE,THE COAL AUTHORITY,25/09/2014,LEGAL COSTS,LEGAL & COMMERCIAL,PROF SER-OPERATIONAL SERVICES,LAND REGISTRY,0000214342,24.00
DEPARTMENT OF ENERGY AND CLIMATE CHANGE,THE COAL AUTHORITY,15/08/2014,PAYMENTS TO AGENCIES FOR TEMPS,LEGAL & COMMERCIAL,PROF SER TMP STFF-TEMP WRKERS,KEY PERSONNEL SOLUTIONS L,0000213440,219.90
DEPARTMENT OF ENERGY AND CLIMATE CHANGE,THE COAL AUTHORITY,22/08/2014,PAYMENTS TO AGENCIES FOR TEMPS,LEGAL & COMMERCIAL,PROF SER TMP STFF-TEMP WRKERS,KEY PERSONNEL SOLUTIONS L,0000213621,219.90
DEPARTMENT OF ENERGY AND CLIMATE CHANGE,THE COAL AUTHORITY,29/08/2014,PAYMENTS TO AGENCIES FOR TEMPS,LEGAL & COMMERCIAL,PROF SER TMP STFF-TEMP WRKERS,KEY PERSONNEL SOLUTIONS L,0000213731,168.59
DEPARTMENT OF ENERGY AND CLIMATE CHANGE,THE COAL AUTHORITY,05/09/2014,PAYMENTS TO AGENCIES FOR TEMPS,LEGAL & COMMERCIAL,PROF SER TMP STFF-TEMP WRKERS,KEY PERSONNEL SOLUTIONS L,0000213972,205.24
DEPARTMENT OF ENERGY AND CLIMATE CHANGE,THE COAL AUTHORITY,12/09/2014,PAYMENTS TO AGENCIES FOR TEMPS,LEGAL & COMMERCIAL,PROF SER TMP STFF-TEMP WRKERS,KEY PERSONNEL SOLUTIONS L,0000214279,205.24
DEPARTMENT OF ENERGY AND CLIMATE CHANGE,THE COAL AUTHORITY,19/09/2014,PAYMENTS TO AGENCIES FOR TEMPS,LEGAL & COMMERCIAL,PROF SER TMP STFF-TEMP WRKERS,KEY PERSONNEL SOLUTIONS L,0000214282,205.24
DEPARTMENT OF ENERGY AND CLIMATE CHANGE,THE COAL AUTHORITY,31/07/2014,CONSULTANCY,LICENSING,PROF SER CNSLTNCY-PROP/CNSTRCN,JMC ENGINEERING (UK) LTD,0000213039,"8,211.55"
DEPARTMENT OF ENERGY AND CLIMATE CHANGE,THE COAL AUTHORITY,31/07/2014,CONSULTANCY,LICENSING,PROF SER CNSLTNCY-PROP/CNSTRCN,JMC ENGINEERING (UK) LTD,0000213040,"3,642.30"
DEPARTMENT OF ENERGY AND CLIMATE CHANGE,THE COAL AUTHORITY,27/08/2014,CONSULTANCY,LICENSING,PROF SER TMP STFF-SPCLST CNTRT,WYG ENV PLANNING TRANSPOR,0000213628,"3,724.00"
DEPARTMENT OF ENERGY AND CLIMATE CHANGE,THE COAL AUTHORITY,31/08/2014,CONSULTANCY,LICENSING,PROF SER CNSLTNCY-PROP/CNSTRCN,JMC ENGINEERING (UK) LTD,0000213807,"7,353.50"
DEPARTMENT OF ENERGY AND CLIMATE CHANGE,THE COAL AUTHORITY,31/08/2014,CONSULTANCY,LICENSING,PROF SER CNSLTNCY-PROP/CNSTRCN,JMC ENGINEERING (UK) LTD,0000213808,"2,970.50"
DEPARTMENT OF ENERGY AND CLIMATE CHANGE,THE COAL AUTHORITY,31/08/2014,CONSULTANCY,LICENSING,PROF SER CNSLTNCY-PROP/CNSTRCN,JMC ENGINEERING (UK) LTD,0000213809,"8,938.80"
DEPARTMENT OF ENERGY AND CLIMATE CHANGE,THE COAL AUTHORITY,23/09/2014,CONSULTANCY,LICENSING,PROF SER TMP STFF-SPCLST CNTRT,WYG ENV PLANNING TRANSPOR,0000214329,"1,862.00"
DEPARTMENT OF ENERGY AND CLIMATE CHANGE,THE COAL AUTHORITY,02/09/2014,LEGAL COSTS,LICENSING,PROF SER-LEGAL SERVICES,DLA PIPER UK LLP,0000213693,39.00
DEPARTMENT OF ENERGY AND CLIMATE CHANGE,THE COAL AUTHORITY,21/08/2014,LEGAL COSTS,LICENSING,PROF SER-LEGAL SERVICES,WALKER MORRIS,0000213694,448.50
DEPARTMENT OF ENERGY AND CLIMATE CHANGE,THE COAL AUTHORITY,19/09/2014,LEGAL COSTS,LICENSING,PROF SER-LEGAL SERVICES,WALKER MORRIS,0000214381,23.00
DEPARTMENT OF ENERGY AND CLIMATE CHANGE,THE COAL AUTHORITY,08/09/2014,MEMBERSHIP SUBSCRIPTIONS,LICENSING,PERSONNEL RLTD-STAFF SUBSCRPTN,COMPANY BARCLAYCARD,0000214114,135.00
DEPARTMENT OF ENERGY AND CLIMATE CHANGE,THE COAL AUTHORITY,18/11/2013,LEGAL COSTS,LICENSING: CLOSURE COSTS,PROF SER-LEGAL SERVICES,WALKER MORRIS,0000214228,750.00
DEPARTMENT OF ENERGY AND CLIMATE CHANGE,THE COAL AUTHORITY,28/08/2014,CONTRACTORS - CLOSURE,LICENSING: UK COAL,ENERGY&UTILITIES-ELECTRICITY,E.ON ENERGY,0000214222,"75,708.03"
DEPARTMENT OF ENERGY AND CLIMATE CHANGE,THE COAL AUTHORITY,19/09/2014,CONTRACTORS - CLOSURE,LICENSING: UK COAL,ENERGY&UTILITIES-ELECTRICITY,E.ON ENERGY,0000214223,-985.05
DEPARTMENT OF ENERGY AND CLIMATE CHANGE,THE COAL AUTHORITY,29/08/2014,CONTRACTORS AND CLAIM COSTS,LICENSING: UK COAL,"CONSTRUCTION-BLD,REPR&MAINTNCE",REIMBURSE OUT OF POCKET E,0000213626,918.64
DEPARTMENT OF ENERGY AND CLIMATE CHANGE,THE COAL AUTHORITY,29/08/2014,CONTRACTORS AND CLAIM COSTS,LICENSING: UK COAL,"CONSTRUCTION-BLD,REPR&MAINTNCE",DEPRECIATION PAYMENT,0000213657,"3,500.00"
DEPARTMENT OF ENERGY AND CLIMATE CHANGE,THE COAL AUTHORITY,29/08/2014,CONTRACTORS AND CLAIM COSTS,LICENSING: UK COAL,FACILITIES-BUILDING MANAGEMENT,REIMBURSE ALTERNATIVE ACC,0000213658,"1,113.42"
DEPARTMENT OF ENERGY AND CLIMATE CHANGE,THE COAL AUTHORITY,29/08/2014,CONTRACTORS AND CLAIM COSTS,LICENSING: UK COAL,"CONSTRUCTION-BLD,REPR&MAINTNCE",REIMBURSE PROFESSIONAL FE,0000213659,360.00
DEPARTMENT OF ENERGY AND CLIMATE CHANGE,THE COAL AUTHORITY,01/09/2014,CONTRACTORS AND CLAIM COSTS,LICENSING: UK COAL,CONSTRUCTION-MAIN CONTRACTORS,D S WILLIAMS PAINTERS & D,0000213681,"1,100.00"
DEPARTMENT OF ENERGY AND CLIMATE CHANGE,THE COAL AUTHORITY,01/09/2014,CONTRACTORS AND CLAIM COSTS,LICENSING: UK COAL,CONSTRUCTION-MAIN CONTRACTORS,D S WILLIAMS PAINTERS & D,0000213682,"5,000.00"
DEPARTMENT OF ENERGY AND CLIMATE CHANGE,THE COAL AUTHORITY,08/09/2014,CONTRACTORS AND CLAIM COSTS,LICENSING: UK COAL,"CONSTRUCTION-BLD,REPR&MAINTNCE",COMBINED SECTION 8 & 13 P,0000213777,"4,825.28"
DEPARTMENT OF ENERGY AND CLIMATE CHANGE,THE COAL AUTHORITY,08/09/2014,CONTRACTORS AND CLAIM COSTS,LICENSING: UK COAL,"CONSTRUCTION-BLD,REPR&MAINTNCE",COMBINED SECTION8 & 13 PA,0000213778,"10,024.34"
DEPARTMENT OF ENERGY AND CLIMATE CHANGE,THE COAL AUTHORITY,05/09/2014,CONTRACTORS AND CLAIM COSTS,LICENSING: UK COAL,PROF SER-OPERATIONAL SERVICES,VALUATION OFFICE AGENCY,0000213842,745.85
DEPARTMENT OF ENERGY AND CLIMATE CHANGE,THE COAL AUTHORITY,10/09/2014,CONTRACTORS AND CLAIM COSTS,LICENSING: UK COAL,"CONSTRUCTION-BLD,REPR&MAINTNCE",LOSS OF RENT DURING WORKS,0000213903,"1,000.00"
DEPARTMENT OF ENERGY AND CLIMATE CHANGE,THE COAL AUTHORITY,12/09/2014,CONTRACTORS AND CLAIM COSTS,LICENSING: UK COAL,PROF SER-LEGAL SERVICES,SETTLEMENT AWARDED AT LAN,0000213962,"38,715.39"
DEPARTMENT OF ENERGY AND CLIMATE CHANGE,THE COAL AUTHORITY,14/07/2014,CONTRACTORS AND CLAIM COSTS,LICENSING: UK COAL,PROF SER-OPERATIONAL SERVICES,VALUATION OFFICE AGENCY,0000213974,747.50
DEPARTMENT OF ENERGY AND CLIMATE CHANGE,THE COAL AUTHORITY,15/09/2014,CONTRACTORS AND CLAIM COSTS,LICENSING: UK COAL,"CONSTRUCTION-BLD,REPR&MAINTNCE",FULL & FINAL SETTLEMENT F,0000214000,"2,384.16"
DEPARTMENT OF ENERGY AND CLIMATE CHANGE,THE COAL AUTHORITY,17/09/2014,CONTRACTORS AND CLAIM COSTS,LICENSING: UK COAL,PROF SER-OPERATIONAL SERVICES,CONTRIBUTION TO AGENTS FE,0000214068,"1,316.29"
DEPARTMENT OF ENERGY AND CLIMATE CHANGE,THE COAL AUTHORITY,19/09/2014,CONTRACTORS AND CLAIM COSTS,LICENSING: UK COAL,PROF SER-OPERATIONAL SERVICES,CONTRIBUTION TOWARDS AGEN,0000214170,"2,245.06"
DEPARTMENT OF ENERGY AND CLIMATE CHANGE,THE COAL AUTHORITY,19/09/2014,CONTRACTORS AND CLAIM COSTS,LICENSING: UK COAL,PROF SER-LEGAL SERVICES,REF 5006 STRUCTURAL ENGIN,0000214173,"14,441.72"
DEPARTMENT OF ENERGY AND CLIMATE CHANGE,THE COAL AUTHORITY,02/09/2014,LEGAL COSTS,LICENSING: UK COAL,PROF SER-LEGAL SERVICES,DLA PIPER UK LLP,0000213693,"1,800.00"
DEPARTMENT OF ENERGY AND CLIMATE CHANGE,THE COAL AUTHORITY,23/08/2014,IT-APPLICATIONS MANAGEMENT,MINE ENTRY INSPECTIONS,ICT-SYSTEMS DELIVERY,SCISYS UK LTD,0000213710,"3,144.92"
DEPARTMENT OF ENERGY AND CLIMATE CHANGE,THE COAL AUTHORITY,31/07/2014,OUTSOURCED MANAGEMENT-PS&S,MINE ENTRY INSPECTIONS,CONSTRUCTION-CNSTRN SER PROVDR,INTERLOCK SURVEYS,0000213068,"10,930.50"
DEPARTMENT OF ENERGY AND CLIMATE CHANGE,THE COAL AUTHORITY,03/09/2014,OUTSOURCED MANAGEMENT-PS&S,MINE ENTRY INSPECTIONS,SOCIAL CARE-EMERGENCY SERVICES,MINES RESCUE SERVICE LIMI,0000213727,"42,000.00"
DEPARTMENT OF ENERGY AND CLIMATE CHANGE,THE COAL AUTHORITY,31/08/2014,OUTSOURCED MANAGEMENT-PS&S,MINE ENTRY INSPECTIONS,CONSTRUCTION-CNSTRN SER PROVDR,INTERLOCK SURVEYS,0000213779,"6,441.75"
DEPARTMENT OF ENERGY AND CLIMATE CHANGE,THE COAL AUTHORITY,31/08/2014,OUTSOURCED MANAGEMENT-PS&S,MINE ENTRY INSPECTIONS,CONSTRUCTION-CNSTRN SER PROVDR,INTERLOCK SURVEYS,0000213780,"3,168.75"
DEPARTMENT OF ENERGY AND CLIMATE CHANGE,THE COAL AUTHORITY,31/08/2014,OUTSOURCED MANAGEMENT-PS&S,MINE ENTRY INSPECTIONS,CONSTRUCTION-CNSTRN SER PROVDR,INTERLOCK SURVEYS,0000213781,"11,163.75"
DEPARTMENT OF ENERGY AND CLIMATE CHANGE,THE COAL AUTHORITY,31/08/2014,OUTSOURCED MANAGEMENT-PS&S,MINE ENTRY INSPECTIONS,CONSTRUCTION-CNSTRN SER PROVDR,INTERLOCK SURVEYS,0000213782,"3,764.25"
DEPARTMENT OF ENERGY AND CLIMATE CHANGE,THE COAL AUTHORITY,31/08/2014,OUTSOURCED MANAGEMENT-PS&S,MINE ENTRY INSPECTIONS,CONSTRUCTION-CNSTRN SER PROVDR,INTERLOCK SURVEYS,0000213783,"2,576.00"
DEPARTMENT OF ENERGY AND CLIMATE CHANGE,THE COAL AUTHORITY,31/08/2014,OUTSOURCED MANAGEMENT-PS&S,MINE ENTRY INSPECTIONS,CONSTRUCTION-CNSTRN SER PROVDR,INTERLOCK SURVEYS,0000213784,"1,669.50"
DEPARTMENT OF ENERGY AND CLIMATE CHANGE,THE COAL AUTHORITY,31/08/2014,OUTSOURCED MANAGEMENT-PS&S,MINE ENTRY INSPECTIONS,CONSTRUCTION-CNSTRN SER PROVDR,INTERLOCK SURVEYS,0000213795,126.00
DEPARTMENT OF ENERGY AND CLIMATE CHANGE,THE COAL AUTHORITY,29/08/2014,APPRENTICE COSTS,MINING INFORMATION COMMERCIAL,PROF SER TMP STFF-TEMP WRKERS,FUTURES ADVICE SKILLS & E,0000213664,"1,137.19"
DEPARTMENT OF ENERGY AND CLIMATE CHANGE,THE COAL AUTHORITY,02/09/2014,COMMISSION CHARGES-E-COMMERCE,MINING INFORMATION COMMERCIAL,PROF SER FNCL-BANKING&INVSTMNT,WORLDPAY LIMITED,0000213713,652.31
DEPARTMENT OF ENERGY AND CLIMATE CHANGE,THE COAL AUTHORITY,06/03/2014,COMMISSION CHARGES-E-COMMERCE,MINING INFORMATION COMMERCIAL,PROF SER FNCL-BANKING&INVSTMNT,WORLDPAY LIMITED,0000214225,698.19
DEPARTMENT OF ENERGY AND CLIMATE CHANGE,THE COAL AUTHORITY,01/09/2014,COMMISSION CHARGES-E-COMMERCE,MINING INFORMATION COMMERCIAL,PROF SER FNCL-BANKING&INVSTMNT,WORLDPAY,0000214230,"1,239.53"
DEPARTMENT OF ENERGY AND CLIMATE CHANGE,THE COAL AUTHORITY,02/09/2014,CONSULTANCY,MINING INFORMATION COMMERCIAL,PROF SER CNSLTNCY-HUMAN RESRCE,DOTTED EYES,0000213717,"8,150.00"
DEPARTMENT OF ENERGY AND CLIMATE CHANGE,THE COAL AUTHORITY,01/09/2014,COURIER SERVICES,MINING INFORMATION COMMERCIAL,FACILITIES - SECURITY,SECURITY PLUS LIMITED,0000213662,46.00
DEPARTMENT OF ENERGY AND CLIMATE CHANGE,THE COAL AUTHORITY,01/08/2014,COURIER SERVICES,MINING INFORMATION COMMERCIAL,FACILITIES - SECURITY,SECURITY PLUS LIMITED,0000214235,51.75
DEPARTMENT OF ENERGY AND CLIMATE CHANGE,THE COAL AUTHORITY,30/07/2014,IT-APPLICATIONS MANAGEMENT,MINING INFORMATION COMMERCIAL,ICT-SYSTEMS DELIVERY,SCISYS UK LTD,0000212926,"7,952.00"
DEPARTMENT OF ENERGY AND CLIMATE CHANGE,THE COAL AUTHORITY,23/08/2014,IT-APPLICATIONS MANAGEMENT,MINING INFORMATION COMMERCIAL,ICT-SYSTEMS DELIVERY,SCISYS UK LTD,0000213710,"7,862.29"
DEPARTMENT OF ENERGY AND CLIMATE CHANGE,THE COAL AUTHORITY,28/08/2014,IT-APPLICATIONS MANAGEMENT,MINING INFORMATION COMMERCIAL,ICT-SYSTEMS DELIVERY,SCISYS UK LTD,0000213711,"4,100.00"
DEPARTMENT OF ENERGY AND CLIMATE CHANGE,THE COAL AUTHORITY,15/08/2014,PAYMENTS TO AGENCIES FOR TEMPS,MINING INFORMATION COMMERCIAL,PROF SER TMP STFF-TEMP WRKERS,KEY PERSONNEL SOLUTIONS L,0000213440,434.34
DEPARTMENT OF ENERGY AND CLIMATE CHANGE,THE COAL AUTHORITY,15/08/2014,PAYMENTS TO AGENCIES FOR TEMPS,MINING INFORMATION COMMERCIAL,PROF SER TMP STFF-SPCLST CNTRT,KEY PERSONNEL SOLUTIONS L,0000213440,454.74
DEPARTMENT OF ENERGY AND CLIMATE CHANGE,THE COAL AUTHORITY,22/08/2014,PAYMENTS TO AGENCIES FOR TEMPS,MINING INFORMATION COMMERCIAL,PROF SER TMP STFF-TEMP WRKERS,KEY PERSONNEL SOLUTIONS L,0000213621,466.40
DEPARTMENT OF ENERGY AND CLIMATE CHANGE,THE COAL AUTHORITY,29/08/2014,PAYMENTS TO AGENCIES FOR TEMPS,MINING INFORMATION COMMERCIAL,PROF SER TMP STFF-TEMP WRKERS,KEY PERSONNEL SOLUTIONS L,0000213731,355.63
DEPARTMENT OF ENERGY AND CLIMATE CHANGE,THE COAL AUTHORITY,29/08/2014,PAYMENTS TO AGENCIES FOR TEMPS,MINING INFORMATION COMMERCIAL,PROF SER TMP STFF-TEMP WRKERS,KEY PERSONNEL SOLUTIONS L,0000213731,93.28
DEPARTMENT OF ENERGY AND CLIMATE CHANGE,THE COAL AUTHORITY,05/09/2014,PAYMENTS TO AGENCIES FOR TEMPS,MINING INFORMATION COMMERCIAL,PROF SER TMP STFF-TEMP WRKERS,KEY PERSONNEL SOLUTIONS L,0000213858,463.49
DEPARTMENT OF ENERGY AND CLIMATE CHANGE,THE COAL AUTHORITY,05/09/2014,PAYMENTS TO AGENCIES FOR TEMPS,MINING INFORMATION COMMERCIAL,PROF SER TMP STFF-TEMP WRKERS,KEY PERSONNEL SOLUTIONS L,0000213972,431.42
DEPARTMENT OF ENERGY AND CLIMATE CHANGE,THE COAL AUTHORITY,12/09/2014,PAYMENTS TO AGENCIES FOR TEMPS,MINING INFORMATION COMMERCIAL,PROF SER TMP STFF-TEMP WRKERS,KEY PERSONNEL SOLUTIONS L,0000214034,440.17
DEPARTMENT OF ENERGY AND CLIMATE CHANGE,THE COAL AUTHORITY,12/09/2014,PAYMENTS TO AGENCIES FOR TEMPS,MINING INFORMATION COMMERCIAL,PROF SER TMP STFF-TEMP WRKERS,KEY PERSONNEL SOLUTIONS L,0000214279,446.00
DEPARTMENT OF ENERGY AND CLIMATE CHANGE,THE COAL AUTHORITY,12/09/2014,PAYMENTS TO AGENCIES FOR TEMPS,MINING INFORMATION COMMERCIAL,PROF SER TMP STFF-TEMP WRKERS,KEY PERSONNEL SOLUTIONS L,0000214279,460.57
DEPARTMENT OF ENERGY AND CLIMATE CHANGE,THE COAL AUTHORITY,19/09/2014,PAYMENTS TO AGENCIES FOR TEMPS,MINING INFORMATION COMMERCIAL,PROF SER TMP STFF-TEMP WRKERS,KEY PERSONNEL SOLUTIONS L,0000214281,447.98
DEPARTMENT OF ENERGY AND CLIMATE CHANGE,THE COAL AUTHORITY,19/09/2014,PAYMENTS TO AGENCIES FOR TEMPS,MINING INFORMATION COMMERCIAL,PROF SER TMP STFF-TEMP WRKERS,KEY PERSONNEL SOLUTIONS L,0000214282,446.00
DEPARTMENT OF ENERGY AND CLIMATE CHANGE,THE COAL AUTHORITY,19/09/2014,PAYMENTS TO AGENCIES FOR TEMPS,MINING INFORMATION COMMERCIAL,PROF SER TMP STFF-TEMP WRKERS,KEY PERSONNEL SOLUTIONS L,0000214282,495.88
DEPARTMENT OF ENERGY AND CLIMATE CHANGE,THE COAL AUTHORITY,25/09/2014,SUBSISTENCE ALLOWANCES,MINING INFORMATION COMMERCIAL,FACILITIES - FOOD,STAFF EXPENSES CONTROL,0000214335,4.85
DEPARTMENT OF ENERGY AND CLIMATE CHANGE,THE COAL AUTHORITY,01/09/2014,CHILDCARE VOUCHERS,MINING INFORMATION WHOLESALE,PERSONNEL RLTD-STAFF CHILDCARE,FIDELITI LIMITED,0000213721,200.00
DEPARTMENT OF ENERGY AND CLIMATE CHANGE,THE COAL AUTHORITY,22/09/2014,CONSULTANCY,MINING INFORMATION WHOLESALE,PROF SER-LEGAL SERVICES,SETTLEMENT OF DISPUTE MR,0000214229,"19,000.00"
DEPARTMENT OF ENERGY AND CLIMATE CHANGE,THE COAL AUTHORITY,31/08/2014,FARES - AIR,MINING INFORMATION WHOLESALE,TRAVEL&EVENTS-AIR,REDFERN TRAVEL LTD,0000213892,182.78
DEPARTMENT OF ENERGY AND CLIMATE CHANGE,THE COAL AUTHORITY,31/08/2014,FARES - RAIL,MINING INFORMATION WHOLESALE,TRAVEL&EVENTS-RAIL,REDFERN TRAVEL LTD,0000213892,153.50
DEPARTMENT OF ENERGY AND CLIMATE CHANGE,THE COAL AUTHORITY,23/08/2014,IT-APPLICATIONS MANAGEMENT,MINING INFORMATION WHOLESALE,ICT-SYSTEMS DELIVERY,SCISYS UK LTD,0000213710,"7,862.29"
DEPARTMENT OF ENERGY AND CLIMATE CHANGE,THE COAL AUTHORITY,28/08/2014,IT-APPLICATIONS MANAGEMENT,MINING INFORMATION WHOLESALE,ICT-SYSTEMS DELIVERY,SCISYS UK LTD,0000213711,"4,100.00"
DEPARTMENT OF ENERGY AND CLIMATE CHANGE,THE COAL AUTHORITY,01/09/2014,MAINTENANCE OF OFFICE MACHINES,MINING INFORMATION WHOLESALE,ICT-MAINTENANCE & SUPPORT,CANON (UK) LTD,0000213716,708.96
DEPARTMENT OF ENERGY AND CLIMATE CHANGE,THE COAL AUTHORITY,01/08/2014,CURR YR ADDNS NON COAL MINES,NON-COAL MINEWATER (DEFRA),CONSTRUCTION-MAIN CONTRACTORS,SOIL ENGINEERING GEOSERVI,0000212957,"31,559.51"
DEPARTMENT OF ENERGY AND CLIMATE CHANGE,THE COAL AUTHORITY,29/06/2014,CURR YR ADDNS NON COAL MINES,NON-COAL MINEWATER (DEFRA),CONSTRUCTION-MAIN CONTRACTORS,J N BENTLEY LIMITED,0000213307,"1,025.93"
DEPARTMENT OF ENERGY AND CLIMATE CHANGE,THE COAL AUTHORITY,29/08/2014,CURR YR ADDNS NON COAL MINES,NON-COAL MINEWATER (DEFRA),CONSTRUCTION-MAIN CONTRACTORS,J N BENTLEY LIMITED,0000213605,"60,955.68"
DEPARTMENT OF ENERGY AND CLIMATE CHANGE,THE COAL AUTHORITY,29/08/2014,CURR YR ADDNS NON COAL MINES,NON-COAL MINEWATER (DEFRA),CONSTRUCTION-MAIN CONTRACTORS,J N BENTLEY LIMITED,0000213606,43.12
DEPARTMENT OF ENERGY AND CLIMATE CHANGE,THE COAL AUTHORITY,21/08/2014,CURR YR ADDNS NON COAL MINES,NON-COAL MINEWATER (DEFRA),PROF SER TECH-ENGINEERING SER,ATKINS LIMITED,0000213637,"4,105.85"
DEPARTMENT OF ENERGY AND CLIMATE CHANGE,THE COAL AUTHORITY,17/09/2014,CURR YR ADDNS NON COAL MINES,NON-COAL MINEWATER (DEFRA),PROF SER-ENVIRONMENTAL SRVICES,SPECIFIC GRASS SEED FOR F,0000214069,217.50
DEPARTMENT OF ENERGY AND CLIMATE CHANGE,THE COAL AUTHORITY,08/09/2014,INCIDENTALS,NON-COAL MINEWATER (DEFRA),VEHICLES-FLEET MANAGEMENT,COMPANY BARCLAYCARD,0000214139,6.00
DEPARTMENT OF ENERGY AND CLIMATE CHANGE,THE COAL AUTHORITY,08/09/2014,INCIDENTALS,NON-COAL MINEWATER (DEFRA),VEHICLES-FLEET MANAGEMENT,COMPANY BARCLAYCARD,0000214139,5.50
DEPARTMENT OF ENERGY AND CLIMATE CHANGE,THE COAL AUTHORITY,21/08/2014,LEGAL COSTS,NON-COAL MINEWATER (DEFRA),PROF SER-LEGAL SERVICES,WALKER MORRIS,0000213694,138.00
DEPARTMENT OF ENERGY AND CLIMATE CHANGE,THE COAL AUTHORITY,25/09/2014,LEGAL COSTS,NON-COAL MINEWATER (DEFRA),PROF SER-LEGAL SERVICES,FEES REGARDING EXTENSION,0000214347,"1,200.00"
DEPARTMENT OF ENERGY AND CLIMATE CHANGE,THE COAL AUTHORITY,19/09/2014,LEGAL COSTS,NON-COAL MINEWATER (DEFRA),PROF SER-LEGAL SERVICES,WALKER MORRIS,0000214381,23.00
DEPARTMENT OF ENERGY AND CLIMATE CHANGE,THE COAL AUTHORITY,27/08/2014,M/W CHEMICAL OPERATIONAL,NON-COAL MINEWATER (DEFRA),ENGRNG GOODS-NON-MDICL CHMCLS,BIOCHEMICA UK LIMITED,0000213734,262.00
DEPARTMENT OF ENERGY AND CLIMATE CHANGE,THE COAL AUTHORITY,29/08/2014,M/W LAND AGENTS (AQUISITIONS),NON-COAL MINEWATER (DEFRA),PROF SER-OPERATIONAL SERVICES,AGENTS FESS RE ROOKHOPE,0000213627,711.37
DEPARTMENT OF ENERGY AND CLIMATE CHANGE,THE COAL AUTHORITY,09/09/2014,M/W LAND AGENTS (AQUISITIONS),NON-COAL MINEWATER (DEFRA),PROF SER-OPERATIONAL SERVICES,RECLAIM VAT DOC 213627,35001184,-118.56
DEPARTMENT OF ENERGY AND CLIMATE CHANGE,THE COAL AUTHORITY,11/09/2014,M/W RENTS PAYABLE,NON-COAL MINEWATER (DEFRA),FACILITIES-BUILDING MANAGEMENT,THE NATIONAL TRUST,0000214198,10.00
DEPARTMENT OF ENERGY AND CLIMATE CHANGE,THE COAL AUTHORITY,15/09/2014,M/W RESEARCH AND DEVELOPMENT,NON-COAL MINEWATER (DEFRA),PROF SER TECH-ENGINEERING SER,NEWCASTLE UNIVERSITY,0000214021,"8,432.58"
DEPARTMENT OF ENERGY AND CLIMATE CHANGE,THE COAL AUTHORITY,15/08/2014,M/W SCOPING/FEASIBILITY/CONCEP,NON-COAL MINEWATER (DEFRA),PROF SER TECH-ENGINEERING SER,GOLDER ASSOCIATES (UK) LT,0000213654,"4,117.00"
DEPARTMENT OF ENERGY AND CLIMATE CHANGE,THE COAL AUTHORITY,04/09/2014,M/W SITE SURVEY WORK,NON-COAL MINEWATER (DEFRA),CONSTRUCTION-CNSTRN SER PROVDR,MIDLAND SURVEYING & ENGIN,0000213878,"2,310.00"
DEPARTMENT OF ENERGY AND CLIMATE CHANGE,THE COAL AUTHORITY,08/09/2014,MONITORING & FLOW MEASUREMENT,NON-COAL MINEWATER (DEFRA),ENERGY&UTILITIES-WATER,APPLICATION FOR ORDINARY,0000213774,50.00
DEPARTMENT OF ENERGY AND CLIMATE CHANGE,THE COAL AUTHORITY,12/09/2014,MONITORING & FLOW MEASUREMENT,NON-COAL MINEWATER (DEFRA),CONSTRUCTION-MAIN CONTRACTORS,INTEGRATED WATER SERVICES,0000214028,"7,123.76"
DEPARTMENT OF ENERGY AND CLIMATE CHANGE,THE COAL AUTHORITY,08/09/2014,PUBLICATIONS,NON-COAL MINEWATER (DEFRA),OPRTNL GOODS&SERV-DEVLPNG MTRL,COMPANY BARCLAYCARD,0000214139,13.47
DEPARTMENT OF ENERGY AND CLIMATE CHANGE,THE COAL AUTHORITY,15/09/2014,R&D-EXTERNAL COSTS,NON-COAL MINEWATER (DEFRA),PROF SER TECH-ENGINEERING SER,NEWCASTLE UNIVERSITY,0000214021,"3,689.50"
DEPARTMENT OF ENERGY AND CLIMATE CHANGE,THE COAL AUTHORITY,08/09/2014,SUBSISTENCE ALLOWANCES,NON-COAL MINEWATER (DEFRA),FACILITIES - FOOD,COMPANY BARCLAYCARD,0000214046,16.18
DEPARTMENT OF ENERGY AND CLIMATE CHANGE,THE COAL AUTHORITY,08/09/2014,SUBSISTENCE ALLOWANCES,NON-COAL MINEWATER (DEFRA),FACILITIES - FOOD,COMPANY BARCLAYCARD,0000214047,23.00
DEPARTMENT OF ENERGY AND CLIMATE CHANGE,THE COAL AUTHORITY,08/09/2014,SUBSISTENCE ALLOWANCES,NON-COAL MINEWATER (DEFRA),FACILITIES - FOOD,COMPANY BARCLAYCARD,0000214047,23.00
DEPARTMENT OF ENERGY AND CLIMATE CHANGE,THE COAL AUTHORITY,08/09/2014,SUBSISTENCE ALLOWANCES,NON-COAL MINEWATER (DEFRA),FACILITIES - FOOD,COMPANY BARCLAYCARD,0000214047,10.90
DEPARTMENT OF ENERGY AND CLIMATE CHANGE,THE COAL AUTHORITY,08/09/2014,SUBSISTENCE ALLOWANCES,NON-COAL MINEWATER (DEFRA),FACILITIES - FOOD,COMPANY BARCLAYCARD,0000214047,10.89
DEPARTMENT OF ENERGY AND CLIMATE CHANGE,THE COAL AUTHORITY,08/09/2014,SUBSISTENCE ALLOWANCES,NON-COAL MINEWATER (DEFRA),FACILITIES - FOOD,COMPANY BARCLAYCARD,0000214121,12.22
DEPARTMENT OF ENERGY AND CLIMATE CHANGE,THE COAL AUTHORITY,08/09/2014,SUBSISTENCE ALLOWANCES,NON-COAL MINEWATER (DEFRA),FACILITIES - FOOD,COMPANY BARCLAYCARD,0000214121,12.21
DEPARTMENT OF ENERGY AND CLIMATE CHANGE,THE COAL AUTHORITY,08/09/2014,SUBSISTENCE ALLOWANCES,NON-COAL MINEWATER (DEFRA),FACILITIES - FOOD,COMPANY BARCLAYCARD,0000214139,62.66
DEPARTMENT OF ENERGY AND CLIMATE CHANGE,THE COAL AUTHORITY,08/09/2014,SUBSISTENCE ALLOWANCES,NON-COAL MINEWATER (DEFRA),FACILITIES - FOOD,COMPANY BARCLAYCARD,0000214139,7.29
DEPARTMENT OF ENERGY AND CLIMATE CHANGE,THE COAL AUTHORITY,08/09/2014,SUBSISTENCE ALLOWANCES,NON-COAL MINEWATER (DEFRA),FACILITIES - FOOD,COMPANY BARCLAYCARD,0000214139,5.07
DEPARTMENT OF ENERGY AND CLIMATE CHANGE,THE COAL AUTHORITY,08/09/2014,SUBSISTENCE ALLOWANCES,NON-COAL MINEWATER (DEFRA),FACILITIES - FOOD,COMPANY BARCLAYCARD,0000214155,30.15
DEPARTMENT OF ENERGY AND CLIMATE CHANGE,THE COAL AUTHORITY,08/09/2014,SUBSISTENCE ALLOWANCES,NON-COAL MINEWATER (DEFRA),FACILITIES - FOOD,COMPANY BARCLAYCARD,0000214155,16.69
DEPARTMENT OF ENERGY AND CLIMATE CHANGE,THE COAL AUTHORITY,08/09/2014,SUBSISTENCE ALLOWANCES,NON-COAL MINEWATER (DEFRA),FACILITIES - FOOD,COMPANY BARCLAYCARD,0000214155,9.20
DEPARTMENT OF ENERGY AND CLIMATE CHANGE,THE COAL AUTHORITY,08/09/2014,SUBSISTENCE ALLOWANCES,NON-COAL MINEWATER (DEFRA),FACILITIES - FOOD,COMPANY BARCLAYCARD,0000214155,5.50
DEPARTMENT OF ENERGY AND CLIMATE CHANGE,THE COAL AUTHORITY,23/09/2014,SUBSISTENCE ALLOWANCES,NON-COAL MINEWATER (DEFRA),FACILITIES - FOOD,STAFF EXPENSES CONTROL,0000214268,53.89
DEPARTMENT OF ENERGY AND CLIMATE CHANGE,THE COAL AUTHORITY,23/09/2014,SUBSISTENCE ALLOWANCES,NON-COAL MINEWATER (DEFRA),FACILITIES - FOOD,STAFF EXPENSES CONTROL,0000214268,8.40
DEPARTMENT OF ENERGY AND CLIMATE CHANGE,THE COAL AUTHORITY,23/09/2014,SUBSISTENCE ALLOWANCES,NON-COAL MINEWATER (DEFRA),FACILITIES - FOOD,STAFF EXPENSES CONTROL,0000214268,9.68
DEPARTMENT OF ENERGY AND CLIMATE CHANGE,THE COAL AUTHORITY,23/09/2014,SUBSISTENCE ALLOWANCES,NON-COAL MINEWATER (DEFRA),FACILITIES - FOOD,STAFF EXPENSES CONTROL,0000214268,5.80
DEPARTMENT OF ENERGY AND CLIMATE CHANGE,THE COAL AUTHORITY,23/09/2014,SUBSISTENCE ALLOWANCES,NON-COAL MINEWATER (DEFRA),FACILITIES - FOOD,STAFF EXPENSES CONTROL,0000214268,2.79
DEPARTMENT OF ENERGY AND CLIMATE CHANGE,THE COAL AUTHORITY,23/09/2014,SUBSISTENCE ALLOWANCES,NON-COAL MINEWATER (DEFRA),FACILITIES - FOOD,STAFF EXPENSES CONTROL,0000214268,4.87
DEPARTMENT OF ENERGY AND CLIMATE CHANGE,THE COAL AUTHORITY,28/08/2014,WATER SAMPLING - DEVELOPMENT,NON-COAL MINEWATER (DEFRA),PROF SER TECH-FORENSIC/LAB SER,ENVIRONMENTAL SCIENTIFICS,0000213890,114.60
DEPARTMENT OF ENERGY AND CLIMATE CHANGE,THE COAL AUTHORITY,28/08/2014,WATER SAMPLING - DEVELOPMENT,NON-COAL MINEWATER (DEFRA),PROF SER TECH-FORENSIC/LAB SER,ENVIRONMENTAL SCIENTIFICS,0000213890,114.60
DEPARTMENT OF ENERGY AND CLIMATE CHANGE,THE COAL AUTHORITY,28/08/2014,WATER SAMPLING - DEVELOPMENT,NON-COAL MINEWATER (DEFRA),PROF SER TECH-FORENSIC/LAB SER,ENVIRONMENTAL SCIENTIFICS,0000213890,114.60
DEPARTMENT OF ENERGY AND CLIMATE CHANGE,THE COAL AUTHORITY,28/08/2014,WATER SAMPLING - DEVELOPMENT,NON-COAL MINEWATER (DEFRA),PROF SER TECH-FORENSIC/LAB SER,ENVIRONMENTAL SCIENTIFICS,0000213890,108.60
DEPARTMENT OF ENERGY AND CLIMATE CHANGE,THE COAL AUTHORITY,28/08/2014,WATER SAMPLING - DEVELOPMENT,NON-COAL MINEWATER (DEFRA),PROF SER TECH-FORENSIC/LAB SER,ENVIRONMENTAL SCIENTIFICS,0000213890,205.20
DEPARTMENT OF ENERGY AND CLIMATE CHANGE,THE COAL AUTHORITY,28/08/2014,WATER SAMPLING - DEVELOPMENT,NON-COAL MINEWATER (DEFRA),PROF SER TECH-FORENSIC/LAB SER,ENVIRONMENTAL SCIENTIFICS,0000213890,57.30
DEPARTMENT OF ENERGY AND CLIMATE CHANGE,THE COAL AUTHORITY,28/08/2014,WATER SAMPLING - DEVELOPMENT,NON-COAL MINEWATER (DEFRA),PROF SER TECH-FORENSIC/LAB SER,ENVIRONMENTAL SCIENTIFICS,0000213890,57.30
DEPARTMENT OF ENERGY AND CLIMATE CHANGE,THE COAL AUTHORITY,28/08/2014,WATER SAMPLING - DEVELOPMENT,NON-COAL MINEWATER (DEFRA),PROF SER TECH-FORENSIC/LAB SER,ENVIRONMENTAL SCIENTIFICS,0000213890,57.30
DEPARTMENT OF ENERGY AND CLIMATE CHANGE,THE COAL AUTHORITY,28/08/2014,WATER SAMPLING - OPERATIONAL,NON-COAL MINEWATER (DEFRA),PROF SER TECH-FORENSIC/LAB SER,ENVIRONMENTAL SCIENTIFICS,0000213890,"1,843.16"
DEPARTMENT OF ENERGY AND CLIMATE CHANGE,THE COAL AUTHORITY,28/08/2014,WATER SAMPLING - OPERATIONAL,NON-COAL MINEWATER (DEFRA),PROF SER TECH-FORENSIC/LAB SER,ENVIRONMENTAL SCIENTIFICS,0000213890,"1,272.81"
DEPARTMENT OF ENERGY AND CLIMATE CHANGE,THE COAL AUTHORITY,01/09/2014,CHILDCARE VOUCHERS,PERMISSIONS,PERSONNEL RLTD-STAFF CHILDCARE,FIDELITI LIMITED,0000213721,243.00
DEPARTMENT OF ENERGY AND CLIMATE CHANGE,THE COAL AUTHORITY,01/09/2014,COMMISSION CHARGES-E-COMMERCE,PERMISSIONS,PROF SER FNCL-BANKING&INVSTMNT,WORLDPAY,0000214230,516.16
DEPARTMENT OF ENERGY AND CLIMATE CHANGE,THE COAL AUTHORITY,31/08/2014,HOTEL ACCOMMODATION,PERMISSIONS,TRAVEL&EVENTS-HOTELS,REDFERN TRAVEL LTD,0000213896,44.10
DEPARTMENT OF ENERGY AND CLIMATE CHANGE,THE COAL AUTHORITY,27/08/2014,PAYMENTS TO AGENCIES FOR TEMPS,PERMISSIONS,PROF SER TMP STFF-TEMP WRKERS,STAFFORCE RECRUITMENT,0000213726,456.21
DEPARTMENT OF ENERGY AND CLIMATE CHANGE,THE COAL AUTHORITY,02/09/2014,PAYMENTS TO AGENCIES FOR TEMPS,PERMISSIONS,PROF SER TMP STFF-TEMP WRKERS,STAFFORCE RECRUITMENT,0000213826,271.26
DEPARTMENT OF ENERGY AND CLIMATE CHANGE,THE COAL AUTHORITY,09/09/2014,PAYMENTS TO AGENCIES FOR TEMPS,PERMISSIONS,PROF SER TMP STFF-TEMP WRKERS,STAFFORCE RECRUITMENT,0000213925,184.95
DEPARTMENT OF ENERGY AND CLIMATE CHANGE,THE COAL AUTHORITY,16/09/2014,PAYMENTS TO AGENCIES FOR TEMPS,PERMISSIONS,PROF SER TMP STFF-TEMP WRKERS,STAFFORCE RECRUITMENT,0000214152,456.21
DEPARTMENT OF ENERGY AND CLIMATE CHANGE,THE COAL AUTHORITY,08/09/2014,SUBSISTENCE ALLOWANCES,PERMISSIONS,FACILITIES - FOOD,COMPANY BARCLAYCARD,0000214043,2.16
DEPARTMENT OF ENERGY AND CLIMATE CHANGE,THE COAL AUTHORITY,08/09/2014,SUBSISTENCE ALLOWANCES,PERMISSIONS,FACILITIES - FOOD,COMPANY BARCLAYCARD,0000214115,18.30
DEPARTMENT OF ENERGY AND CLIMATE CHANGE,THE COAL AUTHORITY,31/08/2014,FARES - RAIL,PLANNING & LOCAL AUTH LIAISON,TRAVEL&EVENTS-RAIL,REDFERN TRAVEL LTD,0000213892,136.40
DEPARTMENT OF ENERGY AND CLIMATE CHANGE,THE COAL AUTHORITY,31/08/2014,HOTEL ACCOMMODATION,PLANNING & LOCAL AUTH LIAISON,TRAVEL&EVENTS-HOTELS,REDFERN TRAVEL LTD,0000213896,187.61
DEPARTMENT OF ENERGY AND CLIMATE CHANGE,THE COAL AUTHORITY,08/09/2014,INCIDENTALS,PLANNING & LOCAL AUTH LIAISON,VEHICLES-FLEET MANAGEMENT,COMPANY BARCLAYCARD,0000214043,9.17
DEPARTMENT OF ENERGY AND CLIMATE CHANGE,THE COAL AUTHORITY,23/09/2014,INCIDENTALS,PLANNING & LOCAL AUTH LIAISON,VEHICLES-FLEET MANAGEMENT,STAFF EXPENSES CONTROL,0000214245,3.00
DEPARTMENT OF ENERGY AND CLIMATE CHANGE,THE COAL AUTHORITY,23/09/2014,INCIDENTALS,PLANNING & LOCAL AUTH LIAISON,VEHICLES-FLEET MANAGEMENT,STAFF EXPENSES CONTROL,0000214247,10.83
DEPARTMENT OF ENERGY AND CLIMATE CHANGE,THE COAL AUTHORITY,23/08/2014,IT-APPLICATIONS MANAGEMENT,PLANNING & LOCAL AUTH LIAISON,ICT-SYSTEMS DELIVERY,SCISYS UK LTD,0000213710,"1,572.46"
DEPARTMENT OF ENERGY AND CLIMATE CHANGE,THE COAL AUTHORITY,17/09/2014,MEMBERSHIP SUBSCRIPTIONS,PLANNING & LOCAL AUTH LIAISON,PERSONNEL RLTD-STAFF SUBSCRPTN,ROYAL TOWN PLANNING INSTI,0000214176,125.00
DEPARTMENT OF ENERGY AND CLIMATE CHANGE,THE COAL AUTHORITY,23/09/2014,MILEAGE PAYMENTS,PLANNING & LOCAL AUTH LIAISON,FUELS/LUBRCNT/GAS-FUELS,STAFF EXPENSES CONTROL,0000214242,112.55
DEPARTMENT OF ENERGY AND CLIMATE CHANGE,THE COAL AUTHORITY,23/09/2014,MILEAGE PAYMENTS,PLANNING & LOCAL AUTH LIAISON,FUELS/LUBRCNT/GAS-FUELS,STAFF EXPENSES CONTROL,0000214245,35.28
DEPARTMENT OF ENERGY AND CLIMATE CHANGE,THE COAL AUTHORITY,08/09/2014,SUBSISTENCE ALLOWANCES,PLANNING & LOCAL AUTH LIAISON,FACILITIES - FOOD,COMPANY BARCLAYCARD,0000214043,3.58
DEPARTMENT OF ENERGY AND CLIMATE CHANGE,THE COAL AUTHORITY,08/09/2014,SUBSISTENCE ALLOWANCES,PLANNING & LOCAL AUTH LIAISON,FACILITIES - FOOD,COMPANY BARCLAYCARD,0000214115,18.30
DEPARTMENT OF ENERGY AND CLIMATE CHANGE,THE COAL AUTHORITY,23/09/2014,SUBSISTENCE ALLOWANCES,PLANNING & LOCAL AUTH LIAISON,FACILITIES - FOOD,STAFF EXPENSES CONTROL,0000214242,8.21
DEPARTMENT OF ENERGY AND CLIMATE CHANGE,THE COAL AUTHORITY,23/09/2014,SUBSISTENCE ALLOWANCES,PLANNING & LOCAL AUTH LIAISON,FACILITIES - FOOD,STAFF EXPENSES CONTROL,0000214245,6.18
DEPARTMENT OF ENERGY AND CLIMATE CHANGE,THE COAL AUTHORITY,31/08/2014,FARES - RAIL,PROCUREMENT,TRAVEL&EVENTS-RAIL,REDFERN TRAVEL LTD,0000213895,-312.04
DEPARTMENT OF ENERGY AND CLIMATE CHANGE,THE COAL AUTHORITY,31/08/2014,HOTEL ACCOMMODATION,PROCUREMENT,TRAVEL&EVENTS-HOTELS,REDFERN TRAVEL LTD,0000213896,60.33
DEPARTMENT OF ENERGY AND CLIMATE CHANGE,THE COAL AUTHORITY,02/09/2014,LEGAL COSTS,PROCUREMENT,PROF SER-LEGAL SERVICES,DLA PIPER UK LLP,0000213693,414.00
DEPARTMENT OF ENERGY AND CLIMATE CHANGE,THE COAL AUTHORITY,01/09/2014,MEMBERSHIP SUBSCRIPTIONS,PROCUREMENT,PERSONNEL RLTD-STAFF SUBSCRPTN,WOLTERS KLUWER (UK) LTD,0000213905,744.95
DEPARTMENT OF ENERGY AND CLIMATE CHANGE,THE COAL AUTHORITY,01/09/2014,MEMBERSHIP SUBSCRIPTIONS,PROCUREMENT,PERSONNEL RLTD-STAFF SUBSCRPTN,WOLTERS KLUWER (UK) LTD,0000213906,749.95
DEPARTMENT OF ENERGY AND CLIMATE CHANGE,THE COAL AUTHORITY,08/09/2014,SUBSISTENCE ALLOWANCES,PROCUREMENT,FACILITIES - FOOD,COMPANY BARCLAYCARD,0000214129,12.50
DEPARTMENT OF ENERGY AND CLIMATE CHANGE,THE COAL AUTHORITY,08/09/2014,SUBSISTENCE ALLOWANCES,PROCUREMENT,FACILITIES - FOOD,COMPANY BARCLAYCARD,0000214135,9.01
DEPARTMENT OF ENERGY AND CLIMATE CHANGE,THE COAL AUTHORITY,23/09/2014,SUBSISTENCE ALLOWANCES,PROCUREMENT,FACILITIES - FOOD,STAFF EXPENSES CONTROL,0000214261,4.54
DEPARTMENT OF ENERGY AND CLIMATE CHANGE,THE COAL AUTHORITY,04/09/2014,LEGAL COSTS,PROPERTY MANAGEMENT & SALES,PROF SER-LEGAL SERVICES,ANDERSON STRATHERN,0000214382,"1,254.00"
DEPARTMENT OF ENERGY AND CLIMATE CHANGE,THE COAL AUTHORITY,02/09/2014,LEGAL FEES - SALES,PROPERTY MANAGEMENT & SALES,PROF SER-LEGAL SERVICES,DLA PIPER UK LLP,0000213693,11.35
DEPARTMENT OF ENERGY AND CLIMATE CHANGE,THE COAL AUTHORITY,21/08/2014,LEGAL FEES - SALES,PROPERTY MANAGEMENT & SALES,PROF SER-LEGAL SERVICES,WALKER MORRIS,0000213694,31.80
DEPARTMENT OF ENERGY AND CLIMATE CHANGE,THE COAL AUTHORITY,04/09/2014,LEGAL FEES - SALES,PROPERTY MANAGEMENT & SALES,PROF SER-LEGAL SERVICES,ANDERSON STRATHERN,0000214382,126.00
DEPARTMENT OF ENERGY AND CLIMATE CHANGE,THE COAL AUTHORITY,31/08/2014,OTHER CONTRACTOR COSTS,PROPERTY MANAGEMENT & SALES,PROF SER CNSLTNCY-PPM CNSLTNCY,JMC ENGINEERING (UK) LTD,0000213810,995.60
DEPARTMENT OF ENERGY AND CLIMATE CHANGE,THE COAL AUTHORITY,15/07/2014,OUTSOURCED MGT- PROP SALES,PROPERTY MANAGEMENT & SALES,PROF SER CNSLTNCY-PROP/CNSTRCN,SMITHS GORE,0000213656,"3,750.00"
DEPARTMENT OF ENERGY AND CLIMATE CHANGE,THE COAL AUTHORITY,09/09/2014,OUTSOURCED MGT- PROP SALES,PROPERTY MANAGEMENT & SALES,PROF SER CNSLTNCY-PROP/CNSTRCN,CARTER TOWLER LLP,0000214018,"3,795.00"
DEPARTMENT OF ENERGY AND CLIMATE CHANGE,THE COAL AUTHORITY,26/08/2014,PROPERTY /TIP MAINTENANCE,PROPERTY MANAGEMENT & SALES,CONSTRUCTION-MAIN CONTRACTORS,INTEGRATED WATER SERVICES,0000213541,72.58
DEPARTMENT OF ENERGY AND CLIMATE CHANGE,THE COAL AUTHORITY,29/08/2014,PROPERTY /TIP MAINTENANCE,PROPERTY MANAGEMENT & SALES,PROF SER CNSLTNCY-PPM CNSLTNCY,INTEGRATED WATER SERVICES,0000213676,209.71
DEPARTMENT OF ENERGY AND CLIMATE CHANGE,THE COAL AUTHORITY,13/06/2014,PROPERTY /TIP MAINTENANCE,PROPERTY MANAGEMENT & SALES,FACILITIES - SECURITY,ASGS SECURITY SERVICES LT,0000213884,35.00
DEPARTMENT OF ENERGY AND CLIMATE CHANGE,THE COAL AUTHORITY,08/09/2014,PROPERTY /TIP MAINTENANCE,PROPERTY MANAGEMENT & SALES,CONSTRUCTION-MAIN CONTRACTORS,INTEGRATED WATER SERVICES,0000213922,464.30
DEPARTMENT OF ENERGY AND CLIMATE CHANGE,THE COAL AUTHORITY,15/09/2014,PROPERTY /TIP MAINTENANCE,PROPERTY MANAGEMENT & SALES,FACILITIES - SECURITY,ASGS SECURITY SERVICES LT,0000214014,35.00
DEPARTMENT OF ENERGY AND CLIMATE CHANGE,THE COAL AUTHORITY,31/08/2014,PROPERTY MANAGEMENT CONSTLNTS,PROPERTY MANAGEMENT & SALES,PROF SER CNSLTNCY-PPM CNSLTNCY,JMC ENGINEERING (UK) LTD,0000213801,74.00
DEPARTMENT OF ENERGY AND CLIMATE CHANGE,THE COAL AUTHORITY,31/08/2014,PROPERTY MANAGEMENT CONSTLNTS,PROPERTY MANAGEMENT & SALES,PROF SER CNSLTNCY-PPM CNSLTNCY,JMC ENGINEERING (UK) LTD,0000213802,118.40
DEPARTMENT OF ENERGY AND CLIMATE CHANGE,THE COAL AUTHORITY,03/09/2014,PROPERTY RATES PAYABLE,PROPERTY MANAGEMENT & SALES,ENERGY&UTILITIES-ELECTRICITY,BRITISH GAS BUSINESS,0000213818,39.02
DEPARTMENT OF ENERGY AND CLIMATE CHANGE,THE COAL AUTHORITY,20/08/2014,PROPERTY RENTS PAYABLE,PROPERTY MANAGEMENT & SALES,FACILITIES-BUILDING MANAGEMENT,NETWORK RAIL,0000213644,40.00
DEPARTMENT OF ENERGY AND CLIMATE CHANGE,THE COAL AUTHORITY,20/08/2014,PROPERTY RENTS PAYABLE,PROPERTY MANAGEMENT & SALES,FACILITIES-BUILDING MANAGEMENT,NETWORK RAIL,0000213646,410.07
DEPARTMENT OF ENERGY AND CLIMATE CHANGE,THE COAL AUTHORITY,04/09/2014,PROPERTY RENTS PAYABLE,PROPERTY MANAGEMENT & SALES,FACILITIES-BUILDING MANAGEMENT,QUARTERLY RENTAL PAYMENT,0000213696,"48,064.25"
DEPARTMENT OF ENERGY AND CLIMATE CHANGE,THE COAL AUTHORITY,26/08/2014,RESTRTN CLSED CLLRY STE-PROP,PROPERTY MANAGEMENT & SALES,WASTE MANAGEMENT-WSTE MNGT SER,M T S CLEANSING SERVICES,0000213647,381.69
DEPARTMENT OF ENERGY AND CLIMATE CHANGE,THE COAL AUTHORITY,29/08/2014,RESTRTN CLSED CLLRY STE-PROP,PROPERTY MANAGEMENT & SALES,PROF SER-OPERATIONAL SERVICES,CRIMEFIGHTER ALARMS LTD,0000213887,"4,560.72"
DEPARTMENT OF ENERGY AND CLIMATE CHANGE,THE COAL AUTHORITY,22/09/2014,RESTRTN CLSED CLLRY STE-PROP,PROPERTY MANAGEMENT & SALES,WASTE MANAGEMENT-WSTE MNGT SER,M T S CLEANSING SERVICES,0000214343,381.69
DEPARTMENT OF ENERGY AND CLIMATE CHANGE,THE COAL AUTHORITY,01/09/2014,COMMISSION CHARGES-E-COMMERCE,RECORDS STORAGE,PROF SER FNCL-BANKING&INVSTMNT,WORLDPAY,0000214230,6.07
DEPARTMENT OF ENERGY AND CLIMATE CHANGE,THE COAL AUTHORITY,08/09/2014,INCIDENTALS,RESEARCH & DEVELOPMENT,VEHICLES-FLEET MANAGEMENT,COMPANY BARCLAYCARD,0000214051,4.00
DEPARTMENT OF ENERGY AND CLIMATE CHANGE,THE COAL AUTHORITY,16/07/2014,CENTRAL TRAINING BUDGET,SHE/CDM,PROF SER LRNG&DEV-STAFF TRNING,RISK & SAFETY MANAGEMENT,0000213521,474.00
DEPARTMENT OF ENERGY AND CLIMATE CHANGE,THE COAL AUTHORITY,16/09/2014,CENTRAL TRAINING BUDGET,SHE/CDM,PROF SER LRNG&DEV-STAFF TRNING,MINES RESCUE SERVICE LIMI,0000214022,344.00
DEPARTMENT OF ENERGY AND CLIMATE CHANGE,THE COAL AUTHORITY,16/09/2014,CENTRAL TRAINING BUDGET,SHE/CDM,PROF SER LRNG&DEV-STAFF TRNING,MINES RESCUE SERVICE LIMI,0000214023,344.00
DEPARTMENT OF ENERGY AND CLIMATE CHANGE,THE COAL AUTHORITY,16/09/2014,CENTRAL TRAINING BUDGET,SHE/CDM,PROF SER LRNG&DEV-STAFF TRNING,MINES RESCUE SERVICE LIMI,0000214024,344.00
DEPARTMENT OF ENERGY AND CLIMATE CHANGE,THE COAL AUTHORITY,10/09/2014,CENTRAL TRAINING BUDGET,SHE/CDM,PROF SER LRNG&DEV-STAFF TRNING,RISK & SAFETY MANAGEMENT,0000214033,474.00
DEPARTMENT OF ENERGY AND CLIMATE CHANGE,THE COAL AUTHORITY,08/09/2014,CENTRAL TRAINING BUDGET,SHE/CDM,PROF SER LRNG&DEV-STAFF TRNING,COMPANY BARCLAYCARD,0000214140,42.50
DEPARTMENT OF ENERGY AND CLIMATE CHANGE,THE COAL AUTHORITY,28/08/2014,CONSULTANCY,SHE/CDM,PROF SER CNSLTNCY-PROP/CNSTRCN,JDA SAFETY LIMITED,0000213618,943.00
DEPARTMENT OF ENERGY AND CLIMATE CHANGE,THE COAL AUTHORITY,26/08/2014,CONSULTANCY,SHE/CDM,PROF SER-LEGAL SERVICES,MOTT MACDONALD LTD,0000213641,896.85
DEPARTMENT OF ENERGY AND CLIMATE CHANGE,THE COAL AUTHORITY,31/08/2014,FARES - RAIL,SHE/CDM,TRAVEL&EVENTS-RAIL,REDFERN TRAVEL LTD,0000213892,35.16
DEPARTMENT OF ENERGY AND CLIMATE CHANGE,THE COAL AUTHORITY,31/08/2014,HOTEL ACCOMMODATION,SHE/CDM,TRAVEL&EVENTS-HOTELS,REDFERN TRAVEL LTD,0000213896,132.93
DEPARTMENT OF ENERGY AND CLIMATE CHANGE,THE COAL AUTHORITY,08/09/2014,INCIDENTALS,SHE/CDM,VEHICLES-FLEET MANAGEMENT,COMPANY BARCLAYCARD,0000214120,10.00
DEPARTMENT OF ENERGY AND CLIMATE CHANGE,THE COAL AUTHORITY,08/09/2014,INCIDENTALS,SHE/CDM,VEHICLES-FLEET MANAGEMENT,COMPANY BARCLAYCARD,0000214129,24.00
DEPARTMENT OF ENERGY AND CLIMATE CHANGE,THE COAL AUTHORITY,23/09/2014,MILEAGE PAYMENTS,SHE/CDM,FUELS/LUBRCNT/GAS-FUELS,STAFF EXPENSES CONTROL,0000214256,68.40
DEPARTMENT OF ENERGY AND CLIMATE CHANGE,THE COAL AUTHORITY,08/09/2014,PROFESSIONAL SUBSCRIPTIONS,SHE/CDM,PERSONNEL RLTD-STAFF SUBSCRPTN,COMPANY BARCLAYCARD,0000214124,147.00
DEPARTMENT OF ENERGY AND CLIMATE CHANGE,THE COAL AUTHORITY,26/08/2014,SAFETY CLOTHING,SHE/CDM,OPRTNL GOODS&SERV-CLOTHING,ARCO LIMITED,0000213707,61.99
DEPARTMENT OF ENERGY AND CLIMATE CHANGE,THE COAL AUTHORITY,08/09/2014,SAFETY CLOTHING,SHE/CDM,OPRTNL GOODS&SERV-CLOTHING,COMPANY BARCLAYCARD,0000214038,263.61
DEPARTMENT OF ENERGY AND CLIMATE CHANGE,THE COAL AUTHORITY,08/09/2014,SAFETY CLOTHING,SHE/CDM,OPRTNL GOODS&SERV-DEVLPNG MTRL,COMPANY BARCLAYCARD,0000214038,43.80
DEPARTMENT OF ENERGY AND CLIMATE CHANGE,THE COAL AUTHORITY,08/09/2014,SAFETY CLOTHING,SHE/CDM,OPRTNL GOODS&SERV-CLOTHING,COMPANY BARCLAYCARD,0000214130,327.94
DEPARTMENT OF ENERGY AND CLIMATE CHANGE,THE COAL AUTHORITY,08/09/2014,SAFETY CLOTHING,SHE/CDM,OPRTNL GOODS&SERV-CLOTHING,COMPANY BARCLAYCARD,0000214131,33.32
DEPARTMENT OF ENERGY AND CLIMATE CHANGE,THE COAL AUTHORITY,08/09/2014,SUBSISTENCE ALLOWANCES,SHE/CDM,FACILITIES - FOOD,COMPANY BARCLAYCARD,0000214120,71.89
DEPARTMENT OF ENERGY AND CLIMATE CHANGE,THE COAL AUTHORITY,08/09/2014,SUBSISTENCE ALLOWANCES,SHE/CDM,FACILITIES - FOOD,COMPANY BARCLAYCARD,0000214129,19.66
DEPARTMENT OF ENERGY AND CLIMATE CHANGE,THE COAL AUTHORITY,08/09/2014,SUBSISTENCE ALLOWANCES,SHE/CDM,FACILITIES - FOOD,COMPANY BARCLAYCARD,0000214135,9.00
DEPARTMENT OF ENERGY AND CLIMATE CHANGE,THE COAL AUTHORITY,23/09/2014,SUBSISTENCE ALLOWANCES,SHE/CDM,FACILITIES - FOOD,STAFF EXPENSES CONTROL,0000214256,51.83
DEPARTMENT OF ENERGY AND CLIMATE CHANGE,THE COAL AUTHORITY,23/09/2014,SUBSISTENCE ALLOWANCES,SHE/CDM,FACILITIES - FOOD,STAFF EXPENSES CONTROL,0000214259,21.27
DEPARTMENT OF ENERGY AND CLIMATE CHANGE,THE COAL AUTHORITY,01/09/2014,CNTRCTR & CLAIM CSTS-BRDGEWATR,SUBSIDENCE,CONSTRUCTION-MAIN CONTRACTORS,THE BRIDGEWATER CANAL CO,0000213678,"3,340.86"
DEPARTMENT OF ENERGY AND CLIMATE CHANGE,THE COAL AUTHORITY,01/09/2014,CNTRCTR & CLAIM CSTS-BRDGEWATR,SUBSIDENCE,CONSTRUCTION-MAIN CONTRACTORS,THE BRIDGEWATER CANAL CO,0000213679,"3,374.32"
DEPARTMENT OF ENERGY AND CLIMATE CHANGE,THE COAL AUTHORITY,03/09/2014,CNTRCTR & CLAIM CSTS-BRDGEWATR,SUBSIDENCE,"CONSTRUCTION-BLD,REPR&MAINTNCE",THE BRIDGEWATER CANAL CO,0000213680,616.74
DEPARTMENT OF ENERGY AND CLIMATE CHANGE,THE COAL AUTHORITY,16/09/2014,CNTRCTR & CLAIM CSTS-BRDGEWATR,SUBSIDENCE,CONSTRUCTION-MAIN CONTRACTORS,THE BRIDGEWATER CANAL CO,0000214010,516.00
DEPARTMENT OF ENERGY AND CLIMATE CHANGE,THE COAL AUTHORITY,16/09/2014,CNTRCTR & CLAIM CSTS-BRDGEWATR,SUBSIDENCE,CONSTRUCTION-MAIN CONTRACTORS,THE BRIDGEWATER CANAL CO,0000214011,"23,734.37"
DEPARTMENT OF ENERGY AND CLIMATE CHANGE,THE COAL AUTHORITY,16/09/2014,CNTRCTR & CLAIM CSTS-BRDGEWATR,SUBSIDENCE,CONSTRUCTION-MAIN CONTRACTORS,THE BRIDGEWATER CANAL CO,0000214012,"3,081.13"
DEPARTMENT OF ENERGY AND CLIMATE CHANGE,THE COAL AUTHORITY,23/09/2014,CNTRCTR & CLAIM CSTS-BRDGEWATR,SUBSIDENCE,CONSTRUCTION-CNSTRN SER PROVDR,THE BRIDGEWATER CANAL CO,0000214293,898.81
DEPARTMENT OF ENERGY AND CLIMATE CHANGE,THE COAL AUTHORITY,18/08/2014,CONTRACTORS AND CLAIM COSTS,SUBSIDENCE,CONSTRUCTION-MAIN CONTRACTORS,GEOL-CONSULTANTS LTD,0000213210,"1,910.00"
DEPARTMENT OF ENERGY AND CLIMATE CHANGE,THE COAL AUTHORITY,27/08/2014,CONTRACTORS AND CLAIM COSTS,SUBSIDENCE,CONSTRUCTION-MAIN CONTRACTORS,ALLIANCE CONSTRUCTION SOL,0000213567,289.00
DEPARTMENT OF ENERGY AND CLIMATE CHANGE,THE COAL AUTHORITY,27/08/2014,CONTRACTORS AND CLAIM COSTS,SUBSIDENCE,CONSTRUCTION-MAIN CONTRACTORS,ALLIANCE CONSTRUCTION SOL,0000213584,"1,094.90"
DEPARTMENT OF ENERGY AND CLIMATE CHANGE,THE COAL AUTHORITY,28/08/2014,CONTRACTORS AND CLAIM COSTS,SUBSIDENCE,CONSTRUCTION-CNSTRN SER PROVDR,CORNERSTONE  PROJECTS LTD,0000213600,161.50
DEPARTMENT OF ENERGY AND CLIMATE CHANGE,THE COAL AUTHORITY,02/09/2014,CONTRACTORS AND CLAIM COSTS,SUBSIDENCE,CONSTRUCTION-MAIN CONTRACTORS,ALLIANCE CONSTRUCTION SOL,0000213689,"2,869.09"
DEPARTMENT OF ENERGY AND CLIMATE CHANGE,THE COAL AUTHORITY,02/09/2014,CONTRACTORS AND CLAIM COSTS,SUBSIDENCE,CONSTRUCTION-MAIN CONTRACTORS,ALLIANCE CONSTRUCTION SOL,0000213691,"7,484.48"
DEPARTMENT OF ENERGY AND CLIMATE CHANGE,THE COAL AUTHORITY,03/09/2014,CONTRACTORS AND CLAIM COSTS,SUBSIDENCE,CONSTRUCTION-MAIN CONTRACTORS,ALLIANCE CONSTRUCTION SOL,0000213692,-679.00
DEPARTMENT OF ENERGY AND CLIMATE CHANGE,THE COAL AUTHORITY,03/09/2014,CONTRACTORS AND CLAIM COSTS,SUBSIDENCE,CONSTRUCTION-MAIN CONTRACTORS,BALFOUR BEATTY CIVIL ENG,0000213700,"3,151.04"
DEPARTMENT OF ENERGY AND CLIMATE CHANGE,THE COAL AUTHORITY,04/09/2014,CONTRACTORS AND CLAIM COSTS,SUBSIDENCE,PROF SER-OPERATIONAL SERVICES,AGENTS FEES,0000213708,534.96
DEPARTMENT OF ENERGY AND CLIMATE CHANGE,THE COAL AUTHORITY,14/08/2014,CONTRACTORS AND CLAIM COSTS,SUBSIDENCE,CONSTRUCTION-CNSTRN SER PROVDR,INTERLOCK SURVEYS,0000213709,"1,000.00"
DEPARTMENT OF ENERGY AND CLIMATE CHANGE,THE COAL AUTHORITY,05/09/2014,CONTRACTORS AND CLAIM COSTS,SUBSIDENCE,CONSTRUCTION-CNSTRN SER PROVDR,CORNERSTONE  PROJECTS LTD,0000213768,103.00
DEPARTMENT OF ENERGY AND CLIMATE CHANGE,THE COAL AUTHORITY,05/09/2014,CONTRACTORS AND CLAIM COSTS,SUBSIDENCE,CONSTRUCTION-CNSTRN SER PROVDR,CORNERSTONE  PROJECTS LTD,0000213771,103.00
DEPARTMENT OF ENERGY AND CLIMATE CHANGE,THE COAL AUTHORITY,08/09/2014,CONTRACTORS AND CLAIM COSTS,SUBSIDENCE,"CONSTRUCTION-BLD,REPR&MAINTNCE",SECTION 8 PAYMENT,0000213776,"12,672.85"
DEPARTMENT OF ENERGY AND CLIMATE CHANGE,THE COAL AUTHORITY,01/09/2014,CONTRACTORS AND CLAIM COSTS,SUBSIDENCE,CONSTRUCTION-CNSTRN SER PROVDR,PMC SURVEYS,0000213836,"1,507.32"
DEPARTMENT OF ENERGY AND CLIMATE CHANGE,THE COAL AUTHORITY,01/09/2014,CONTRACTORS AND CLAIM COSTS,SUBSIDENCE,CONSTRUCTION-CNSTRN SER PROVDR,PMC SURVEYS,0000213837,"1,600.00"
DEPARTMENT OF ENERGY AND CLIMATE CHANGE,THE COAL AUTHORITY,29/08/2014,CONTRACTORS AND CLAIM COSTS,SUBSIDENCE,CONSTRUCTION-CNSTRN SER PROVDR,PMC SURVEYS,0000213838,742.34
DEPARTMENT OF ENERGY AND CLIMATE CHANGE,THE COAL AUTHORITY,05/09/2014,CONTRACTORS AND CLAIM COSTS,SUBSIDENCE,CONSTRUCTION-CNSTRN SER PROVDR,PMC SURVEYS,0000213839,"1,695.95"
DEPARTMENT OF ENERGY AND CLIMATE CHANGE,THE COAL AUTHORITY,05/09/2014,CONTRACTORS AND CLAIM COSTS,SUBSIDENCE,CONSTRUCTION-CNSTRN SER PROVDR,PMC SURVEYS,0000213841,"3,200.00"
DEPARTMENT OF ENERGY AND CLIMATE CHANGE,THE COAL AUTHORITY,03/09/2014,CONTRACTORS AND CLAIM COSTS,SUBSIDENCE,CONSTRUCTION-MAIN CONTRACTORS,JIM DAVIES CIVIL ENGINEER,0000213847,518.02
DEPARTMENT OF ENERGY AND CLIMATE CHANGE,THE COAL AUTHORITY,31/08/2014,CONTRACTORS AND CLAIM COSTS,SUBSIDENCE,CONSTRUCTION-MAIN CONTRACTORS,NAL PLANT LIMITED,0000213851,285.04
DEPARTMENT OF ENERGY AND CLIMATE CHANGE,THE COAL AUTHORITY,09/09/2014,CONTRACTORS AND CLAIM COSTS,SUBSIDENCE,CONSTRUCTION-MAIN CONTRACTORS,LLETTYSHENKIN CONS CO LTD,0000213854,76.00
DEPARTMENT OF ENERGY AND CLIMATE CHANGE,THE COAL AUTHORITY,31/08/2014,CONTRACTORS AND CLAIM COSTS,SUBSIDENCE,CONSTRUCTION-CNSTRN SER PROVDR,STUDIO-G ARCHITECTURE LLP,0000213898,"3,406.25"
DEPARTMENT OF ENERGY AND CLIMATE CHANGE,THE COAL AUTHORITY,10/09/2014,CONTRACTORS AND CLAIM COSTS,SUBSIDENCE,"CONSTRUCTION-BLD,REPR&MAINTNCE",CROP LOSS & DAMAGE TO TRA,0000213899,200.00
DEPARTMENT OF ENERGY AND CLIMATE CHANGE,THE COAL AUTHORITY,10/09/2014,CONTRACTORS AND CLAIM COSTS,SUBSIDENCE,PROF SER-OPERATIONAL SERVICES,FEE FOR ACTING ARBITRATOR,0000213910,880.92
DEPARTMENT OF ENERGY AND CLIMATE CHANGE,THE COAL AUTHORITY,05/09/2014,CONTRACTORS AND CLAIM COSTS,SUBSIDENCE,CONSTRUCTION-CNSTRN SER PROVDR,INTERLOCK SURVEYS,0000213984,522.50
DEPARTMENT OF ENERGY AND CLIMATE CHANGE,THE COAL AUTHORITY,15/09/2014,CONTRACTORS AND CLAIM COSTS,SUBSIDENCE,PROF SER-OPERATIONAL SERVICES,EXTENSION OF FOOTPATH CLO,0000213997,818.00
DEPARTMENT OF ENERGY AND CLIMATE CHANGE,THE COAL AUTHORITY,04/07/2014,CONTRACTORS AND CLAIM COSTS,SUBSIDENCE,CONSTRUCTION-MAIN CONTRACTORS,EXCELL (UK) LIMITED,0000214025,"-4,793.14"
DEPARTMENT OF ENERGY AND CLIMATE CHANGE,THE COAL AUTHORITY,04/07/2014,CONTRACTORS AND CLAIM COSTS,SUBSIDENCE,CONSTRUCTION-MAIN CONTRACTORS,EXCELL (UK) LIMITED,0000214026,"3,593.63"
DEPARTMENT OF ENERGY AND CLIMATE CHANGE,THE COAL AUTHORITY,16/09/2014,CONTRACTORS AND CLAIM COSTS,SUBSIDENCE,PROF SER-CLINICAL SUPPORT SERV,AGENTS FEES,0000214036,401.71
DEPARTMENT OF ENERGY AND CLIMATE CHANGE,THE COAL AUTHORITY,12/09/2014,CONTRACTORS AND CLAIM COSTS,SUBSIDENCE,CONSTRUCTION-MAIN CONTRACTORS,BALFOUR BEATTY CIVIL ENG,0000214057,"7,115.98"
DEPARTMENT OF ENERGY AND CLIMATE CHANGE,THE COAL AUTHORITY,19/09/2014,CONTRACTORS AND CLAIM COSTS,SUBSIDENCE,CONSTRUCTION-CNSTRN SER PROVDR,CORNERSTONE  PROJECTS LTD,0000214206,148.00
DEPARTMENT OF ENERGY AND CLIMATE CHANGE,THE COAL AUTHORITY,19/09/2014,CONTRACTORS AND CLAIM COSTS,SUBSIDENCE,CONSTRUCTION-CNSTRN SER PROVDR,CORNERSTONE  PROJECTS LTD,0000214208,144.00
DEPARTMENT OF ENERGY AND CLIMATE CHANGE,THE COAL AUTHORITY,19/09/2014,CONTRACTORS AND CLAIM COSTS,SUBSIDENCE,CONSTRUCTION-CNSTRN SER PROVDR,CORNERSTONE  PROJECTS LTD,0000214209,119.00
DEPARTMENT OF ENERGY AND CLIMATE CHANGE,THE COAL AUTHORITY,16/09/2014,CONTRACTORS AND CLAIM COSTS,SUBSIDENCE,CONSTRUCTION-MAIN CONTRACTORS,NAL PLANT LIMITED,0000214231,268.08
DEPARTMENT OF ENERGY AND CLIMATE CHANGE,THE COAL AUTHORITY,16/09/2014,CONTRACTORS AND CLAIM COSTS,SUBSIDENCE,CONSTRUCTION-MAIN CONTRACTORS,NAL PLANT LIMITED,0000214232,179.56
DEPARTMENT OF ENERGY AND CLIMATE CHANGE,THE COAL AUTHORITY,18/09/2014,CONTRACTORS AND CLAIM COSTS,SUBSIDENCE,CONSTRUCTION-MAIN CONTRACTORS,BALFOUR BEATTY CIVIL ENG,0000214287,"3,646.57"
DEPARTMENT OF ENERGY AND CLIMATE CHANGE,THE COAL AUTHORITY,18/09/2014,CONTRACTORS AND CLAIM COSTS,SUBSIDENCE,CONSTRUCTION-MAIN CONTRACTORS,BALFOUR BEATTY CIVIL ENG,0000214289,"5,979.59"
DEPARTMENT OF ENERGY AND CLIMATE CHANGE,THE COAL AUTHORITY,22/09/2014,CONTRACTORS AND CLAIM COSTS,SUBSIDENCE,PROF SER-OPERATIONAL SERVICES,IDRS LIMITED,0000214290,"2,545.60"
DEPARTMENT OF ENERGY AND CLIMATE CHANGE,THE COAL AUTHORITY,24/09/2014,CONTRACTORS AND CLAIM COSTS,SUBSIDENCE,"CONSTRUCTION-BLD,REPR&MAINTNCE",SECTION 8 PAYMENT FIELD N,0000214327,"1,500.00"
DEPARTMENT OF ENERGY AND CLIMATE CHANGE,THE COAL AUTHORITY,24/09/2014,CONTRACTORS AND CLAIM COSTS,SUBSIDENCE,PROF SER-OPERATIONAL SERVICES,AGENTS FEES,0000214328,587.50
DEPARTMENT OF ENERGY AND CLIMATE CHANGE,THE COAL AUTHORITY,25/09/2014,CONTRACTORS AND CLAIM COSTS,SUBSIDENCE,"CONSTRUCTION-BLD,REPR&MAINTNCE",COMPLETED TEMPORARY WORKS,0000214346,"15,604.74"
DEPARTMENT OF ENERGY AND CLIMATE CHANGE,THE COAL AUTHORITY,24/09/2014,CONTRACTORS AND CLAIM COSTS,SUBSIDENCE,CONSTRUCTION-MAIN CONTRACTORS,NAL PLANT LIMITED,0000214365,401.92
DEPARTMENT OF ENERGY AND CLIMATE CHANGE,THE COAL AUTHORITY,24/09/2014,CONTRACTORS AND CLAIM COSTS,SUBSIDENCE,CONSTRUCTION-MAIN CONTRACTORS,NAL PLANT LIMITED,0000214366,"2,264.31"
DEPARTMENT OF ENERGY AND CLIMATE CHANGE,THE COAL AUTHORITY,25/09/2014,CONTRACTORS AND CLAIM COSTS,SUBSIDENCE,CONSTRUCTION-MAIN CONTRACTORS,SOIL ENGINEERING GEOSERVI,0000214377,"12,534.50"
DEPARTMENT OF ENERGY AND CLIMATE CHANGE,THE COAL AUTHORITY,02/09/2014,LEGAL COSTS,SUBSIDENCE,PROF SER-LEGAL SERVICES,DLA PIPER UK LLP,0000213693,"3,190.10"
DEPARTMENT OF ENERGY AND CLIMATE CHANGE,THE COAL AUTHORITY,04/06/2014,SUB PUMP STTN MAINTENANCE-OTHR,SUBSIDENCE PUMPING STATIONS,PSPES NOT APPLICABLE,JEREMY BENN ASSOCIATES LT,0000211655,"1,400.00"
DEPARTMENT OF ENERGY AND CLIMATE CHANGE,THE COAL AUTHORITY,26/08/2014,SUB PUMP STTN MAINTENANCE-OTHR,SUBSIDENCE PUMPING STATIONS,CONSTRUCTION-MAIN CONTRACTORS,INTEGRATED WATER SERVICES,0000213537,473.68
DEPARTMENT OF ENERGY AND CLIMATE CHANGE,THE COAL AUTHORITY,26/08/2014,SUB PUMP STTN MAINTENANCE-OTHR,SUBSIDENCE PUMPING STATIONS,CONSTRUCTION-MAIN CONTRACTORS,INTEGRATED WATER SERVICES,0000213537,116.12
DEPARTMENT OF ENERGY AND CLIMATE CHANGE,THE COAL AUTHORITY,26/08/2014,SUB PUMP STTN MAINTENANCE-OTHR,SUBSIDENCE PUMPING STATIONS,CONSTRUCTION-MAIN CONTRACTORS,INTEGRATED WATER SERVICES,0000213537,286.02
DEPARTMENT OF ENERGY AND CLIMATE CHANGE,THE COAL AUTHORITY,28/08/2014,SUB PUMP STTN MAINTENANCE-OTHR,SUBSIDENCE PUMPING STATIONS,CONSTRUCTION-MAIN CONTRACTORS,INTEGRATED WATER SERVICES,0000213648,643.03
DEPARTMENT OF ENERGY AND CLIMATE CHANGE,THE COAL AUTHORITY,28/08/2014,SUB PUMP STTN MAINTENANCE-OTHR,SUBSIDENCE PUMPING STATIONS,CONSTRUCTION-MAIN CONTRACTORS,INTEGRATED WATER SERVICES,0000213648,"2,784.50"
DEPARTMENT OF ENERGY AND CLIMATE CHANGE,THE COAL AUTHORITY,28/08/2014,SUB PUMP STTN MAINTENANCE-OTHR,SUBSIDENCE PUMPING STATIONS,CONSTRUCTION-MAIN CONTRACTORS,INTEGRATED WATER SERVICES,0000213648,"5,789.02"
DEPARTMENT OF ENERGY AND CLIMATE CHANGE,THE COAL AUTHORITY,28/08/2014,SUB PUMP STTN MAINTENANCE-OTHR,SUBSIDENCE PUMPING STATIONS,CONSTRUCTION-MAIN CONTRACTORS,INTEGRATED WATER SERVICES,0000213648,48.36
DEPARTMENT OF ENERGY AND CLIMATE CHANGE,THE COAL AUTHORITY,19/08/2014,SUB PUMP STTN MAINTENANCE-OTHR,SUBSIDENCE PUMPING STATIONS,"CONSTRUCTION-BLD,REPR&MAINTNCE",SELBY AREA INTERNAL DRAIN,0000213762,"7,495.30"
DEPARTMENT OF ENERGY AND CLIMATE CHANGE,THE COAL AUTHORITY,19/08/2014,SUB PUMP STTN MAINTENANCE-OTHR,SUBSIDENCE PUMPING STATIONS,"CONSTRUCTION-BLD,REPR&MAINTNCE",SELBY AREA INTERNAL DRAIN,0000213763,"1,751.05"
DEPARTMENT OF ENERGY AND CLIMATE CHANGE,THE COAL AUTHORITY,19/08/2014,SUB PUMP STTN MAINTENANCE-OTHR,SUBSIDENCE PUMPING STATIONS,"CONSTRUCTION-BLD,REPR&MAINTNCE",SELBY AREA INTERNAL DRAIN,0000213764,"1,705.87"
DEPARTMENT OF ENERGY AND CLIMATE CHANGE,THE COAL AUTHORITY,19/08/2014,SUB PUMP STTN MAINTENANCE-OTHR,SUBSIDENCE PUMPING STATIONS,CONSTRUCTION-MAIN CONTRACTORS,SELBY AREA INTERNAL DRAIN,0000213765,"1,312.54"
DEPARTMENT OF ENERGY AND CLIMATE CHANGE,THE COAL AUTHORITY,19/08/2014,SUB PUMP STTN MAINTENANCE-OTHR,SUBSIDENCE PUMPING STATIONS,"CONSTRUCTION-BLD,REPR&MAINTNCE",SELBY AREA INTERNAL DRAIN,0000213766,126.60
DEPARTMENT OF ENERGY AND CLIMATE CHANGE,THE COAL AUTHORITY,05/09/2014,SUB PUMP STTN MAINTENANCE-OTHR,SUBSIDENCE PUMPING STATIONS,FUELS/LUBRCNT/GAS-FUELS,DANVM DRAINAGE COMMISSION,0000213875,532.65
DEPARTMENT OF ENERGY AND CLIMATE CHANGE,THE COAL AUTHORITY,05/09/2014,SUB PUMP STTN MAINTENANCE-OTHR,SUBSIDENCE PUMPING STATIONS,TRAVEL&EVENTS-VEHICLE HIRE,DANVM DRAINAGE COMMISSION,0000213875,"1,161.66"
DEPARTMENT OF ENERGY AND CLIMATE CHANGE,THE COAL AUTHORITY,05/09/2014,SUB PUMP STTN MAINTENANCE-OTHR,SUBSIDENCE PUMPING STATIONS,PROF SER FNCL-CREDIT SERVICES,DANVM DRAINAGE COMMISSION,0000213875,250.00
DEPARTMENT OF ENERGY AND CLIMATE CHANGE,THE COAL AUTHORITY,05/09/2014,SUB PUMP STTN MAINTENANCE-OTHR,SUBSIDENCE PUMPING STATIONS,VEHICLES-VEHICLE MAINTENANCE,DANVM DRAINAGE COMMISSION,0000213875,160.40
DEPARTMENT OF ENERGY AND CLIMATE CHANGE,THE COAL AUTHORITY,05/09/2014,SUB PUMP STTN MAINTENANCE-OTHR,SUBSIDENCE PUMPING STATIONS,PROF SER TMP STFF-TEMP WRKERS,DANVM DRAINAGE COMMISSION,0000213876,"5,504.31"
DEPARTMENT OF ENERGY AND CLIMATE CHANGE,THE COAL AUTHORITY,08/09/2014,SUB PUMP STTN MAINTENANCE-OTHR,SUBSIDENCE PUMPING STATIONS,PSPES NOT APPLICABLE,JEREMY BENN ASSOCIATES LT,0000213891,"1,708.34"
DEPARTMENT OF ENERGY AND CLIMATE CHANGE,THE COAL AUTHORITY,04/09/2014,SUB PUMP STTN MAINTENANCE-OTHR,SUBSIDENCE PUMPING STATIONS,"CONSTRUCTION-BLD,REPR&MAINTNCE",DANVM DRAINAGE COMMISSION,0000213907,415.39
DEPARTMENT OF ENERGY AND CLIMATE CHANGE,THE COAL AUTHORITY,04/09/2014,SUB PUMP STTN MAINTENANCE-OTHR,SUBSIDENCE PUMPING STATIONS,"CONSTRUCTION-BLD,REPR&MAINTNCE",DANVM DRAINAGE COMMISSION,0000213907,12.46
DEPARTMENT OF ENERGY AND CLIMATE CHANGE,THE COAL AUTHORITY,04/09/2014,SUB PUMP STTN MAINTENANCE-OTHR,SUBSIDENCE PUMPING STATIONS,"CONSTRUCTION-BLD,REPR&MAINTNCE",DANVM DRAINAGE COMMISSION,0000213907,37.40
DEPARTMENT OF ENERGY AND CLIMATE CHANGE,THE COAL AUTHORITY,04/09/2014,SUB PUMP STTN MAINTENANCE-OTHR,SUBSIDENCE PUMPING STATIONS,"CONSTRUCTION-BLD,REPR&MAINTNCE",DANVM DRAINAGE COMMISSION,0000213907,37.40
DEPARTMENT OF ENERGY AND CLIMATE CHANGE,THE COAL AUTHORITY,04/09/2014,SUB PUMP STTN MAINTENANCE-OTHR,SUBSIDENCE PUMPING STATIONS,"CONSTRUCTION-BLD,REPR&MAINTNCE",DANVM DRAINAGE COMMISSION,0000213907,37.39
DEPARTMENT OF ENERGY AND CLIMATE CHANGE,THE COAL AUTHORITY,04/09/2014,SUB PUMP STTN MAINTENANCE-OTHR,SUBSIDENCE PUMPING STATIONS,"CONSTRUCTION-BLD,REPR&MAINTNCE",DANVM DRAINAGE COMMISSION,0000213907,37.39
DEPARTMENT OF ENERGY AND CLIMATE CHANGE,THE COAL AUTHORITY,04/09/2014,SUB PUMP STTN MAINTENANCE-OTHR,SUBSIDENCE PUMPING STATIONS,"CONSTRUCTION-BLD,REPR&MAINTNCE",DANVM DRAINAGE COMMISSION,0000213907,28.05
DEPARTMENT OF ENERGY AND CLIMATE CHANGE,THE COAL AUTHORITY,04/09/2014,SUB PUMP STTN MAINTENANCE-OTHR,SUBSIDENCE PUMPING STATIONS,"CONSTRUCTION-BLD,REPR&MAINTNCE",DANVM DRAINAGE COMMISSION,0000213907,868.85
DEPARTMENT OF ENERGY AND CLIMATE CHANGE,THE COAL AUTHORITY,04/09/2014,SUB PUMP STTN MAINTENANCE-OTHR,SUBSIDENCE PUMPING STATIONS,"CONSTRUCTION-BLD,REPR&MAINTNCE",DANVM DRAINAGE COMMISSION,0000213907,37.40
DEPARTMENT OF ENERGY AND CLIMATE CHANGE,THE COAL AUTHORITY,04/09/2014,SUB PUMP STTN MAINTENANCE-OTHR,SUBSIDENCE PUMPING STATIONS,"CONSTRUCTION-BLD,REPR&MAINTNCE",DANVM DRAINAGE COMMISSION,0000213907,18.70
DEPARTMENT OF ENERGY AND CLIMATE CHANGE,THE COAL AUTHORITY,04/09/2014,SUB PUMP STTN MAINTENANCE-OTHR,SUBSIDENCE PUMPING STATIONS,"CONSTRUCTION-BLD,REPR&MAINTNCE",DANVM DRAINAGE COMMISSION,0000213907,37.40
DEPARTMENT OF ENERGY AND CLIMATE CHANGE,THE COAL AUTHORITY,04/09/2014,SUB PUMP STTN MAINTENANCE-OTHR,SUBSIDENCE PUMPING STATIONS,"CONSTRUCTION-BLD,REPR&MAINTNCE",DANVM DRAINAGE COMMISSION,0000213907,18.70
DEPARTMENT OF ENERGY AND CLIMATE CHANGE,THE COAL AUTHORITY,04/09/2014,SUB PUMP STTN MAINTENANCE-OTHR,SUBSIDENCE PUMPING STATIONS,"CONSTRUCTION-BLD,REPR&MAINTNCE",DANVM DRAINAGE COMMISSION,0000213907,249.40
DEPARTMENT OF ENERGY AND CLIMATE CHANGE,THE COAL AUTHORITY,04/09/2014,SUB PUMP STTN MAINTENANCE-OTHR,SUBSIDENCE PUMPING STATIONS,"CONSTRUCTION-BLD,REPR&MAINTNCE",DANVM DRAINAGE COMMISSION,0000213907,37.40
DEPARTMENT OF ENERGY AND CLIMATE CHANGE,THE COAL AUTHORITY,04/09/2014,SUB PUMP STTN MAINTENANCE-OTHR,SUBSIDENCE PUMPING STATIONS,"CONSTRUCTION-BLD,REPR&MAINTNCE",DANVM DRAINAGE COMMISSION,0000213907,37.39
DEPARTMENT OF ENERGY AND CLIMATE CHANGE,THE COAL AUTHORITY,04/09/2014,SUB PUMP STTN MAINTENANCE-OTHR,SUBSIDENCE PUMPING STATIONS,"CONSTRUCTION-BLD,REPR&MAINTNCE",DANVM DRAINAGE COMMISSION,0000213907,"4,614.93"
DEPARTMENT OF ENERGY AND CLIMATE CHANGE,THE COAL AUTHORITY,04/09/2014,SUB PUMP STTN MAINTENANCE-OTHR,SUBSIDENCE PUMPING STATIONS,"CONSTRUCTION-BLD,REPR&MAINTNCE",DANVM DRAINAGE COMMISSION,0000213907,"1,297.74"
DEPARTMENT OF ENERGY AND CLIMATE CHANGE,THE COAL AUTHORITY,04/09/2014,SUB PUMP STTN MAINTENANCE-OTHR,SUBSIDENCE PUMPING STATIONS,"CONSTRUCTION-BLD,REPR&MAINTNCE",DANVM DRAINAGE COMMISSION,0000213907,78.17
DEPARTMENT OF ENERGY AND CLIMATE CHANGE,THE COAL AUTHORITY,04/09/2014,SUB PUMP STTN MAINTENANCE-OTHR,SUBSIDENCE PUMPING STATIONS,"CONSTRUCTION-BLD,REPR&MAINTNCE",DANVM DRAINAGE COMMISSION,0000213907,13.15
DEPARTMENT OF ENERGY AND CLIMATE CHANGE,THE COAL AUTHORITY,04/09/2014,SUB PUMP STTN MAINTENANCE-OTHR,SUBSIDENCE PUMPING STATIONS,"CONSTRUCTION-BLD,REPR&MAINTNCE",DANVM DRAINAGE COMMISSION,0000213907,"4,081.39"
DEPARTMENT OF ENERGY AND CLIMATE CHANGE,THE COAL AUTHORITY,04/09/2014,SUB PUMP STTN MAINTENANCE-OTHR,SUBSIDENCE PUMPING STATIONS,"CONSTRUCTION-BLD,REPR&MAINTNCE",DANVM DRAINAGE COMMISSION,0000213907,37.39
DEPARTMENT OF ENERGY AND CLIMATE CHANGE,THE COAL AUTHORITY,04/09/2014,SUB PUMP STTN MAINTENANCE-OTHR,SUBSIDENCE PUMPING STATIONS,"CONSTRUCTION-BLD,REPR&MAINTNCE",DANVM DRAINAGE COMMISSION,0000213907,298.05
DEPARTMENT OF ENERGY AND CLIMATE CHANGE,THE COAL AUTHORITY,04/09/2014,SUB PUMP STTN MAINTENANCE-OTHR,SUBSIDENCE PUMPING STATIONS,"CONSTRUCTION-BLD,REPR&MAINTNCE",DANVM DRAINAGE COMMISSION,0000213907,37.39
DEPARTMENT OF ENERGY AND CLIMATE CHANGE,THE COAL AUTHORITY,04/09/2014,SUB PUMP STTN MAINTENANCE-OTHR,SUBSIDENCE PUMPING STATIONS,"CONSTRUCTION-BLD,REPR&MAINTNCE",DANVM DRAINAGE COMMISSION,0000213907,28.05
DEPARTMENT OF ENERGY AND CLIMATE CHANGE,THE COAL AUTHORITY,04/09/2014,SUB PUMP STTN MAINTENANCE-OTHR,SUBSIDENCE PUMPING STATIONS,"CONSTRUCTION-BLD,REPR&MAINTNCE",DANVM DRAINAGE COMMISSION,0000213907,33.10
DEPARTMENT OF ENERGY AND CLIMATE CHANGE,THE COAL AUTHORITY,04/09/2014,SUB PUMP STTN MAINTENANCE-OTHR,SUBSIDENCE PUMPING STATIONS,"CONSTRUCTION-BLD,REPR&MAINTNCE",DANVM DRAINAGE COMMISSION,0000213907,37.39
DEPARTMENT OF ENERGY AND CLIMATE CHANGE,THE COAL AUTHORITY,04/09/2014,SUB PUMP STTN MAINTENANCE-OTHR,SUBSIDENCE PUMPING STATIONS,"CONSTRUCTION-BLD,REPR&MAINTNCE",DANVM DRAINAGE COMMISSION,0000213907,37.39
DEPARTMENT OF ENERGY AND CLIMATE CHANGE,THE COAL AUTHORITY,04/09/2014,SUB PUMP STTN MAINTENANCE-OTHR,SUBSIDENCE PUMPING STATIONS,"CONSTRUCTION-BLD,REPR&MAINTNCE",DANVM DRAINAGE COMMISSION,0000213907,301.39
DEPARTMENT OF ENERGY AND CLIMATE CHANGE,THE COAL AUTHORITY,04/09/2014,SUB PUMP STTN MAINTENANCE-OTHR,SUBSIDENCE PUMPING STATIONS,"CONSTRUCTION-BLD,REPR&MAINTNCE",DANVM DRAINAGE COMMISSION,0000213907,37.39
DEPARTMENT OF ENERGY AND CLIMATE CHANGE,THE COAL AUTHORITY,04/09/2014,SUB PUMP STTN MAINTENANCE-OTHR,SUBSIDENCE PUMPING STATIONS,"CONSTRUCTION-BLD,REPR&MAINTNCE",DANVM DRAINAGE COMMISSION,0000213907,37.35
DEPARTMENT OF ENERGY AND CLIMATE CHANGE,THE COAL AUTHORITY,04/09/2014,SUB PUMP STTN MAINTENANCE-OTHR,SUBSIDENCE PUMPING STATIONS,ICT-TELECOMS,DANVM DRAINAGE COMMISSION,0000213907,176.91
DEPARTMENT OF ENERGY AND CLIMATE CHANGE,THE COAL AUTHORITY,04/09/2014,SUB PUMP STTN MAINTENANCE-OTHR,SUBSIDENCE PUMPING STATIONS,ICT-TELECOMS,DANVM DRAINAGE COMMISSION,0000213907,199.50
DEPARTMENT OF ENERGY AND CLIMATE CHANGE,THE COAL AUTHORITY,04/09/2014,SUB PUMP STTN MAINTENANCE-OTHR,SUBSIDENCE PUMPING STATIONS,ICT-TELECOMS,DANVM DRAINAGE COMMISSION,0000213907,199.50
DEPARTMENT OF ENERGY AND CLIMATE CHANGE,THE COAL AUTHORITY,04/09/2014,SUB PUMP STTN MAINTENANCE-OTHR,SUBSIDENCE PUMPING STATIONS,ICT-TELECOMS,DANVM DRAINAGE COMMISSION,0000213907,202.56
DEPARTMENT OF ENERGY AND CLIMATE CHANGE,THE COAL AUTHORITY,04/09/2014,SUB PUMP STTN MAINTENANCE-OTHR,SUBSIDENCE PUMPING STATIONS,ICT-TELECOMS,DANVM DRAINAGE COMMISSION,0000213907,199.50
DEPARTMENT OF ENERGY AND CLIMATE CHANGE,THE COAL AUTHORITY,04/09/2014,SUB PUMP STTN MAINTENANCE-OTHR,SUBSIDENCE PUMPING STATIONS,ICT-TELECOMS,DANVM DRAINAGE COMMISSION,0000213907,150.17
DEPARTMENT OF ENERGY AND CLIMATE CHANGE,THE COAL AUTHORITY,04/09/2014,SUB PUMP STTN MAINTENANCE-OTHR,SUBSIDENCE PUMPING STATIONS,ICT-TELECOMS,DANVM DRAINAGE COMMISSION,0000213907,200.92
DEPARTMENT OF ENERGY AND CLIMATE CHANGE,THE COAL AUTHORITY,04/09/2014,SUB PUMP STTN MAINTENANCE-OTHR,SUBSIDENCE PUMPING STATIONS,ICT-TELECOMS,DANVM DRAINAGE COMMISSION,0000213907,66.80
DEPARTMENT OF ENERGY AND CLIMATE CHANGE,THE COAL AUTHORITY,04/09/2014,SUB PUMP STTN MAINTENANCE-OTHR,SUBSIDENCE PUMPING STATIONS,ICT-TELECOMS,DANVM DRAINAGE COMMISSION,0000213907,200.92
DEPARTMENT OF ENERGY AND CLIMATE CHANGE,THE COAL AUTHORITY,04/09/2014,SUB PUMP STTN MAINTENANCE-OTHR,SUBSIDENCE PUMPING STATIONS,ICT-TELECOMS,DANVM DRAINAGE COMMISSION,0000213907,199.70
DEPARTMENT OF ENERGY AND CLIMATE CHANGE,THE COAL AUTHORITY,04/09/2014,SUB PUMP STTN MAINTENANCE-OTHR,SUBSIDENCE PUMPING STATIONS,ICT-TELECOMS,DANVM DRAINAGE COMMISSION,0000213907,200.52
DEPARTMENT OF ENERGY AND CLIMATE CHANGE,THE COAL AUTHORITY,04/09/2014,SUB PUMP STTN MAINTENANCE-OTHR,SUBSIDENCE PUMPING STATIONS,ICT-TELECOMS,DANVM DRAINAGE COMMISSION,0000213907,200.72
DEPARTMENT OF ENERGY AND CLIMATE CHANGE,THE COAL AUTHORITY,04/09/2014,SUB PUMP STTN MAINTENANCE-OTHR,SUBSIDENCE PUMPING STATIONS,ICT-TELECOMS,DANVM DRAINAGE COMMISSION,0000213907,540.50
DEPARTMENT OF ENERGY AND CLIMATE CHANGE,THE COAL AUTHORITY,04/09/2014,SUB PUMP STTN MAINTENANCE-OTHR,SUBSIDENCE PUMPING STATIONS,ICT-TELECOMS,DANVM DRAINAGE COMMISSION,0000213907,201.33
DEPARTMENT OF ENERGY AND CLIMATE CHANGE,THE COAL AUTHORITY,04/09/2014,SUB PUMP STTN MAINTENANCE-OTHR,SUBSIDENCE PUMPING STATIONS,ICT-TELECOMS,DANVM DRAINAGE COMMISSION,0000213907,199.60
DEPARTMENT OF ENERGY AND CLIMATE CHANGE,THE COAL AUTHORITY,04/09/2014,SUB PUMP STTN MAINTENANCE-OTHR,SUBSIDENCE PUMPING STATIONS,ICT-TELECOMS,DANVM DRAINAGE COMMISSION,0000213907,202.14
DEPARTMENT OF ENERGY AND CLIMATE CHANGE,THE COAL AUTHORITY,04/09/2014,SUB PUMP STTN MAINTENANCE-OTHR,SUBSIDENCE PUMPING STATIONS,ICT-TELECOMS,DANVM DRAINAGE COMMISSION,0000213907,201.02
DEPARTMENT OF ENERGY AND CLIMATE CHANGE,THE COAL AUTHORITY,04/09/2014,SUB PUMP STTN MAINTENANCE-OTHR,SUBSIDENCE PUMPING STATIONS,ICT-TELECOMS,DANVM DRAINAGE COMMISSION,0000213907,193.95
DEPARTMENT OF ENERGY AND CLIMATE CHANGE,THE COAL AUTHORITY,04/09/2014,SUB PUMP STTN MAINTENANCE-OTHR,SUBSIDENCE PUMPING STATIONS,ICT-TELECOMS,DANVM DRAINAGE COMMISSION,0000213907,200.10
DEPARTMENT OF ENERGY AND CLIMATE CHANGE,THE COAL AUTHORITY,04/09/2014,SUB PUMP STTN MAINTENANCE-OTHR,SUBSIDENCE PUMPING STATIONS,ICT-TELECOMS,DANVM DRAINAGE COMMISSION,0000213907,150.39
DEPARTMENT OF ENERGY AND CLIMATE CHANGE,THE COAL AUTHORITY,04/09/2014,SUB PUMP STTN MAINTENANCE-OTHR,SUBSIDENCE PUMPING STATIONS,ICT-TELECOMS,DANVM DRAINAGE COMMISSION,0000213907,150.40
DEPARTMENT OF ENERGY AND CLIMATE CHANGE,THE COAL AUTHORITY,04/09/2014,SUB PUMP STTN MAINTENANCE-OTHR,SUBSIDENCE PUMPING STATIONS,ICT-TELECOMS,DANVM DRAINAGE COMMISSION,0000213907,200.72
DEPARTMENT OF ENERGY AND CLIMATE CHANGE,THE COAL AUTHORITY,04/09/2014,SUB PUMP STTN MAINTENANCE-OTHR,SUBSIDENCE PUMPING STATIONS,ICT-TELECOMS,DANVM DRAINAGE COMMISSION,0000213907,199.50
DEPARTMENT OF ENERGY AND CLIMATE CHANGE,THE COAL AUTHORITY,04/09/2014,SUB PUMP STTN MAINTENANCE-OTHR,SUBSIDENCE PUMPING STATIONS,ICT-TELECOMS,DANVM DRAINAGE COMMISSION,0000213907,102.50
DEPARTMENT OF ENERGY AND CLIMATE CHANGE,THE COAL AUTHORITY,04/09/2014,SUB PUMP STTN MAINTENANCE-OTHR,SUBSIDENCE PUMPING STATIONS,ICT-TELECOMS,DANVM DRAINAGE COMMISSION,0000213907,100.46
DEPARTMENT OF ENERGY AND CLIMATE CHANGE,THE COAL AUTHORITY,04/09/2014,SUB PUMP STTN MAINTENANCE-OTHR,SUBSIDENCE PUMPING STATIONS,ICT-TELECOMS,DANVM DRAINAGE COMMISSION,0000213907,201.12
DEPARTMENT OF ENERGY AND CLIMATE CHANGE,THE COAL AUTHORITY,04/09/2014,SUB PUMP STTN MAINTENANCE-OTHR,SUBSIDENCE PUMPING STATIONS,ENERGY&UTILITIES-WATER,DANVM DRAINAGE COMMISSION,0000213907,"1,081.00"
DEPARTMENT OF ENERGY AND CLIMATE CHANGE,THE COAL AUTHORITY,04/09/2014,SUB PUMP STTN MAINTENANCE-OTHR,SUBSIDENCE PUMPING STATIONS,PROF SER FNCL-INSURANCE SRVCE,DANVM DRAINAGE COMMISSION,0000213907,208.29
DEPARTMENT OF ENERGY AND CLIMATE CHANGE,THE COAL AUTHORITY,04/09/2014,SUB PUMP STTN MAINTENANCE-OTHR,SUBSIDENCE PUMPING STATIONS,PROF SER FNCL-INSURANCE SRVCE,DANVM DRAINAGE COMMISSION,0000213907,176.52
DEPARTMENT OF ENERGY AND CLIMATE CHANGE,THE COAL AUTHORITY,04/09/2014,SUB PUMP STTN MAINTENANCE-OTHR,SUBSIDENCE PUMPING STATIONS,PROF SER FNCL-INSURANCE SRVCE,DANVM DRAINAGE COMMISSION,0000213907,117.69
DEPARTMENT OF ENERGY AND CLIMATE CHANGE,THE COAL AUTHORITY,04/09/2014,SUB PUMP STTN MAINTENANCE-OTHR,SUBSIDENCE PUMPING STATIONS,PROF SER FNCL-INSURANCE SRVCE,DANVM DRAINAGE COMMISSION,0000213907,117.69
DEPARTMENT OF ENERGY AND CLIMATE CHANGE,THE COAL AUTHORITY,04/09/2014,SUB PUMP STTN MAINTENANCE-OTHR,SUBSIDENCE PUMPING STATIONS,PROF SER FNCL-INSURANCE SRVCE,DANVM DRAINAGE COMMISSION,0000213907,176.52
DEPARTMENT OF ENERGY AND CLIMATE CHANGE,THE COAL AUTHORITY,04/09/2014,SUB PUMP STTN MAINTENANCE-OTHR,SUBSIDENCE PUMPING STATIONS,PROF SER FNCL-INSURANCE SRVCE,DANVM DRAINAGE COMMISSION,0000213907,176.52
DEPARTMENT OF ENERGY AND CLIMATE CHANGE,THE COAL AUTHORITY,04/09/2014,SUB PUMP STTN MAINTENANCE-OTHR,SUBSIDENCE PUMPING STATIONS,PROF SER FNCL-INSURANCE SRVCE,DANVM DRAINAGE COMMISSION,0000213907,78.45
DEPARTMENT OF ENERGY AND CLIMATE CHANGE,THE COAL AUTHORITY,12/09/2014,SUB PUMP STTN MAINTENANCE-OTHR,SUBSIDENCE PUMPING STATIONS,PSPES NOT APPLICABLE,JEREMY BENN ASSOCIATES LT,0000214013,"5,848.14"
DEPARTMENT OF ENERGY AND CLIMATE CHANGE,THE COAL AUTHORITY,12/09/2014,SUB PUMP STTN MAINTENANCE-OTHR,SUBSIDENCE PUMPING STATIONS,CONSTRUCTION-MAIN CONTRACTORS,INTEGRATED WATER SERVICES,0000214030,4.69
DEPARTMENT OF ENERGY AND CLIMATE CHANGE,THE COAL AUTHORITY,12/09/2014,SUB PUMP STTN MAINTENANCE-OTHR,SUBSIDENCE PUMPING STATIONS,CONSTRUCTION-MAIN CONTRACTORS,INTEGRATED WATER SERVICES,0000214030,"24,217.37"
DEPARTMENT OF ENERGY AND CLIMATE CHANGE,THE COAL AUTHORITY,12/09/2014,SUB PUMP STTN MAINTENANCE-OTHR,SUBSIDENCE PUMPING STATIONS,CONSTRUCTION-MAIN CONTRACTORS,INTEGRATED WATER SERVICES,0000214030,373.54
DEPARTMENT OF ENERGY AND CLIMATE CHANGE,THE COAL AUTHORITY,04/08/2014,SUB PUMP STTN MAINTENANCE-PWER,SUBSIDENCE PUMPING STATIONS,ENERGY&UTILITIES-ELECTRICITY,STARK SOFTWARE INT LIMITE,0000213310,117.18
DEPARTMENT OF ENERGY AND CLIMATE CHANGE,THE COAL AUTHORITY,15/08/2014,SUB PUMP STTN MAINTENANCE-PWER,SUBSIDENCE PUMPING STATIONS,ENERGY&UTILITIES-ELECTRICITY,BRITISH GAS BUSINESS,0000213622,513.31
DEPARTMENT OF ENERGY AND CLIMATE CHANGE,THE COAL AUTHORITY,22/03/2014,SUB PUMP STTN MAINTENANCE-PWER,SUBSIDENCE PUMPING STATIONS,ENERGY&UTILITIES-ELECTRICITY,BLACK DRAIN DRAINAGE BOAR,0000213649,290.80
DEPARTMENT OF ENERGY AND CLIMATE CHANGE,THE COAL AUTHORITY,19/08/2014,SUB PUMP STTN MAINTENANCE-PWER,SUBSIDENCE PUMPING STATIONS,"CONSTRUCTION-BLD,REPR&MAINTNCE",SELBY AREA INTERNAL DRAIN,0000213762,568.90
DEPARTMENT OF ENERGY AND CLIMATE CHANGE,THE COAL AUTHORITY,19/08/2014,SUB PUMP STTN MAINTENANCE-PWER,SUBSIDENCE PUMPING STATIONS,ICT-TELECOMS,SELBY AREA INTERNAL DRAIN,0000213763,22.50
DEPARTMENT OF ENERGY AND CLIMATE CHANGE,THE COAL AUTHORITY,19/08/2014,SUB PUMP STTN MAINTENANCE-PWER,SUBSIDENCE PUMPING STATIONS,ENERGY&UTILITIES-ELECTRICITY,SELBY AREA INTERNAL DRAIN,0000213763,"1,368.12"
DEPARTMENT OF ENERGY AND CLIMATE CHANGE,THE COAL AUTHORITY,19/08/2014,SUB PUMP STTN MAINTENANCE-PWER,SUBSIDENCE PUMPING STATIONS,ENERGY&UTILITIES-ELECTRICITY,SELBY AREA INTERNAL DRAIN,0000213765,"2,125.48"
DEPARTMENT OF ENERGY AND CLIMATE CHANGE,THE COAL AUTHORITY,04/09/2014,SUB PUMP STTN MAINTENANCE-PWER,SUBSIDENCE PUMPING STATIONS,ENERGY&UTILITIES-ELECTRICITY,DANVM DRAINAGE COMMISSION,0000213907,102.16
DEPARTMENT OF ENERGY AND CLIMATE CHANGE,THE COAL AUTHORITY,04/09/2014,SUB PUMP STTN MAINTENANCE-PWER,SUBSIDENCE PUMPING STATIONS,ENERGY&UTILITIES-ELECTRICITY,DANVM DRAINAGE COMMISSION,0000213907,"1,911.69"
DEPARTMENT OF ENERGY AND CLIMATE CHANGE,THE COAL AUTHORITY,04/09/2014,SUB PUMP STTN MAINTENANCE-PWER,SUBSIDENCE PUMPING STATIONS,ENERGY&UTILITIES-ELECTRICITY,DANVM DRAINAGE COMMISSION,0000213907,175.83
DEPARTMENT OF ENERGY AND CLIMATE CHANGE,THE COAL AUTHORITY,04/09/2014,SUB PUMP STTN MAINTENANCE-PWER,SUBSIDENCE PUMPING STATIONS,ENERGY&UTILITIES-ELECTRICITY,DANVM DRAINAGE COMMISSION,0000213907,249.44
DEPARTMENT OF ENERGY AND CLIMATE CHANGE,THE COAL AUTHORITY,04/09/2014,SUB PUMP STTN MAINTENANCE-PWER,SUBSIDENCE PUMPING STATIONS,ENERGY&UTILITIES-ELECTRICITY,DANVM DRAINAGE COMMISSION,0000213907,602.79
DEPARTMENT OF ENERGY AND CLIMATE CHANGE,THE COAL AUTHORITY,04/09/2014,SUB PUMP STTN MAINTENANCE-PWER,SUBSIDENCE PUMPING STATIONS,ENERGY&UTILITIES-ELECTRICITY,DANVM DRAINAGE COMMISSION,0000213907,84.30
DEPARTMENT OF ENERGY AND CLIMATE CHANGE,THE COAL AUTHORITY,04/09/2014,SUB PUMP STTN MAINTENANCE-PWER,SUBSIDENCE PUMPING STATIONS,ENERGY&UTILITIES-ELECTRICITY,DANVM DRAINAGE COMMISSION,0000213907,"1,100.72"
DEPARTMENT OF ENERGY AND CLIMATE CHANGE,THE COAL AUTHORITY,04/09/2014,SUB PUMP STTN MAINTENANCE-PWER,SUBSIDENCE PUMPING STATIONS,ENERGY&UTILITIES-ELECTRICITY,DANVM DRAINAGE COMMISSION,0000213907,247.79
DEPARTMENT OF ENERGY AND CLIMATE CHANGE,THE COAL AUTHORITY,04/09/2014,SUB PUMP STTN MAINTENANCE-PWER,SUBSIDENCE PUMPING STATIONS,ENERGY&UTILITIES-ELECTRICITY,DANVM DRAINAGE COMMISSION,0000213907,186.69
DEPARTMENT OF ENERGY AND CLIMATE CHANGE,THE COAL AUTHORITY,04/09/2014,SUB PUMP STTN MAINTENANCE-PWER,SUBSIDENCE PUMPING STATIONS,ENERGY&UTILITIES-ELECTRICITY,DANVM DRAINAGE COMMISSION,0000213907,195.06
DEPARTMENT OF ENERGY AND CLIMATE CHANGE,THE COAL AUTHORITY,04/09/2014,SUB PUMP STTN MAINTENANCE-PWER,SUBSIDENCE PUMPING STATIONS,ENERGY&UTILITIES-ELECTRICITY,DANVM DRAINAGE COMMISSION,0000213907,443.40
DEPARTMENT OF ENERGY AND CLIMATE CHANGE,THE COAL AUTHORITY,04/09/2014,SUB PUMP STTN MAINTENANCE-PWER,SUBSIDENCE PUMPING STATIONS,ENERGY&UTILITIES-ELECTRICITY,DANVM DRAINAGE COMMISSION,0000213907,607.88
DEPARTMENT OF ENERGY AND CLIMATE CHANGE,THE COAL AUTHORITY,04/09/2014,SUB PUMP STTN MAINTENANCE-PWER,SUBSIDENCE PUMPING STATIONS,ENERGY&UTILITIES-ELECTRICITY,DANVM DRAINAGE COMMISSION,0000213907,511.27
DEPARTMENT OF ENERGY AND CLIMATE CHANGE,THE COAL AUTHORITY,04/09/2014,SUB PUMP STTN MAINTENANCE-PWER,SUBSIDENCE PUMPING STATIONS,ENERGY&UTILITIES-ELECTRICITY,DANVM DRAINAGE COMMISSION,0000213907,"2,099.78"
DEPARTMENT OF ENERGY AND CLIMATE CHANGE,THE COAL AUTHORITY,04/09/2014,SUB PUMP STTN MAINTENANCE-PWER,SUBSIDENCE PUMPING STATIONS,ENERGY&UTILITIES-ELECTRICITY,DANVM DRAINAGE COMMISSION,0000213907,960.96
DEPARTMENT OF ENERGY AND CLIMATE CHANGE,THE COAL AUTHORITY,05/09/2014,SUB PUMP STTN MAINTENANCE-PWER,SUBSIDENCE PUMPING STATIONS,ENERGY&UTILITIES-ELECTRICITY,BRITISH GAS BUSINESS,0000213933,31.11
DEPARTMENT OF ENERGY AND CLIMATE CHANGE,THE COAL AUTHORITY,05/09/2014,SUB PUMP STTN MAINTENANCE-PWER,SUBSIDENCE PUMPING STATIONS,ENERGY&UTILITIES-ELECTRICITY,BRITISH GAS BUSINESS,0000213934,28.28
DEPARTMENT OF ENERGY AND CLIMATE CHANGE,THE COAL AUTHORITY,05/09/2014,SUB PUMP STTN MAINTENANCE-PWER,SUBSIDENCE PUMPING STATIONS,ENERGY&UTILITIES-ELECTRICITY,BRITISH GAS BUSINESS,0000213935,47.87
DEPARTMENT OF ENERGY AND CLIMATE CHANGE,THE COAL AUTHORITY,05/09/2014,SUB PUMP STTN MAINTENANCE-PWER,SUBSIDENCE PUMPING STATIONS,ENERGY&UTILITIES-ELECTRICITY,BRITISH GAS BUSINESS,0000213936,15.62
DEPARTMENT OF ENERGY AND CLIMATE CHANGE,THE COAL AUTHORITY,05/09/2014,SUB PUMP STTN MAINTENANCE-PWER,SUBSIDENCE PUMPING STATIONS,ENERGY&UTILITIES-ELECTRICITY,BRITISH GAS BUSINESS,0000213937,41.36
DEPARTMENT OF ENERGY AND CLIMATE CHANGE,THE COAL AUTHORITY,05/09/2014,SUB PUMP STTN MAINTENANCE-PWER,SUBSIDENCE PUMPING STATIONS,ENERGY&UTILITIES-ELECTRICITY,BRITISH GAS BUSINESS,0000213938,61.32
DEPARTMENT OF ENERGY AND CLIMATE CHANGE,THE COAL AUTHORITY,05/09/2014,SUB PUMP STTN MAINTENANCE-PWER,SUBSIDENCE PUMPING STATIONS,ENERGY&UTILITIES-ELECTRICITY,BRITISH GAS BUSINESS,0000213939,49.48
DEPARTMENT OF ENERGY AND CLIMATE CHANGE,THE COAL AUTHORITY,10/09/2014,SUB PUMP STTN MAINTENANCE-PWER,SUBSIDENCE PUMPING STATIONS,ENERGY&UTILITIES-ELECTRICITY,EDF ENERGY,0000213983,"1,592.56"
DEPARTMENT OF ENERGY AND CLIMATE CHANGE,THE COAL AUTHORITY,10/09/2014,SUB PUMP STTN MAINTENANCE-PWER,SUBSIDENCE PUMPING STATIONS,ENERGY&UTILITIES-ELECTRICITY,EDF ENERGY,0000213983,785.64
DEPARTMENT OF ENERGY AND CLIMATE CHANGE,THE COAL AUTHORITY,10/09/2014,SUB PUMP STTN MAINTENANCE-PWER,SUBSIDENCE PUMPING STATIONS,ENERGY&UTILITIES-ELECTRICITY,EDF ENERGY,0000213983,321.18
DEPARTMENT OF ENERGY AND CLIMATE CHANGE,THE COAL AUTHORITY,10/09/2014,SUB PUMP STTN MAINTENANCE-PWER,SUBSIDENCE PUMPING STATIONS,ENERGY&UTILITIES-ELECTRICITY,EDF ENERGY,0000213983,"1,432.19"
DEPARTMENT OF ENERGY AND CLIMATE CHANGE,THE COAL AUTHORITY,31/03/2014,SUB PUMP STTN MAINTENANCE-PWER,SUBSIDENCE PUMPING STATIONS,ENERGY&UTILITIES-ELECTRICITY,BLACK DRAIN DRAINAGE BOAR,0000214035,679.68
DEPARTMENT OF ENERGY AND CLIMATE CHANGE,THE COAL AUTHORITY,05/09/2014,SUB PUMP STTN MAINTENANCE-PWER,SUBSIDENCE PUMPING STATIONS,ENERGY&UTILITIES-ELECTRICITY,BRITISH GAS BUSINESS,0000214095,108.25
DEPARTMENT OF ENERGY AND CLIMATE CHANGE,THE COAL AUTHORITY,05/09/2014,SUB PUMP STTN MAINTENANCE-PWER,SUBSIDENCE PUMPING STATIONS,ENERGY&UTILITIES-ELECTRICITY,BRITISH GAS BUSINESS,0000214096,187.98
DEPARTMENT OF ENERGY AND CLIMATE CHANGE,THE COAL AUTHORITY,05/09/2014,SUB PUMP STTN MAINTENANCE-PWER,SUBSIDENCE PUMPING STATIONS,ENERGY&UTILITIES-ELECTRICITY,BRITISH GAS BUSINESS,0000214097,394.43
DEPARTMENT OF ENERGY AND CLIMATE CHANGE,THE COAL AUTHORITY,05/09/2014,SUB PUMP STTN MAINTENANCE-PWER,SUBSIDENCE PUMPING STATIONS,ENERGY&UTILITIES-ELECTRICITY,BRITISH GAS BUSINESS,0000214098,48.18
DEPARTMENT OF ENERGY AND CLIMATE CHANGE,THE COAL AUTHORITY,05/09/2014,SUB PUMP STTN MAINTENANCE-PWER,SUBSIDENCE PUMPING STATIONS,ENERGY&UTILITIES-ELECTRICITY,BRITISH GAS BUSINESS,0000214099,43.01
DEPARTMENT OF ENERGY AND CLIMATE CHANGE,THE COAL AUTHORITY,05/09/2014,SUB PUMP STTN MAINTENANCE-PWER,SUBSIDENCE PUMPING STATIONS,ENERGY&UTILITIES-ELECTRICITY,BRITISH GAS BUSINESS,0000214100,499.43
DEPARTMENT OF ENERGY AND CLIMATE CHANGE,THE COAL AUTHORITY,05/09/2014,SUB PUMP STTN MAINTENANCE-PWER,SUBSIDENCE PUMPING STATIONS,ENERGY&UTILITIES-ELECTRICITY,BRITISH GAS BUSINESS,0000214101,827.23
DEPARTMENT OF ENERGY AND CLIMATE CHANGE,THE COAL AUTHORITY,05/09/2014,SUB PUMP STTN MAINTENANCE-PWER,SUBSIDENCE PUMPING STATIONS,ENERGY&UTILITIES-ELECTRICITY,BRITISH GAS BUSINESS,0000214102,105.02
DEPARTMENT OF ENERGY AND CLIMATE CHANGE,THE COAL AUTHORITY,05/09/2014,SUB PUMP STTN MAINTENANCE-PWER,SUBSIDENCE PUMPING STATIONS,ENERGY&UTILITIES-ELECTRICITY,BRITISH GAS BUSINESS,0000214103,436.85
DEPARTMENT OF ENERGY AND CLIMATE CHANGE,THE COAL AUTHORITY,05/09/2014,SUB PUMP STTN MAINTENANCE-PWER,SUBSIDENCE PUMPING STATIONS,ENERGY&UTILITIES-ELECTRICITY,BRITISH GAS BUSINESS,0000214104,12.54
DEPARTMENT OF ENERGY AND CLIMATE CHANGE,THE COAL AUTHORITY,05/09/2014,SUB PUMP STTN MAINTENANCE-PWER,SUBSIDENCE PUMPING STATIONS,ENERGY&UTILITIES-ELECTRICITY,BRITISH GAS BUSINESS,0000214105,168.67
DEPARTMENT OF ENERGY AND CLIMATE CHANGE,THE COAL AUTHORITY,05/09/2014,SUB PUMP STTN MAINTENANCE-PWER,SUBSIDENCE PUMPING STATIONS,ENERGY&UTILITIES-ELECTRICITY,BRITISH GAS BUSINESS,0000214106,80.41
DEPARTMENT OF ENERGY AND CLIMATE CHANGE,THE COAL AUTHORITY,05/09/2014,SUB PUMP STTN MAINTENANCE-PWER,SUBSIDENCE PUMPING STATIONS,ENERGY&UTILITIES-ELECTRICITY,BRITISH GAS BUSINESS,0000214107,25.67
DEPARTMENT OF ENERGY AND CLIMATE CHANGE,THE COAL AUTHORITY,05/09/2014,SUB PUMP STTN MAINTENANCE-PWER,SUBSIDENCE PUMPING STATIONS,ENERGY&UTILITIES-ELECTRICITY,BRITISH GAS BUSINESS,0000214108,106.09
DEPARTMENT OF ENERGY AND CLIMATE CHANGE,THE COAL AUTHORITY,05/09/2014,SUB PUMP STTN MAINTENANCE-PWER,SUBSIDENCE PUMPING STATIONS,ENERGY&UTILITIES-ELECTRICITY,BRITISH GAS BUSINESS,0000214109,67.62
DEPARTMENT OF ENERGY AND CLIMATE CHANGE,THE COAL AUTHORITY,05/09/2014,SUB PUMP STTN MAINTENANCE-PWER,SUBSIDENCE PUMPING STATIONS,ENERGY&UTILITIES-ELECTRICITY,BRITISH GAS BUSINESS,0000214110,32.62
DEPARTMENT OF ENERGY AND CLIMATE CHANGE,THE COAL AUTHORITY,20/08/2014,CAR HIRE,SURFACE HAZARDS,TRAVEL&EVENTS-VEHICLE HIRE,ENTERPRISE RENT A CAR,0000213723,469.22
DEPARTMENT OF ENERGY AND CLIMATE CHANGE,THE COAL AUTHORITY,14/08/2014,CAR HIRE,SURFACE HAZARDS,TRAVEL&EVENTS-VEHICLE HIRE,ENTERPRISE RENT A CAR,0000213975,"1,405.84"
DEPARTMENT OF ENERGY AND CLIMATE CHANGE,THE COAL AUTHORITY,11/09/2014,CAR HIRE,SURFACE HAZARDS,TRAVEL&EVENTS-VEHICLE HIRE,ENTERPRISE RENT A CAR,0000214001,208.57
DEPARTMENT OF ENERGY AND CLIMATE CHANGE,THE COAL AUTHORITY,23/08/2014,CAR HIRE,SURFACE HAZARDS,TRAVEL&EVENTS-VEHICLE HIRE,ENTERPRISE RENT A CAR,0000214070,401.29
DEPARTMENT OF ENERGY AND CLIMATE CHANGE,THE COAL AUTHORITY,12/08/2014,CENTRAL TRAINING BUDGET,SURFACE HAZARDS,PROF SER LRNG&DEV-STAFF TRNING,RISK & SAFETY MANAGEMENT,0000213522,874.00
DEPARTMENT OF ENERGY AND CLIMATE CHANGE,THE COAL AUTHORITY,01/09/2014,CHILDCARE VOUCHERS,SURFACE HAZARDS,PERSONNEL RLTD-STAFF CHILDCARE,FIDELITI LIMITED,0000213721,50.00
DEPARTMENT OF ENERGY AND CLIMATE CHANGE,THE COAL AUTHORITY,01/09/2014,CHILDCARE VOUCHERS,SURFACE HAZARDS,PERSONNEL RLTD-STAFF CHILDCARE,FIDELITI LIMITED,0000213721,303.00
DEPARTMENT OF ENERGY AND CLIMATE CHANGE,THE COAL AUTHORITY,01/09/2014,CHILDCARE VOUCHERS,SURFACE HAZARDS,PERSONNEL RLTD-STAFF CHILDCARE,FIDELITI LIMITED,0000213721,10.00
DEPARTMENT OF ENERGY AND CLIMATE CHANGE,THE COAL AUTHORITY,16/07/2014,CONTRACT HIRE VEHICLES,SURFACE HAZARDS,VEHICLES-LEASE,LEX AUTOLEASE LTD,0000212613,"6,158.20"
DEPARTMENT OF ENERGY AND CLIMATE CHANGE,THE COAL AUTHORITY,02/06/2014,CONTRACT HIRE VEHICLES,SURFACE HAZARDS,VEHICLES-VEHICLE MAINTENANCE,ALPHABET (UK) FLEET MAN L,0000213442,-5.00
DEPARTMENT OF ENERGY AND CLIMATE CHANGE,THE COAL AUTHORITY,28/08/2014,CONTRACT HIRE VEHICLES,SURFACE HAZARDS,VEHICLES-LEASE,LEX AUTOLEASE LTD,0000213737,"-6,158.20"
DEPARTMENT OF ENERGY AND CLIMATE CHANGE,THE COAL AUTHORITY,29/08/2014,CONTRACT HIRE VEHICLES,SURFACE HAZARDS,VEHICLES-LEASE,LEX AUTOLEASE LTD,0000213738,"5,188.68"
DEPARTMENT OF ENERGY AND CLIMATE CHANGE,THE COAL AUTHORITY,01/09/2014,CONTRACT HIRE VEHICLES,SURFACE HAZARDS,VEHICLES-LEASE,ALPHABET (UK) FLEET MAN L,0000213819,"7,059.19"
DEPARTMENT OF ENERGY AND CLIMATE CHANGE,THE COAL AUTHORITY,08/09/2014,CONTRACT HIRE VEHICLES,SURFACE HAZARDS,VEHICLES-VEHICLE MAINTENANCE,COMPANY BARCLAYCARD,0000214044,16.63
DEPARTMENT OF ENERGY AND CLIMATE CHANGE,THE COAL AUTHORITY,08/09/2014,CONTRACT HIRE VEHICLES,SURFACE HAZARDS,FUELS/LUBRCNT/GAS-LUBRICNT/OIL,COMPANY BARCLAYCARD,0000214055,6.66
DEPARTMENT OF ENERGY AND CLIMATE CHANGE,THE COAL AUTHORITY,08/09/2014,CONTRACT HIRE VEHICLES,SURFACE HAZARDS,VEHICLES-VEHICLE MAINTENANCE,COMPANY BARCLAYCARD,0000214140,2.49
DEPARTMENT OF ENERGY AND CLIMATE CHANGE,THE COAL AUTHORITY,31/07/2014,CONTRACTORS AND CLAIM COSTS,SURFACE HAZARDS,CONSTRUCTION-CNSTRN SER PROVDR,STUDIO-G ARCHITECTURE LLP,0000213337,"1,950.00"
DEPARTMENT OF ENERGY AND CLIMATE CHANGE,THE COAL AUTHORITY,13/08/2014,CONTRACTORS AND CLAIM COSTS,SURFACE HAZARDS,CONSTRUCTION-MAIN CONTRACTORS,JIM DAVIES CIVIL ENGINEER,0000213346,"2,605.71"
DEPARTMENT OF ENERGY AND CLIMATE CHANGE,THE COAL AUTHORITY,06/08/2014,CONTRACTORS AND CLAIM COSTS,SURFACE HAZARDS,PROF SER TECH-FORENSIC/LAB SER,ENVIRONMENTAL SCIENTIFICS,0000213474,35.00
DEPARTMENT OF ENERGY AND CLIMATE CHANGE,THE COAL AUTHORITY,27/08/2014,CONTRACTORS AND CLAIM COSTS,SURFACE HAZARDS,CONSTRUCTION-MAIN CONTRACTORS,ALLIANCE CONSTRUCTION SOL,0000213550,576.45
DEPARTMENT OF ENERGY AND CLIMATE CHANGE,THE COAL AUTHORITY,27/08/2014,CONTRACTORS AND CLAIM COSTS,SURFACE HAZARDS,CONSTRUCTION-MAIN CONTRACTORS,ALLIANCE CONSTRUCTION SOL,0000213551,"1,294.34"
DEPARTMENT OF ENERGY AND CLIMATE CHANGE,THE COAL AUTHORITY,27/08/2014,CONTRACTORS AND CLAIM COSTS,SURFACE HAZARDS,CONSTRUCTION-MAIN CONTRACTORS,ALLIANCE CONSTRUCTION SOL,0000213552,459.00
DEPARTMENT OF ENERGY AND CLIMATE CHANGE,THE COAL AUTHORITY,27/08/2014,CONTRACTORS AND CLAIM COSTS,SURFACE HAZARDS,CONSTRUCTION-MAIN CONTRACTORS,ALLIANCE CONSTRUCTION SOL,0000213553,65.70
DEPARTMENT OF ENERGY AND CLIMATE CHANGE,THE COAL AUTHORITY,27/08/2014,CONTRACTORS AND CLAIM COSTS,SURFACE HAZARDS,CONSTRUCTION-MAIN CONTRACTORS,ALLIANCE CONSTRUCTION SOL,0000213555,78.80
DEPARTMENT OF ENERGY AND CLIMATE CHANGE,THE COAL AUTHORITY,27/08/2014,CONTRACTORS AND CLAIM COSTS,SURFACE HAZARDS,CONSTRUCTION-MAIN CONTRACTORS,ALLIANCE CONSTRUCTION SOL,0000213562,957.00
DEPARTMENT OF ENERGY AND CLIMATE CHANGE,THE COAL AUTHORITY,27/08/2014,CONTRACTORS AND CLAIM COSTS,SURFACE HAZARDS,CONSTRUCTION-MAIN CONTRACTORS,ALLIANCE CONSTRUCTION SOL,0000213563,"1,603.97"
DEPARTMENT OF ENERGY AND CLIMATE CHANGE,THE COAL AUTHORITY,27/08/2014,CONTRACTORS AND CLAIM COSTS,SURFACE HAZARDS,CONSTRUCTION-MAIN CONTRACTORS,ALLIANCE CONSTRUCTION SOL,0000213582,576.45
DEPARTMENT OF ENERGY AND CLIMATE CHANGE,THE COAL AUTHORITY,28/08/2014,CONTRACTORS AND CLAIM COSTS,SURFACE HAZARDS,CONSTRUCTION-CNSTRN SER PROVDR,CORNERSTONE  PROJECTS LTD,0000213599,148.00
DEPARTMENT OF ENERGY AND CLIMATE CHANGE,THE COAL AUTHORITY,28/08/2014,CONTRACTORS AND CLAIM COSTS,SURFACE HAZARDS,CONSTRUCTION-CNSTRN SER PROVDR,CORNERSTONE  PROJECTS LTD,0000213601,126.50
DEPARTMENT OF ENERGY AND CLIMATE CHANGE,THE COAL AUTHORITY,28/08/2014,CONTRACTORS AND CLAIM COSTS,SURFACE HAZARDS,CONSTRUCTION-CNSTRN SER PROVDR,CORNERSTONE  PROJECTS LTD,0000213602,143.00
DEPARTMENT OF ENERGY AND CLIMATE CHANGE,THE COAL AUTHORITY,28/08/2014,CONTRACTORS AND CLAIM COSTS,SURFACE HAZARDS,CONSTRUCTION-CNSTRN SER PROVDR,CORNERSTONE  PROJECTS LTD,0000213603,78.00
DEPARTMENT OF ENERGY AND CLIMATE CHANGE,THE COAL AUTHORITY,28/08/2014,CONTRACTORS AND CLAIM COSTS,SURFACE HAZARDS,CONSTRUCTION-CNSTRN SER PROVDR,CORNERSTONE  PROJECTS LTD,0000213604,98.00
DEPARTMENT OF ENERGY AND CLIMATE CHANGE,THE COAL AUTHORITY,29/08/2014,CONTRACTORS AND CLAIM COSTS,SURFACE HAZARDS,"CONSTRUCTION-BLD,REPR&MAINTNCE",TEMPORARY FENCING & CROP,0000213619,"1,450.00"
DEPARTMENT OF ENERGY AND CLIMATE CHANGE,THE COAL AUTHORITY,29/08/2014,CONTRACTORS AND CLAIM COSTS,SURFACE HAZARDS,CONSTRUCTION-MAIN CONTRACTORS,ALLIANCE CONSTRUCTION SOL,0000213624,65.70
DEPARTMENT OF ENERGY AND CLIMATE CHANGE,THE COAL AUTHORITY,29/08/2014,CONTRACTORS AND CLAIM COSTS,SURFACE HAZARDS,CONSTRUCTION-MAIN CONTRACTORS,ALLIANCE CONSTRUCTION SOL,0000213625,131.40
DEPARTMENT OF ENERGY AND CLIMATE CHANGE,THE COAL AUTHORITY,29/08/2014,CONTRACTORS AND CLAIM COSTS,SURFACE HAZARDS,CONSTRUCTION-MAIN CONTRACTORS,ALLIANCE CONSTRUCTION SOL,0000213683,"-4,161.58"
DEPARTMENT OF ENERGY AND CLIMATE CHANGE,THE COAL AUTHORITY,29/08/2014,CONTRACTORS AND CLAIM COSTS,SURFACE HAZARDS,CONSTRUCTION-MAIN CONTRACTORS,ALLIANCE CONSTRUCTION SOL,0000213684,"4,161.58"
DEPARTMENT OF ENERGY AND CLIMATE CHANGE,THE COAL AUTHORITY,29/08/2014,CONTRACTORS AND CLAIM COSTS,SURFACE HAZARDS,CONSTRUCTION-MAIN CONTRACTORS,ALLIANCE CONSTRUCTION SOL,0000213685,517.72
DEPARTMENT OF ENERGY AND CLIMATE CHANGE,THE COAL AUTHORITY,29/08/2014,CONTRACTORS AND CLAIM COSTS,SURFACE HAZARDS,CONSTRUCTION-MAIN CONTRACTORS,ALLIANCE CONSTRUCTION SOL,0000213686,"1,106.96"
DEPARTMENT OF ENERGY AND CLIMATE CHANGE,THE COAL AUTHORITY,29/08/2014,CONTRACTORS AND CLAIM COSTS,SURFACE HAZARDS,CONSTRUCTION-MAIN CONTRACTORS,ALLIANCE CONSTRUCTION SOL,0000213687,"3,229.15"
DEPARTMENT OF ENERGY AND CLIMATE CHANGE,THE COAL AUTHORITY,29/08/2014,CONTRACTORS AND CLAIM COSTS,SURFACE HAZARDS,CONSTRUCTION-MAIN CONTRACTORS,ALLIANCE CONSTRUCTION SOL,0000213688,"3,446.93"
DEPARTMENT OF ENERGY AND CLIMATE CHANGE,THE COAL AUTHORITY,02/09/2014,CONTRACTORS AND CLAIM COSTS,SURFACE HAZARDS,CONSTRUCTION-MAIN CONTRACTORS,ALLIANCE CONSTRUCTION SOL,0000213690,634.23
DEPARTMENT OF ENERGY AND CLIMATE CHANGE,THE COAL AUTHORITY,04/09/2014,CONTRACTORS AND CLAIM COSTS,SURFACE HAZARDS,"CONSTRUCTION-BLD,REPR&MAINTNCE",TREE FELLING BOBS ISLAND,0000213706,150.00
DEPARTMENT OF ENERGY AND CLIMATE CHANGE,THE COAL AUTHORITY,29/08/2014,CONTRACTORS AND CLAIM COSTS,SURFACE HAZARDS,CONSTRUCTION-MAIN CONTRACTORS,ALLIANCE CONSTRUCTION SOL,0000213730,"4,161.58"
DEPARTMENT OF ENERGY AND CLIMATE CHANGE,THE COAL AUTHORITY,04/09/2014,CONTRACTORS AND CLAIM COSTS,SURFACE HAZARDS,"CONSTRUCTION-BLD,REPR&MAINTNCE",TREE FELLING GARESFIELD G,0000213732,100.00
DEPARTMENT OF ENERGY AND CLIMATE CHANGE,THE COAL AUTHORITY,05/09/2014,CONTRACTORS AND CLAIM COSTS,SURFACE HAZARDS,CONSTRUCTION-CNSTRN SER PROVDR,CORNERSTONE  PROJECTS LTD,0000213767,103.00
DEPARTMENT OF ENERGY AND CLIMATE CHANGE,THE COAL AUTHORITY,05/09/2014,CONTRACTORS AND CLAIM COSTS,SURFACE HAZARDS,CONSTRUCTION-CNSTRN SER PROVDR,CORNERSTONE  PROJECTS LTD,0000213769,139.02
DEPARTMENT OF ENERGY AND CLIMATE CHANGE,THE COAL AUTHORITY,05/09/2014,CONTRACTORS AND CLAIM COSTS,SURFACE HAZARDS,CONSTRUCTION-CNSTRN SER PROVDR,CORNERSTONE  PROJECTS LTD,0000213770,148.00
DEPARTMENT OF ENERGY AND CLIMATE CHANGE,THE COAL AUTHORITY,08/09/2014,CONTRACTORS AND CLAIM COSTS,SURFACE HAZARDS,"CONSTRUCTION-BLD,REPR&MAINTNCE",REPLACE CHILDRENS SWING S,0000213775,500.00
DEPARTMENT OF ENERGY AND CLIMATE CHANGE,THE COAL AUTHORITY,29/08/2014,CONTRACTORS AND CLAIM COSTS,SURFACE HAZARDS,CONSTRUCTION-MAIN CONTRACTORS,BALFOUR BEATTY CIVIL ENG,0000213785,"7,656.76"
DEPARTMENT OF ENERGY AND CLIMATE CHANGE,THE COAL AUTHORITY,29/08/2014,CONTRACTORS AND CLAIM COSTS,SURFACE HAZARDS,CONSTRUCTION-MAIN CONTRACTORS,BALFOUR BEATTY CIVIL ENG,0000213786,473.32
DEPARTMENT OF ENERGY AND CLIMATE CHANGE,THE COAL AUTHORITY,29/08/2014,CONTRACTORS AND CLAIM COSTS,SURFACE HAZARDS,CONSTRUCTION-MAIN CONTRACTORS,BALFOUR BEATTY CIVIL ENG,0000213787,"7,891.01"
DEPARTMENT OF ENERGY AND CLIMATE CHANGE,THE COAL AUTHORITY,29/08/2014,CONTRACTORS AND CLAIM COSTS,SURFACE HAZARDS,CONSTRUCTION-MAIN CONTRACTORS,BALFOUR BEATTY CIVIL ENG,0000213788,393.65
DEPARTMENT OF ENERGY AND CLIMATE CHANGE,THE COAL AUTHORITY,29/08/2014,CONTRACTORS AND CLAIM COSTS,SURFACE HAZARDS,CONSTRUCTION-MAIN CONTRACTORS,BALFOUR BEATTY CIVIL ENG,0000213789,168.45
DEPARTMENT OF ENERGY AND CLIMATE CHANGE,THE COAL AUTHORITY,29/08/2014,CONTRACTORS AND CLAIM COSTS,SURFACE HAZARDS,CONSTRUCTION-MAIN CONTRACTORS,BALFOUR BEATTY CIVIL ENG,0000213790,305.16
DEPARTMENT OF ENERGY AND CLIMATE CHANGE,THE COAL AUTHORITY,09/09/2014,CONTRACTORS AND CLAIM COSTS,SURFACE HAZARDS,CONSTRUCTION-MAIN CONTRACTORS,ALLIANCE CONSTRUCTION SOL,0000213835,"-1,294.34"
DEPARTMENT OF ENERGY AND CLIMATE CHANGE,THE COAL AUTHORITY,01/09/2014,CONTRACTORS AND CLAIM COSTS,SURFACE HAZARDS,CONSTRUCTION-CNSTRN SER PROVDR,PMC SURVEYS,0000213840,"1,487.89"
DEPARTMENT OF ENERGY AND CLIMATE CHANGE,THE COAL AUTHORITY,03/09/2014,CONTRACTORS AND CLAIM COSTS,SURFACE HAZARDS,CONSTRUCTION-MAIN CONTRACTORS,JIM DAVIES CIVIL ENGINEER,0000213844,275.40
DEPARTMENT OF ENERGY AND CLIMATE CHANGE,THE COAL AUTHORITY,03/09/2014,CONTRACTORS AND CLAIM COSTS,SURFACE HAZARDS,CONSTRUCTION-MAIN CONTRACTORS,JIM DAVIES CIVIL ENGINEER,0000213846,328.50
DEPARTMENT OF ENERGY AND CLIMATE CHANGE,THE COAL AUTHORITY,03/09/2014,CONTRACTORS AND CLAIM COSTS,SURFACE HAZARDS,CONSTRUCTION-MAIN CONTRACTORS,JIM DAVIES CIVIL ENGINEER,0000213849,269.10
DEPARTMENT OF ENERGY AND CLIMATE CHANGE,THE COAL AUTHORITY,03/09/2014,CONTRACTORS AND CLAIM COSTS,SURFACE HAZARDS,CONSTRUCTION-MAIN CONTRACTORS,JIM DAVIES CIVIL ENGINEER,0000213850,342.86
DEPARTMENT OF ENERGY AND CLIMATE CHANGE,THE COAL AUTHORITY,31/08/2014,CONTRACTORS AND CLAIM COSTS,SURFACE HAZARDS,CONSTRUCTION-MAIN CONTRACTORS,NAL PLANT LIMITED,0000213852,251.06
DEPARTMENT OF ENERGY AND CLIMATE CHANGE,THE COAL AUTHORITY,31/08/2014,CONTRACTORS AND CLAIM COSTS,SURFACE HAZARDS,CONSTRUCTION-MAIN CONTRACTORS,NAL PLANT LIMITED,0000213853,187.06
DEPARTMENT OF ENERGY AND CLIMATE CHANGE,THE COAL AUTHORITY,09/09/2014,CONTRACTORS AND CLAIM COSTS,SURFACE HAZARDS,CONSTRUCTION-MAIN CONTRACTORS,LLETTYSHENKIN CONS CO LTD,0000213855,446.25
DEPARTMENT OF ENERGY AND CLIMATE CHANGE,THE COAL AUTHORITY,09/09/2014,CONTRACTORS AND CLAIM COSTS,SURFACE HAZARDS,CONSTRUCTION-MAIN CONTRACTORS,LLETTYSHENKIN CONS CO LTD,0000213856,"1,582.50"
